Workbook

Sheet SAPBEXqueriesDefunct (hidden)
A1: 9
A2: 9 | AE2: 81 | CM2: 501 | DG2: 234 | EA2: 6840 | EU2: 2 | FY2: 29 | HW2: 279
A3: 24 | AE3: 59 | CM3: 13 | DG3: 14 | EA3: 13 | EU3: 11 | FY3: 21 | HW3: 2
B4: 229 | C4: D9UV84VAX4ANMLF7VE1O5UCXL | D4: TRUE | E4: TRUE | F4: SAPBEXq0009 | G4: 2 | H4: 2 | I4: FALSE | L4: TRUE | M4: FALSE | O4: TRUE | P4: FALSE | Q4: 0 | S4: 5 | T4: TRUE | U4: TRUE | X4: FALSE | Y4: FALSE | Z4: FALSE | AE4: 12 | AF4: 0PAYRL_AREA | AG4: Payroll Area | AH4: X | AK4: 0001 | AS4: 0 | AT4: 03 | AX4: 00000000 | AY4: K | AZ4: 0PAYRL_AREA | BA4: A | BD4: H | BJ4: 00000000 | BK4: 0000 | BM4: 0 | BR4: 1 | BS4: 1 | BT4: 1 | BU4: 0 | BV4: 0 | CB4: D9UV84VAX459U94WMM0DOUL15 | CI4: 0000 | CM4: 12 | CN4: D4O21W1IBUB3HEML1KWP5YGOP | CO4: D4O21W1IBUDEJ9LV077JD8NI1 | CP4: Grade 1 - 4 F/T | CQ4: 0001 | CS4: S | CU4: L | DG4: 12 | DH4: 0ORGUNIT | DI4: 0BBPPURGRPX | DJ4: Ind.Purchasing Group | DK4: 0000 | DL4: X | DM4: 2 | DN4: 0 | DO4: 0 | DT4: 0000 | EA4: 12 | EB4: D4O21W1IBUDEJ9LV077JD8NI1 | EC4: D5PZA7P4P40B5BG5ZCKAWYZUH | EI4: 00 | EJ4: X | EK4: 0 | EL4: 0 | EU4: 22 | EV4: 0ORGUNIT | EW4: 253 | EX4: Organizational Unit | EZ4: T | FA4: 0 | FB4: 253 | FC4: 0ORGUNIT | FD4: 1 | FY4: 12 | FZ4: ZS_DT_1 | GA4: 1 | GB4: P | GC4: I | GD4: EQ | GE4: 20150930 | GF4: 30/09/2015 | GJ4: 0 | GL4: 0 | GN4: 0 | GO4: Target date 1 | GP4: 60 | GS4: ZEMP_STRT | GT4: 20150930 | HW4: 12 | HX4: 0000000107 | HY4: D9UV84VAX3YCOO72QR3V300L5
B5: 225 | C5: D9UV84VAX4ANMLF7VE1O5UCXL | D5: TRUE | E5: TRUE | F5: SAPBEXq0012 | G5: 2 | H5: 2 | I5: FALSE | L5: TRUE | M5: FALSE | O5: TRUE | P5: FALSE | Q5: 0 | S5: 5 | T5: TRUE | U5: TRUE | X5: FALSE | Y5: FALSE | Z5: FALSE | AE5: 12 | AF5: ZPERSAREA | AG5: ZPersonal Area | AH5: X | AK5: 0002 | AS5: 2 | AT5: 03 | AX5: 00000000 | AY5: K | AZ5: ZPERSAREA | BA5: A | BD5: H | BJ5: 00000000 | BK5: 0000 | BM5: 0 | BR5: 1 | BS5: 1 | BT5: 1 | BU5: 0 | BV5: 0 | CB5: D9UV84VAX461IVGNY5FZR9ZAX | CI5: 0000 | CM5: 12 | CN5: D5PZA7P4P3ZJGP4ENT4OUJLKP | CO5: D5PZA7P4P40B5BG5ZCKAWYZUH | CP5: Total White Male Disabled Employees | CQ5: 0001 | CS5: S | CU5: L | CV5: X | DG5: 12 | DH5: 0ORGUNIT | DI5: 0BBPPURORGX | DJ5: Ind. Purchasing Org. | DK5: 0000 | DL5: X | DM5: 2 | DN5: 0 | DO5: 0 | DT5: 0000 | EA5: 12 | EB5: D4O21W1IBUDEJ9LV077JD8NI1 | EC5: D5PZA7P4P412TXRXAVZWZEE49 | EI5: 00 | EJ5: X | EK5: 0 | EL5: 0 | EU5: 22 | EV5: 0ORGUNIT | EW5: 253 | EX5: Hierarchy Node(s) | EZ5: T | FA5: 0 | FB5: 37 | FC5: 0HIER_NODE | FD5: 1 | FY5: 12 | FZ5: ZBUDH | GA5: 1 | GB5: P | GC5: I | GD5: EQ | GE5: 20150930 | GF5: 30/09/2015 | GJ5: 0 | GL5: 0 | GN5: 0 | GO5: Master Data Key Date | GP5: 60 | GS5: 0DATE | GT5: 20150930 | HW5: 12 | HX5: 0000000100 | HY5: X
B6: 221 | C6: D9UV84VAX4ANMLF7VE1O5UCXL | D6: TRUE | E6: TRUE | F6: SAPBEXq0013 | G6: 2 | H6: 2 | I6: FALSE | L6: TRUE | M6: FALSE | O6: TRUE | P6: FALSE | Q6: 0 | S6: 5 | T6: TRUE | U6: TRUE | X6: FALSE | Y6: FALSE | Z6: FALSE | AE6: 12 | AF6: 0ORGUNIT | AG6: Organizational Unit | AH6: X | AK6: 0003 | AM6: Corporate Services | AS6: 1 | AT6: 03 | AU6: X | AV6: ORGEH | AW6: 000 | AX6: 20150930 | AY6: K | AZ6: 0ORGUNIT | BA6: A | BD6: H | BE6: 0ORGUNIT | BF6: A | BJ6: 00000000 | BK6: 0000 | BM6: 0 | BO6: 1 | BQ6: 2 | BR6: 1 | BS6: 1 | BT6: 1 | BU6: 0 | BV6: 0 | CB6: D9UV84VAX46T7HSF9OVLTPDKP | CI6: 0000 | CM6: 12 | CN6: D4O21W1IBUB3HEML1KWP5YGOP | CO6: D4O21W1IBUKBOUJOW241Z37Y1 | CP6: Grade 1 - 4 P/T | CQ6: 0002 | CS6: S | CU6: L | DG6: 12 | DH6: 0ORGUNIT | DI6: 0BBP_BUYID | DJ6: Buyer ID | DK6: 0000 | DL6: X | DM6: 5 | DN6: 0 | DO6: 0 | DT6: 0000 | EA6: 12 | EB6: D4O21W1IBUDEJ9LV077JD8NI1 | EC6: D5PZA7P4P41UIK3OMFFJ1TSE1 | EE6: 0 | EI6: 00 | EJ6: X | EK6: 0 | EL6: 0 | FY6: 12 | FZ6: ZZPERAR | GA6: 1 | GB6: M | GJ6: 0 | GL6: 0 | GN6: 0 | GO6: ZPersonnel Area | GP6: 60 | GS6: ZPERSAREA | HW6: 12 | HX6: 0000000101
B7: 217 | C7: D9UV84VAX4ANMLF7VE1O5UCXL | D7: TRUE | E7: TRUE | F7: SAPBEXq0015 | G7: 2 | H7: 2 | I7: FALSE | L7: TRUE | M7: FALSE | O7: TRUE | P7: FALSE | Q7: 0 | S7: 5 | T7: TRUE | U7: TRUE | X7: FALSE | Y7: FALSE | Z7: FALSE | AE7: 12 | AF7: 0PERS_SAREA | AG7: Personnel Subarea | AH7: X | AK7: 0004 | AR7: U | AS7: 1 | AT7: 03 | AX7: 00000000 | AY7: K | AZ7: 0PERS_SAREA | BA7: A | BD7: H | BJ7: 00000000 | BK7: 0000 | BM7: 0 | BR7: 1 | BS7: 1 | BT7: 1 | BU7: 0 | BV7: 0 | CB7: D9UV84VAX47KW446L8B7W4RUH | CI7: 0000 | CM7: 12 | CN7: D5PZA7P4P3ZJGP4ENT4OUJLKP | CO7: D5PZA7P4P412TXRXAVZWZEE49 | CP7: Total White Female Disabled Employees | CQ7: 0002 | CS7: S | CU7: L | CV7: X | DG7: 12 | DH7: 0ORGUNIT | DI7: 0BBP_ISCOMP | DJ7: Organizational Unit is Company | DK7: 0000 | DL7: X | DM7: 1 | DN7: 0 | DO7: 0 | DT7: 0000 | EA7: 12 | EB7: D4O21W1IBUDEJ9LV077JD8NI1 | EC7: D5PZA7P4P42M76FFXYV5496NT | EE7: 0 | EI7: 00 | EJ7: X | EK7: 0 | EL7: 0 | FY7: 11 | FZ7: ZS_DT_1 | GA7: 1 | GB7: P | GC7: I | GD7: EQ | GE7: 20150930 | GF7: 30/09/2015 | GJ7: 0 | GL7: 0 | GN7: 0 | GO7: Target date 1 | GP7: 60 | GS7: ZEMP_STRT | GT7: 20150930 | HW7: 12 | HX7: 0000000104 | HY7: 1
B8: 213 | C8: D9UV84VAX4ANMLF7VE1O5UCXL | D8: TRUE | E8: TRUE | F8: SAPBEXq0016 | G8: 2 | H8: 2 | I8: FALSE | L8: TRUE | M8: FALSE | O8: TRUE | P8: FALSE | Q8: 0 | S8: 5 | T8: TRUE | U8: TRUE | X8: FALSE | Y8: FALSE | Z8: FALSE | AE8: 12 | AF8: ZTEILK | AG8: Checkbox for Part-Ti | AH8: X | AK8: 0005 | AS8: 1 | AT8: 03 | AX8: 00000000 | AY8: K | AZ8: ZTEILK | BA8: A | BD8: H | BJ8: 00000000 | BK8: 0000 | BM8: 0 | BR8: 1 | BS8: 1 | BT8: 1 | BU8: 0 | BV8: 0 | CB8: D9UV84VAX48CKQFXWRQTYK649 | CI8: 0000 | CM8: 12 | CN8: D5PZA7P4P3ZJGP4ENT4OUJLKP | CO8: D5PZA7P4P41UIK3OMFFJ1TSE1 | CP8: Total White Disabled Employees | CQ8: 0003 | CS8: F | CU8: L | DG8: 12 | DH8: 0ORGUNIT | DI8: 0BUS_AREA | DJ8: Business area | DK8: 0000 | DL8: X | DM8: 0 | DN8: 0 | DO8: 0 | DT8: 0000 | EA8: 12 | EB8: D4O21W1IBUDEJ9LV077JD8NI1 | EC8: D5PZA7P4P43DVSR79IAR6OKXL | EE8: 0 | EI8: 00 | EJ8: X | EK8: 0 | EL8: 0 | FY8: 11 | FZ8: ZBUDH | GA8: 1 | GB8: P | GC8: I | GD8: EQ | GE8: 20150930 | GF8: 30/09/2015 | GJ8: 0 | GL8: 0 | GN8: 0 | GO8: Master Data Key Date | GP8: 60 | GS8: 0DATE | GT8: 20150930 | HW8: 12 | HX8: 0000000103
B9: 209 | C9: D9UV84VAX4ANMLF7VE1O5UCXL | D9: TRUE | E9: TRUE | F9: SAPBEXq0017 | G9: 2 | H9: 2 | I9: FALSE | L9: TRUE | M9: FALSE | O9: TRUE | P9: FALSE | Q9: 0 | S9: 5 | T9: TRUE | U9: TRUE | X9: FALSE | Y9: FALSE | Z9: FALSE | AE9: 12 | AF9: ZPRIM_ID | AG9: ZPrimary Employee ID | AH9: X | AK9: 0006 | AS9: 2 | AT9: 03 | AX9: 00000000 | AY9: K | AZ9: ZPRIM_ID | BA9: A | BD9: H | BJ9: 00000000 | BK9: 0000 | BM9: 0 | BR9: 1 | BS9: 1 | BT9: 1 | BU9: 0 | BV9: 0 | CB9: D9UV84VAX4949CRP8B6G0ZKE1 | CI9: 0000 | CM9: 12 | CN9: D4O21W1IBUB3HEML1KWP5YGOP | CO9: DEMAFDB5LZ4S252XBVM7GJP4P | CP9: Grade 1 - 4 Total | CQ9: 0003 | CS9: S | CU9: L | DG9: 12 | DH9: 0ORGUNIT | DI9: 0COMP_CODE | DJ9: Company code | DK9: 0000 | DL9: X | DM9: 0 | DN9: 0 | DO9: 0 | DT9: 0000 | EA9: 12 | EB9: D4O21W1IBUDEJ9LV077JD8NI1 | EC9: D5PZA7P4P445KF2YL1QD93Z7D | EE9: 0 | EI9: 00 | EJ9: X | EK9: 0 | EL9: 0 | FY9: 11 | FZ9: ZZPERAR | GA9: 1 | GB9: M | GJ9: 0 | GL9: 0 | GN9: 0 | GO9: ZPersonnel Area | GP9: 60 | GS9: ZPERSAREA | HW9: 12 | HX9: 0000000102 | HY9: 1
B10: 205 | C10: D9UVC1KT6I8278NY7VY8T21O9 | D10: TRUE | E10: TRUE | F10: SAPBEXq0014 | G10: 2 | H10: 2 | I10: FALSE | L10: TRUE | M10: FALSE | O10: TRUE | P10: FALSE | Q10: 0 | S10: 5 | T10: TRUE | U10: TRUE | X10: FALSE | Y10: FALSE | Z10: FALSE | AE10: 12 | AF10: 0CNTRCTTYPE | AG10: Contract Type | AH10: X | AK10: 0007 | AS10: 1 | AT10: 03 | AX10: 00000000 | AY10: K | AZ10: 0CNTRCTTYPE | BA10: A | BD10: H | BJ10: 00000000 | BK10: 0000 | BM10: 0 | BR10: 1 | BS10: 1 | BT10: 1 | BU10: 0 | BV10: 0 | CB10: D9UV9459QXWEJPYDHUNPBXGQH | CI10: 0000 | CM10: 12 | CN10: D4O21W1IBUB3HEML1KWP5YGOP | CO10: D4O21W1IBUE67VXMBQN5FO1RT | CP10: Grade 5 - 7 F/T | CQ10: 0004 | CS10: S | CU10: L | DG10: 12 | DH10: 0ORGUNIT | DI10: 0CO_MST_AR | DJ10: Controlling Area of Master Cost Center | DK10: 0000 | DL10: X | DM10: 0 | DN10: 0 | DO10: 0 | DT10: 0000 | EA10: 12 | EB10: D4O21W1IBUDEJ9LV077JD8NI1 | EC10: D5PZA7P4P44X91EPWL5ZBJDH5 | EI10: 00 | EJ10: X | EK10: 0 | EL10: 0 | FY10: 10 | FZ10: ZS_DT_1 | GA10: 1 | GB10: P | GC10: I | GD10: EQ | GE10: 20150930 | GF10: 30/09/2015 | GJ10: 0 | GL10: 0 | GN10: 0 | GO10: Target date 1 | GP10: 60 | GS10: ZEMP_STRT | GT10: 20150930 | HW10: 12 | HX10: 0000000108
B11: 201 | C11: D9UV84VAX4ANMLF7VE1O5UCXL | D11: TRUE | E11: TRUE | F11: SAPBEXq0018 | G11: 2 | H11: 2 | I11: FALSE | L11: TRUE | M11: FALSE | O11: TRUE | P11: FALSE | Q11: 0 | S11: 5 | T11: TRUE | U11: TRUE | X11: FALSE | Y11: FALSE | Z11: FALSE | AE11: 12 | AF11: D5PZA7P4P3ZJGP4ENT4OUJLKP | AG11: WP Disability/Ethnicity Bandings Rev | AI11: X | AJ11: X | AK11: 0001 | AR11: U | AT11: 00 | AY11: K | AZ11: D5PZA7P4P3ZJGP4ENT4OUJLKP | BA11: A | BJ11: 00000000 | BK11: 0000 | BL11: X | BM11: 0 | BR11: 0 | BS11: 0 | BT11: 0 | BU11: 0 | BV11: 0 | CB11: D5PZA7P4P3ZJGP4ENT4OUJLKP | CI11: 0000 | CM11: 12 | CN11: D5PZA7P4P3ZJGP4ENT4OUJLKP | CO11: D5PZA7P4P42M76FFXYV5496NT | CP11: Total Ethnic Male Disabled Employees | CQ11: 0004 | CS11: S | CU11: L | CV11: X | DG11: 12 | DH11: 0ORGUNIT | DI11: 0CRMSALGRPX | DJ11: Sls Group: Indicator | DK11: 0000 | DL11: X | DM11: 2 | DN11: 0 | DO11: 0 | DT11: 0000 | EA11: 12 | EB11: D4O21W1IBUDEJ9LV077JD8NI1 | EC11: D5PZA7P4P45OXNQH84LLDYRQX | EI11: 00 | EJ11: X | EK11: 0 | EL11: 0 | FY11: 10 | FZ11: ZS_PSAR2 | GA11: 1 | GB11: P | GJ11: 0 | GL11: 0 | GN11: 0 | GO11: Pers. Sub-Area - optional | GP11: 60 | GS11: 0PERS_SAREA | HW11: 12 | HX11: 0000009002 | HY11: D4O21W1IBUB3HEML1KWP5YGOP
B12: 197 | C12: D9UV84VAX4ANMLF7VE1O5UCXL | D12: TRUE | E12: TRUE | F12: SAPBEXq0019 | G12: 2 | H12: 2 | I12: FALSE | L12: TRUE | M12: FALSE | O12: TRUE | P12: FALSE | Q12: 0 | S12: 5 | T12: TRUE | U12: TRUE | X12: FALSE | Y12: FALSE | Z12: FALSE | AE12: 12 | AF12: D4O21W1IBUB3HEML1KWP5YGOP | AG12: WP Bandings | AI12: X | AJ12: Y | AK12: 0001 | AR12: U | AT12: 00 | AY12: K | AZ12: D4O21W1IBUB3HEML1KWP5YGOP | BA12: A | BJ12: 00000000 | BK12: 0000 | BM12: 0 | BR12: 0 | BS12: 0 | BT12: 0 | BU12: 0 | BV12: 0 | CB12: D4O21W1IBUB3HEML1KWP5YGOP | CI12: 0000 | CM12: 12 | CN12: D5PZA7P4P3ZJGP4ENT4OUJLKP | CO12: D5PZA7P4P43DVSR79IAR6OKXL | CP12: Total Ethnic Female Disabled Employees | CQ12: 0005 | CS12: S | CU12: L | CV12: X | DG12: 12 | DH12: 0ORGUNIT | DI12: 0CRMSALOFFX | DJ12: Sls Office:Indicator | DK12: 0000 | DL12: X | DM12: 2 | DN12: 0 | DO12: 0 | DT12: 0000 | EA12: 12 | EB12: D4O21W1IBUDEJ9LV077JD8NI1 | EC12: D5PZA7P4P46GMA28JO17GE60P | EE12: 0 | EI12: 00 | EJ12: X | EK12: 0 | EL12: 0 | FY12: 10 | FZ12: ZP_ORGUN | GA12: 2 | GB12: M | GJ12: 0 | GL12: 0 | GN12: 0 | GO12: Org Unit Hierarchy (Selection option, optional) | GP12: 60 | GS12: 0ORGUNIT | HW12: 12 | HX12: 0000009000
Z13: FALSE | AE13: 11 | AF13: 0PAYRL_AREA | AG13: Payroll Area | AH13: X | AK13: 0001 | AS13: 0 | AT13: 03 | AX13: 00000000 | AY13: K | AZ13: 0PAYRL_AREA | BA13: A | BD13: H | BJ13: 00000000 | BK13: 0000 | BM13: 0 | BR13: 1 | BS13: 1 | BT13: 1 | BU13: 0 | BV13: 0 | CB13: D9UV84VAX459U94WMM0DOUL15 | CI13: 0000 | CM13: 12 | CN13: D4O21W1IBUB3HEML1KWP5YGOP | CO13: D4O21W1IBUL3DGVG7LJO1IM7T | CP13: Grade 5 - 7 P/T | CQ13: 0005 | CS13: S | CU13: L | DG13: 12 | DH13: 0ORGUNIT | DI13: 0CRMSALORGX | DJ13: Sales Org. Indicator | DK13: 0000 | DL13: X | DM13: 2 | DN13: 0 | DO13: 0 | DT13: 0000 | EA13: 12 | EB13: D4O21W1IBUDEJ9LV077JD8NI1 | EC13: D5PZA7P4P478AWDZV7GTITKAH | EE13: 2 | EI13: 00 | EJ13: X | EK13: 0 | EL13: 0 | FY13: 10 | FZ13: ZBUDH | GA13: 1 | GB13: P | GC13: I | GD13: EQ | GE13: 20150930 | GF13: 30/09/2015 | GJ13: 0 | GL13: 0 | GN13: 0 | GO13: Master Data Key Date | GP13: 60 | GS13: 0DATE | GT13: 20150930 | HW13: 12 | HX13: 0000000010
Z14: FALSE | AE14: 11 | AF14: ZPERSAREA | AG14: ZPersonal Area | AH14: X | AK14: 0002 | AS14: 2 | AT14: 03 | AX14: 00000000 | AY14: K | AZ14: ZPERSAREA | BA14: A | BD14: H | BJ14: 00000000 | BK14: 0000 | BM14: 0 | BR14: 1 | BS14: 1 | BT14: 1 | BU14: 0 | BV14: 0 | CB14: D9UV84VAX461IVGNY5FZR9ZAX | CI14: 0000 | CM14: 12 | CN14: D5PZA7P4P3ZJGP4ENT4OUJLKP | CO14: D5PZA7P4P445KF2YL1QD93Z7D | CP14: Total Ethnic Disabled Employees | CQ14: 0006 | CS14: F | CU14: L | DG14: 12 | DH14: 0ORGUNIT | DI14: 0CRMSRVTGRP | DJ14: Ex. CRM Service Org. | DK14: 0000 | DL14: X | DM14: 1 | DN14: 0 | DO14: 0 | DT14: 0000 | EA14: 12 | EB14: D4O21W1IBUDEJ9LV077JD8NI1 | EC14: D5PZA7P4P47ZZIPR6QWFL8YK9 | EI14: 00 | EJ14: X | EK14: 0 | EL14: 0 | FY14: 10 | FZ14: ZZPERAR | GA14: 1 | GB14: M | GJ14: 0 | GL14: 0 | GN14: 0 | GO14: ZPersonnel Area | GP14: 60 | GS14: ZPERSAREA | HW14: 12 | HX14: 0000000021
Z15: FALSE | AE15: 11 | AF15: 0ORGUNIT | AG15: Organizational Unit | AH15: X | AK15: 0003 | AM15: Chief Executive Srv, Chief Executive Organisation Structu... | AS15: 1 | AT15: 03 | AU15: X | AV15: ORGEH | AW15: 000 | AX15: 20150930 | AY15: K | AZ15: 0ORGUNIT | BA15: A | BD15: H | BE15: 0ORGUNIT | BF15: A | BJ15: 00000000 | BK15: 0000 | BM15: 0 | BO15: X | BQ15: 2 | BR15: 1 | BS15: 1 | BT15: 1 | BU15: 0 | BV15: 0 | CB15: D9UV84VAX46T7HSF9OVLTPDKP | CI15: 0000 | CM15: 12 | CN15: D4O21W1IBUB3HEML1KWP5YGOP | CO15: DEMAGSP8VDTMCQ2Z9KSRG7UGP | CP15: Grade 5 - 7 Total | CQ15: 0006 | CS15: S | CU15: L | DG15: 12 | DH15: 0ORGUNIT | DI15: 0CRM_SALGRP | DJ15: CRM Sales Group | DK15: 0000 | DL15: X | DM15: 1 | DN15: 0 | DO15: 0 | DT15: 0000 | EA15: 12 | EB15: D4O21W1IBUDEJ9LV077JD8NI1 | EC15: D5PZA7P4P48RO51IIAC1NOCU1 | EI15: 00 | EJ15: X | EK15: 0 | EL15: 0 | FY15: 9 | FZ15: ZS_DT_1 | GA15: 1 | GB15: P | GC15: I | GD15: EQ | GE15: 20150930 | GF15: 30/09/2015 | GJ15: 0 | GL15: 0 | GN15: 0 | GO15: Target date 1 | GP15: 60 | GS15: ZEMP_STRT | GT15: 20150930 | HW15: 12 | HX15: 0000000022
Z16: FALSE | AE16: 11 | AF16: 0PERS_SAREA | AG16: Personnel Subarea | AH16: X | AK16: 0004 | AR16: U | AS16: 1 | AT16: 03 | AX16: 00000000 | AY16: K | AZ16: 0PERS_SAREA | BA16: A | BD16: H | BJ16: 00000000 | BK16: 0000 | BM16: 0 | BR16: 1 | BS16: 1 | BT16: 1 | BU16: 0 | BV16: 0 | CB16: D9UV84VAX47KW446L8B7W4RUH | CI16: 0000 | CM16: 12 | CN16: D5PZA7P4P3ZJGP4ENT4OUJLKP | CO16: D5PZA7P4P44X91EPWL5ZBJDH5 | CP16: Disabled Male Employees | CQ16: 0007 | CS16: S | CU16: L | CV16: X | DG16: 12 | DH16: 0ORGUNIT | DI16: 0CRM_SALOFF | DJ16: CRM Sales Office | DK16: 0000 | DL16: X | DM16: 1 | DN16: 0 | DO16: 0 | DT16: 0000 | EA16: 12 | EB16: D4O21W1IBUDEJ9LV077JD8NI1 | EC16: D5PZA7P4P49JCRD9TTRNQ3R3T | EI16: 00 | EJ16: X | EK16: 0 | EL16: 0 | FY16: 9 | FZ16: ZBUDH | GA16: 1 | GB16: P | GC16: I | GD16: EQ | GE16: 20150930 | GF16: 30/09/2015 | GJ16: 0 | GL16: 0 | GN16: 0 | GO16: Master Data Key Date | GP16: 60 | GS16: 0DATE | GT16: 20150930 | HW16: 12 | HX16: 0000000023
Z17: FALSE | AE17: 11 | AF17: ZTEILK | AG17: Checkbox for Part-Ti | AH17: X | AK17: 0005 | AS17: 1 | AT17: 03 | AX17: 00000000 | AY17: K | AZ17: ZTEILK | BA17: A | BD17: H | BJ17: 00000000 | BK17: 0000 | BM17: 0 | BR17: 1 | BS17: 1 | BT17: 1 | BU17: 0 | BV17: 0 | CB17: D9UV84VAX48CKQFXWRQTYK649 | CI17: 0000 | CM17: 12 | CN17: D4O21W1IBUB3HEML1KWP5YGOP | CO17: D4O21W1IBUEXWI9DNA2RI3G1L | CP17: Grade 8 F/T | CQ17: 0007 | CS17: S | CU17: L | DG17: 12 | DH17: 0ORGUNIT | DI17: 0CRM_SALORG | DJ17: CRM Sales Org. | DK17: 0000 | DL17: X | DM17: 1 | DN17: 0 | DO17: 0 | DT17: 0000 | EA17: 12 | EB17: D4O21W1IBUDEJ9LV077JD8NI1 | EC17: D5PZA7P4P4AB1DP15D79SJ5DL | EE17: 0 | EI17: 00 | EJ17: X | EK17: 0 | EL17: 0 | FY17: 9 | FZ17: ZZPERAR | GA17: 1 | GB17: M | GJ17: 0 | GL17: 0 | GN17: 0 | GO17: ZPersonnel Area | GP17: 60 | GS17: ZPERSAREA | HW17: 12 | HX17: 0000000030
Z18: FALSE | AE18: 11 | AF18: ZPRIM_ID | AG18: ZPrimary Employee ID | AH18: X | AK18: 0006 | AS18: 2 | AT18: 03 | AX18: 00000000 | AY18: K | AZ18: ZPRIM_ID | BA18: A | BD18: H | BJ18: 00000000 | BK18: 0000 | BM18: 0 | BR18: 1 | BS18: 1 | BT18: 1 | BU18: 0 | BV18: 0 | CB18: D9UV84VAX4949CRP8B6G0ZKE1 | CI18: 0000 | CM18: 12 | CN18: D4O21W1IBUB3HEML1KWP5YGOP | CO18: D4O21W1IBULV2377J4ZA3Y0HL | CP18: Grade 8 P/T | CQ18: 0008 | CS18: S | CU18: L | DG18: 12 | DH18: 0ORGUNIT | DI18: 0CRM_SRVORG | DJ18: Service Org. CRM | DK18: 0000 | DL18: X | DM18: 1 | DN18: 0 | DO18: 0 | DT18: 0000 | EA18: 12 | EB18: D4O21W1IBUDEJ9LV077JD8NI1 | EC18: D5PZA7P4P4B2Q00SGWMVUYJND | EE18: 0 | EI18: 00 | EJ18: X | EK18: 0 | EL18: 0 | FY18: 8 | FZ18: ZS_DT_1 | GA18: 1 | GB18: P | GC18: I | GD18: EQ | GE18: 20150930 | GF18: 30/09/2015 | GJ18: 0 | GL18: 0 | GN18: 0 | GO18: Target date 1 | GP18: 60 | GS18: ZEMP_STRT | GT18: 20150930 | HW18: 12 | HX18: 0000000040
Z19: FALSE | AE19: 11 | AF19: 0CNTRCTTYPE | AG19: Contract Type | AH19: X | AK19: 0007 | AS19: 1 | AT19: 03 | AX19: 00000000 | AY19: K | AZ19: 0CNTRCTTYPE | BA19: A | BD19: H | BJ19: 00000000 | BK19: 0000 | BM19: 0 | BR19: 1 | BS19: 1 | BT19: 1 | BU19: 0 | BV19: 0 | CB19: D9UV9459QXWEJPYDHUNPBXGQH | CI19: 0000 | CM19: 12 | CN19: D5PZA7P4P3ZJGP4ENT4OUJLKP | CO19: D5PZA7P4P45OXNQH84LLDYRQX | CP19: Disabled Female Employees | CQ19: 0008 | CS19: S | CU19: L | CV19: X | DG19: 12 | DH19: 0ORGUNIT | DI19: 0LOGSYS | DJ19: Source System | DK19: 0000 | DL19: X | DM19: 1 | DN19: 0 | DO19: 0 | DT19: 0000 | EA19: 12 | EB19: D4O21W1IBUDEJ9LV077JD8NI1 | EC19: D5PZA7P4P4BUEMCJSG2HXDXX5 | EE19: 0 | EI19: 00 | EJ19: X | EK19: 0 | EL19: 0 | FY19: 8 | FZ19: ZBUDH | GA19: 1 | GB19: P | GC19: I | GD19: EQ | GE19: 20150930 | GF19: 30/09/2015 | GJ19: 0 | GL19: 0 | GN19: 0 | GO19: Master Data Key Date | GP19: 60 | GS19: 0DATE | GT19: 20150930 | HW19: 12 | HX19: 0000000041
Z20: FALSE | AE20: 11 | AF20: D5PZA7P4P3ZJGP4ENT4OUJLKP | AG20: WP Disability/Ethnicity Bandings Rev | AI20: X | AJ20: X | AK20: 0001 | AR20: U | AT20: 00 | AY20: K | AZ20: D5PZA7P4P3ZJGP4ENT4OUJLKP | BA20: A | BJ20: 00000000 | BK20: 0000 | BL20: X | BM20: 0 | BR20: 0 | BS20: 0 | BT20: 0 | BU20: 0 | BV20: 0 | CB20: D5PZA7P4P3ZJGP4ENT4OUJLKP | CI20: 0000 | CM20: 12 | CN20: D4O21W1IBUB3HEML1KWP5YGOP | CO20: D4O21W1IBV18QHQDXXNJGHXX5 | CP20: Grade 8 Total | CQ20: 0009 | CS20: S | CU20: L | DG20: 12 | DH20: 0ORGUNIT | DI20: 0MAST_CCTR | DJ20: Master Cost Center | DK20: 0000 | DL20: X | DM20: 0 | DN20: 0 | DO20: 0 | DT20: 0000 | EA20: 12 | EB20: D4O21W1IBUDEJ9LV077JD8NI1 | EC20: D5PZA7P4P4CM38OB3ZI3ZTC6X | EE20: 0 | EI20: 00 | EJ20: X | EK20: 0 | EL20: 0 | FY20: 8 | FZ20: ZZPERAR | GA20: 1 | GB20: M | GJ20: 0 | GL20: 0 | GN20: 0 | GO20: ZPersonnel Area | GP20: 60 | GS20: ZPERSAREA | HW20: 12 | HX20: 0000000042 | HY20: 0
Z21: FALSE | AE21: 11 | AF21: D4O21W1IBUB3HEML1KWP5YGOP | AG21: WP Bandings | AI21: X | AJ21: Y | AK21: 0001 | AR21: U | AT21: 00 | AY21: K | AZ21: D4O21W1IBUB3HEML1KWP5YGOP | BA21: A | BJ21: 00000000 | BK21: 0000 | BM21: 0 | BR21: 0 | BS21: 0 | BT21: 0 | BU21: 0 | BV21: 0 | CB21: D4O21W1IBUB3HEML1KWP5YGOP | CI21: 0000 | CM21: 12 | CN21: D5PZA7P4P3ZJGP4ENT4OUJLKP | CO21: D5PZA7P4P46GMA28JO17GE60P | CP21: Total Disabled Employees | CQ21: 0009 | CS21: F | CU21: L | DG21: 12 | DH21: 0ORGUNIT | DI21: 0PERS_AREA | DJ21: Personnel Area | DK21: 0000 | DL21: X | DM21: 1 | DN21: 0 | DO21: 0 | DT21: 0000 | EA21: 12 | EB21: D4O21W1IBUDEJ9LV077JD8NI1 | EC21: D5PZA7P4P4DDRV02FIXQ28QGP | EI21: 00 | EJ21: X | EK21: 0 | EL21: 0 | FY21: 7 | FZ21: ZS_DT_1 | GA21: 1 | GB21: P | GC21: I | GD21: EQ | GE21: 20150930 | GF21: 30/09/2015 | GJ21: 0 | GL21: 0 | GN21: 0 | GO21: Target date 1 | GP21: 60 | GS21: ZEMP_STRT | GT21: 20150930 | HW21: 12 | HX21: 0000000043 | HY21: 0
Z22: FALSE | AE22: 10 | AF22: 0PAYRL_AREA | AG22: Payroll Area | AH22: X | AK22: 0001 | AS22: 0 | AT22: 03 | AX22: 00000000 | AY22: K | AZ22: 0PAYRL_AREA | BA22: A | BD22: H | BJ22: 00000000 | BK22: 0000 | BM22: 0 | BR22: 1 | BS22: 1 | BT22: 1 | BU22: 0 | BV22: 0 | CB22: D9UVC1KT6I2OEWDMZ3WYC29RT | CI22: 0000 | CM22: 12 | CN22: D4O21W1IBUB3HEML1KWP5YGOP | CO22: D4O21W1IBUFPL4L4YTIDKIUBD | CP22: ACZ Grade 8 F/T | CQ22: 0010 | CS22: S | CU22: L | DG22: 12 | DH22: 0ORGUNIT | DI22: 0PERS_SAREA | DJ22: Personnel Subarea | DK22: 0000 | DL22: X | DM22: 1 | DN22: 0 | DO22: 0 | DT22: 0000 | EA22: 12 | EB22: D4O21W1IBUDEJ9LV077JD8NI1 | EC22: D5PZA7P4P4E5GHBTR2DC4O4QH | EI22: 00 | EJ22: X | EK22: 0 | EL22: 0 | FY22: 7 | FZ22: ZBUDH | GA22: 1 | GB22: P | GC22: I | GD22: EQ | GE22: 20150930 | GF22: 30/09/2015 | GJ22: 0 | GL22: 0 | GN22: 0 | GO22: Master Data Key Date | GP22: 60 | GS22: 0DATE | GT22: 20150930 | HW22: 12 | HX22: 0000000109 | HY22: 0
AE23: 10 | AF23: ZPERSAREA | AG23: ZPersonal Area | AH23: X | AK23: 0002 | AM23: Education | AS23: 2 | AT23: 03 | AX23: 00000000 | AY23: K | AZ23: ZPERSAREA | BA23: A | BD23: H | BJ23: 00000000 | BK23: 0000 | BM23: 0 | BO23: 1 | BR23: 1 | BS23: 1 | BT23: 1 | BU23: 0 | BV23: 0 | CB23: D9UVC1KT6I3G3IPEANCKEHO1L | CI23: 0000 | CM23: 12 | CN23: D5PZA7P4P3ZJGP4ENT4OUJLKP | CO23: D5PZA7P4P478AWDZV7GTITKAH | CP23: Total Disabled Employees % | CQ23: 0010 | CS23: F | CU23: L | DG23: 12 | DH23: 0ORGUNIT | DI23: 0PLANT | DJ23: Plant | DK23: 0000 | DL23: X | DM23: 0 | DN23: 0 | DO23: 0 | DT23: 0000 | EA23: 12 | EB23: D4O21W1IBUDEJ9LV077JD8NI1 | EC23: D5PZA7P4P4EX53NL2LSY73J09 | EE23: 0 | EI23: 00 | EJ23: X | EK23: 0 | EL23: 0 | FY23: 7 | FZ23: ZZPERAR | GA23: 1 | GB23: M | GJ23: 0 | GL23: 0 | GN23: 0 | GO23: ZPersonnel Area | GP23: 60 | GS23: ZPERSAREA | HW23: 12 | HX23: 0000000113
AE24: 10 | AF24: 0ORGUNIT | AG24: Organizational Unit | AH24: X | AK24: 0003 | AS24: 1 | AT24: 03 | AU24: X | AV24: ORGEH | AW24: 000 | AX24: 20150930 | AY24: K | AZ24: 0ORGUNIT | BA24: A | BD24: H | BE24: 0ORGUNIT | BF24: A | BJ24: 00000000 | BK24: 0000 | BM24: 0 | BQ24: 2 | BR24: 1 | BS24: 1 | BT24: 1 | BU24: 0 | BV24: 0 | CB24: D9UVC1KT6I47S515M6S6GX2BD | CI24: 0000 | CM24: 12 | CN24: D5PZA7P4P3ZJGP4ENT4OUJLKP | CO24: D5PZAGQNPNJN6QK9OBJM8YLMH | CP24: Not Disclosed | CQ24: 0011 | CS24: S | CU24: L | CV24: X | DG24: 12 | DH24: 0ORGUNIT | DI24: 0PURCH_ORG | DJ24: Purchasing org. | DK24: 0000 | DL24: X | DM24: 0 | DN24: 0 | DO24: 0 | DT24: 0000 | EA24: 12 | EB24: D4O21W1IBUDEJ9LV077JD8NI1 | EC24: D5PZA7P4P4FOTPZCE58K9IXA1 | EE24: 2 | EI24: 00 | EJ24: X | EK24: 0 | EL24: 0 | FY24: 6 | FZ24: ZS_DT_1 | GA24: 1 | GB24: P | GC24: I | GD24: EQ | GE24: 20150930 | GF24: 30/09/2015 | GJ24: 0 | GL24: 0 | GN24: 0 | GO24: Target date 1 | GP24: 60 | GS24: ZEMP_STRT | GT24: 20150930 | HW24: 12 | HX24: 0000000120
AE25: 10 | AF25: 0PERS_SAREA | AG25: Personnel Subarea | AH25: X | AK25: 0004 | AR25: U | AS25: 1 | AT25: 03 | AX25: 00000000 | AY25: K | AZ25: 0PERS_SAREA | BA25: A | BD25: H | BJ25: 00000000 | BK25: 0000 | BM25: 0 | BR25: 1 | BS25: 1 | BT25: 1 | BU25: 0 | BV25: 0 | CB25: D9UVC1KT6I4ZGRCWXQ7SJCGL5 | CI25: 0000 | CM25: 12 | CN25: D4O21W1IBUB3HEML1KWP5YGOP | CO25: D4O21W1IBUMMQPIYUOEW6DERD | CP25: ACZ Grade 8 P/T | CQ25: 0011 | CS25: S | CU25: L | DG25: 12 | DH25: 0ORGUNIT | DI25: 0PUR_GROUP | DJ25: Purchasing group | DK25: 0000 | DL25: X | DM25: 0 | DN25: 0 | DO25: 0 | DT25: 0000 | EA25: 12 | EB25: D4O21W1IBUDEJ9LV077JD8NI1 | EC25: D5PZA7P4P4GGICB3POO6BYBJT | EI25: 00 | EJ25: X | EK25: 0 | EL25: 0 | FY25: 6 | FZ25: ZBUDH | GA25: 1 | GB25: P | GC25: I | GD25: EQ | GE25: 20150930 | GF25: 30/09/2015 | GJ25: 0 | GL25: 0 | GN25: 0 | GO25: Master Data Key Date | GP25: 60 | GS25: 0DATE | GT25: 20150930 | HW25: 12 | HX25: 0000000121
AE26: 10 | AF26: ZTEILK | AG26: Checkbox for Part-Ti | AH26: X | AK26: 0005 | AS26: 1 | AT26: 03 | AX26: 00000000 | AY26: K | AZ26: ZTEILK | BA26: A | BD26: H | BJ26: 00000000 | BK26: 0000 | BM26: 0 | BR26: 1 | BS26: 1 | BT26: 1 | BU26: 0 | BV26: 0 | CB26: D9UVC1KT6I5R5DOO99NELRUUX | CI26: 0000 | CM26: 12 | CN26: D4O21W1IBUB3HEML1KWP5YGOP | CO26: D4O21W1IBV0H1VEMME7XE2JND | CP26: ACZ Grade 8 Total | CQ26: 0012 | CS26: S | CU26: L | DG26: 12 | DH26: 0ORGUNIT | DI26: 0SALESORG | DJ26: Sales Organization | DK26: 0000 | DL26: X | DM26: 0 | DN26: 0 | DO26: 0 | DT26: 0000 | EA26: 12 | EB26: D4O21W1IBUDEJ9LV077JD8NI1 | EC26: D5PZA7P4P4H86YMV183SEDPTL | EI26: 00 | EJ26: X | EK26: 0 | EL26: 0 | FY26: 6 | FZ26: ZZPERAR | GA26: 1 | GB26: M | GJ26: 0 | GL26: 0 | GN26: 0 | GO26: ZPersonnel Area | GP26: 60 | GS26: ZPERSAREA | HW26: 12 | HX26: 0000010001 | HY26: D9UV84VAX4ANMLF7VE1O5UCXL
AE27: 10 | AF27: ZPRIM_ID | AG27: ZPrimary Employee ID | AH27: X | AK27: 0006 | AS27: 2 | AT27: 03 | AX27: 00000000 | AY27: K | AZ27: ZPRIM_ID | BA27: A | BD27: H | BJ27: 00000000 | BK27: 0000 | BM27: 0 | BR27: 1 | BS27: 1 | BT27: 1 | BU27: 0 | BV27: 0 | CB27: D9UVC1KT6I6IU00FKT30O794P | CI27: 0000 | CM27: 12 | CN27: D5PZA7P4P3ZJGP4ENT4OUJLKP | CO27: D5PZA7P4P48RO51IIAC1NOCU1 | CP27: Total White Male Non Disabled Employees | CQ27: 0012 | CS27: S | CU27: L | CV27: X | DG27: 12 | DH27: 0ORGUNIT | DI27: 0SALES_GRP | DJ27: Sales group | DK27: 0000 | DL27: X | DM27: 0 | DN27: 0 | DO27: 0 | DT27: 0000 | EA27: 12 | EB27: D4O21W1IBUDEJ9LV077JD8NI1 | EC27: D5PZAGQNPNJN6QK9OBJM8YLMH | EI27: 00 | EJ27: X | EK27: 0 | EL27: 0 | FY27: 5 | FZ27: ZS_DT_1 | GA27: 1 | GB27: P | GC27: I | GD27: EQ | GE27: 20150930 | GF27: 30/09/2015 | GJ27: 0 | GL27: 0 | GN27: 0 | GO27: Target date 1 | GP27: 60 | GS27: ZEMP_STRT | GT27: 20150930 | HW27: 12 | HX27: 0000010002 | HY27: D9UV84VAX3YCOO72QR3V300L5
AE28: 10 | AF28: 0CNTRCTTYPE | AG28: Contract Type | AH28: X | AK28: 0007 | AS28: 1 | AT28: 03 | AX28: 00000000 | AY28: K | AZ28: 0CNTRCTTYPE | BA28: A | BD28: H | BJ28: 00000000 | BK28: 0000 | BM28: 0 | BR28: 1 | BS28: 1 | BT28: 1 | BU28: 0 | BV28: 0 | CB28: D9UVC5JVXYA1OWWP25NEADP15 | CI28: 0000 | CM28: 12 | CN28: D4O21W1IBUB3HEML1KWP5YGOP | CO28: D4O21W1IBUH8YD8NLWDLPDMUX | CP28: Grade 9 - 15 F/T | CQ28: 0013 | CS28: S | CU28: L | DG28: 12 | DH28: 0ORGUNIT | DI28: 0SALES_OFF | DJ28: Sales Office | DK28: 0000 | DL28: X | DM28: 0 | DN28: 0 | DO28: 0 | DT28: 0000 | EA28: 12 | EB28: D4O21W1IBUE67VXMBQN5FO1RT | EC28: D5PZA7P4P40B5BG5ZCKAWYZUH | EI28: 00 | EJ28: X | EK28: 0 | EL28: 0 | FY28: 5 | FZ28: ZBUDH | GA28: 1 | GB28: P | GC28: I | GD28: EQ | GE28: 20150930 | GF28: 30/09/2015 | GJ28: 0 | GL28: 0 | GN28: 0 | GO28: Master Data Key Date | GP28: 60 | GS28: 0DATE | GT28: 20150930 | HW28: 12 | HX28: 0000000105
AE29: 10 | AF29: D5PZA7P4P3ZJGP4ENT4OUJLKP | AG29: WP Disability/Ethnicity Bandings Rev | AI29: X | AJ29: X | AK29: 0001 | AR29: U | AT29: 00 | AY29: K | AZ29: D5PZA7P4P3ZJGP4ENT4OUJLKP | BA29: A | BJ29: 00000000 | BK29: 0000 | BL29: X | BM29: 0 | BR29: 0 | BS29: 0 | BT29: 0 | BU29: 0 | BV29: 0 | CB29: D5PZA7P4P3ZJGP4ENT4OUJLKP | CI29: 0000 | CM29: 12 | CN29: D5PZA7P4P3ZJGP4ENT4OUJLKP | CO29: D5PZA7P4P49JCRD9TTRNQ3R3T | CP29: Total White Female Non Disabled Employees | CQ29: 0013 | CS29: S | CU29: L | CV29: X | DG29: 12 | DH29: 0CNTRCTTYPE | DI29: 0CNTRCTISFT | DJ29: Fixed-Term Contract | DK29: 0000 | DL29: X | DM29: 2 | DN29: 0 | DO29: 0 | DT29: 0000 | EA29: 12 | EB29: D4O21W1IBUE67VXMBQN5FO1RT | EC29: D5PZA7P4P412TXRXAVZWZEE49 | EI29: 00 | EJ29: X | EK29: 0 | EL29: 0 | FY29: 5 | FZ29: ZZPERAR | GA29: 1 | GB29: M | GJ29: 0 | GL29: 0 | GN29: 0 | GO29: ZPersonnel Area | GP29: 60 | GS29: ZPERSAREA | HW29: 12 | HX29: 0000000106
AE30: 10 | AF30: D4O2P4A3SH8H6WZIVSYIIRP4P | AG30: WP Teachers Bandings | AI30: X | AJ30: Y | AK30: 0001 | AR30: U | AT30: 00 | AY30: K | AZ30: D4O2P4A3SH8H6WZIVSYIIRP4P | BA30: A | BJ30: 00000000 | BK30: 0000 | BM30: 0 | BR30: 0 | BS30: 0 | BT30: 0 | BU30: 0 | BV30: 0 | CB30: D4O2P4A3SH8H6WZIVSYIIRP4P | CI30: 0000 | CM30: 12 | CN30: D5PZA7P4P3ZJGP4ENT4OUJLKP | CO30: D5PZA7P4P4AB1DP15D79SJ5DL | CP30: Total White Non Disabled Employees | CQ30: 0014 | CS30: F | CU30: L | DG30: 11 | DH30: 0ORGUNIT | DI30: 0BBPPURGRPX | DJ30: Ind.Purchasing Group | DK30: 0000 | DL30: X | DM30: 2 | DN30: 0 | DO30: 0 | DT30: 0000 | EA30: 12 | EB30: D4O21W1IBUE67VXMBQN5FO1RT | EC30: D5PZA7P4P41UIK3OMFFJ1TSE1 | EE30: 0 | EI30: 00 | EJ30: X | EK30: 0 | EL30: 0 | FY30: 4 | FZ30: ZS_DT_1 | GA30: 1 | GB30: P | GC30: I | GD30: EQ | GE30: 20150930 | GF30: 30/09/2015 | GJ30: 0 | GL30: 0 | GN30: 0 | GO30: Target date 1 | GP30: 60 | GS30: ZEMP_STRT | GT30: 20150930 | HW30: 12 | HX30: 0000000112 | HY30: 0
AE31: 9 | AF31: 0PAYRL_AREA | AG31: Payroll Area | AH31: X | AK31: 0001 | AS31: 0 | AT31: 03 | AX31: 00000000 | AY31: K | AZ31: 0PAYRL_AREA | BA31: A | BD31: H | BJ31: 00000000 | BK31: 0000 | BM31: 0 | BR31: 1 | BS31: 1 | BT31: 1 | BU31: 0 | BV31: 0 | CB31: D9UV84VAX459U94WMM0DOUL15 | CI31: 0000 | CM31: 12 | CN31: D4O21W1IBUB3HEML1KWP5YGOP | CO31: DEN03PYIT5FSSAA2U7ST53H15 | CP31: Grade 9 - 15 P/T | CQ31: 0014 | CS31: S | CU31: L | DG31: 11 | DH31: 0ORGUNIT | DI31: 0BBPPURORGX | DJ31: Ind. Purchasing Org. | DK31: 0000 | DL31: X | DM31: 2 | DN31: 0 | DO31: 0 | DT31: 0000 | EA31: 12 | EB31: D4O21W1IBUE67VXMBQN5FO1RT | EC31: D5PZA7P4P42M76FFXYV5496NT | EE31: 0 | EI31: 00 | EJ31: X | EK31: 0 | EL31: 0 | FY31: 4 | FZ31: ZBUDH | GA31: 1 | GB31: P | GC31: I | GD31: EQ | GE31: 20150930 | GF31: 30/09/2015 | GJ31: 0 | GL31: 0 | GN31: 0 | GO31: Master Data Key Date | GP31: 60 | GS31: 0DATE | GT31: 20150930 | HW31: 12 | HX31: 0000000200 | HY31: X
AE32: 9 | AF32: ZPERSAREA | AG32: ZPersonal Area | AH32: X | AK32: 0002 | AM32: Social Work | AS32: 2 | AT32: 03 | AX32: 00000000 | AY32: K | AZ32: ZPERSAREA | BA32: A | BD32: H | BJ32: 00000000 | BK32: 0000 | BM32: 0 | BO32: 1 | BR32: 1 | BS32: 1 | BT32: 1 | BU32: 0 | BV32: 0 | CB32: D9UV84VAX461IVGNY5FZR9ZAX | CI32: 0000 | CM32: 12 | CN32: D5PZA7P4P3ZJGP4ENT4OUJLKP | CO32: D5PZA7P4P4B2Q00SGWMVUYJND | CP32: Total Ethnic Male Non Disabled Employees | CQ32: 0015 | CS32: S | CU32: L | CV32: X | DG32: 11 | DH32: 0ORGUNIT | DI32: 0BBP_BUYID | DJ32: Buyer ID | DK32: 0000 | DL32: X | DM32: 5 | DN32: 0 | DO32: 0 | DT32: 0000 | EA32: 12 | EB32: D4O21W1IBUE67VXMBQN5FO1RT | EC32: D5PZA7P4P43DVSR79IAR6OKXL | EE32: 0 | EI32: 00 | EJ32: X | EK32: 0 | EL32: 0 | FY32: 4 | FZ32: ZZPERAR | GA32: 1 | GB32: M | GJ32: 0 | GL32: 0 | GN32: 0 | GO32: ZPersonnel Area | GP32: 60 | GS32: ZPERSAREA | HW32: 12 | HX32: 0000004000 | HY32: X
AE33: 9 | AF33: 0ORGUNIT | AG33: Organizational Unit | AH33: X | AK33: 0003 | AS33: 1 | AT33: 03 | AU33: X | AV33: ORGEH | AW33: 000 | AX33: 20150930 | AY33: K | AZ33: 0ORGUNIT | BA33: A | BD33: H | BE33: 0ORGUNIT | BF33: A | BJ33: 00000000 | BK33: 0000 | BM33: 0 | BQ33: 2 | BR33: 1 | BS33: 1 | BT33: 1 | BU33: 0 | BV33: 0 | CB33: D9UV84VAX46T7HSF9OVLTPDKP | CI33: 0000 | CM33: 12 | CN33: D4O21W1IBUB3HEML1KWP5YGOP | CO33: D4O21W1IBUO63Y6HHRA4B87AX | CP33: Grade 9 - 15 Total | CQ33: 0015 | CS33: S | CU33: L | DG33: 11 | DH33: 0ORGUNIT | DI33: 0BBP_ISCOMP | DJ33: Organizational Unit is Company | DK33: 0000 | DL33: X | DM33: 1 | DN33: 0 | DO33: 0 | DT33: 0000 | EA33: 12 | EB33: D4O21W1IBUE67VXMBQN5FO1RT | EC33: D5PZA7P4P445KF2YL1QD93Z7D | EE33: 0 | EI33: 00 | EJ33: X | EK33: 0 | EL33: 0 | HW33: 12 | HX33: 0000009001 | HY33: Workforce Profile Disability Excl Casual & Sessional
AE34: 9 | AF34: 0PERS_SAREA | AG34: Personnel Subarea | AH34: X | AK34: 0004 | AR34: U | AS34: 1 | AT34: 03 | AX34: 00000000 | AY34: K | AZ34: 0PERS_SAREA | BA34: A | BD34: H | BJ34: 00000000 | BK34: 0000 | BM34: 0 | BR34: 1 | BS34: 1 | BT34: 1 | BU34: 0 | BV34: 0 | CB34: D9UV84VAX47KW446L8B7W4RUH | CI34: 0000 | CM34: 12 | CN34: D5PZA7P4P3ZJGP4ENT4OUJLKP | CO34: D5PZA7P4P4BUEMCJSG2HXDXX5 | CP34: Total Ethnic Female Non Disabled Employees | CQ34: 0016 | CS34: S | CU34: L | CV34: X | DG34: 11 | DH34: 0ORGUNIT | DI34: 0BUS_AREA | DJ34: Business area | DK34: 0000 | DL34: X | DM34: 0 | DN34: 0 | DO34: 0 | DT34: 0000 | EA34: 12 | EB34: D4O21W1IBUE67VXMBQN5FO1RT | EC34: D5PZA7P4P44X91EPWL5ZBJDH5 | EI34: 00 | EJ34: X | EK34: 0 | EL34: 0 | HW34: 12 | HX34: 0000000114 | HY34: 1
AE35: 9 | AF35: ZTEILK | AG35: Checkbox for Part-Ti | AH35: X | AK35: 0005 | AS35: 1 | AT35: 03 | AX35: 00000000 | AY35: K | AZ35: ZTEILK | BA35: A | BD35: H | BJ35: 00000000 | BK35: 0000 | BM35: 0 | BR35: 1 | BS35: 1 | BT35: 1 | BU35: 0 | BV35: 0 | CB35: D9UV84VAX48CKQFXWRQTYK649 | CI35: 0000 | CM35: 12 | CN35: D4O21W1IBUB3HEML1KWP5YGOP | CO35: D4O21W1IBUGH9QWWACXZMY8L5 | CP35: ACZ Grade 9 - 15 F/T | CQ35: 0016 | CS35: S | CU35: L | DG35: 11 | DH35: 0ORGUNIT | DI35: 0COMP_CODE | DJ35: Company code | DK35: 0000 | DL35: X | DM35: 0 | DN35: 0 | DO35: 0 | DT35: 0000 | EA35: 12 | EB35: D4O21W1IBUE67VXMBQN5FO1RT | EC35: D5PZA7P4P45OXNQH84LLDYRQX | EI35: 00 | EJ35: X | EK35: 0 | EL35: 0 | HW35: 11 | HX35: 0000000107 | HY35: D9UV84VAX3YCOO72QR3V300L5
AE36: 9 | AF36: ZPRIM_ID | AG36: ZPrimary Employee ID | AH36: X | AK36: 0006 | AS36: 2 | AT36: 03 | AX36: 00000000 | AY36: K | AZ36: ZPRIM_ID | BA36: A | BD36: H | BJ36: 00000000 | BK36: 0000 | BM36: 0 | BR36: 1 | BS36: 1 | BT36: 1 | BU36: 0 | BV36: 0 | CB36: D9UV84VAX4949CRP8B6G0ZKE1 | CI36: 0000 | CM36: 12 | CN36: D4O21W1IBUB3HEML1KWP5YGOP | CO36: D4O21W1IBUNEFBUQ67UI8ST15 | CP36: ACZ Grade 9 - 15 P/T | CQ36: 0017 | CS36: S | CU36: L | DG36: 11 | DH36: 0ORGUNIT | DI36: 0CO_MST_AR | DJ36: Controlling Area of Master Cost Center | DK36: 0000 | DL36: X | DM36: 0 | DN36: 0 | DO36: 0 | DT36: 0000 | EA36: 12 | EB36: D4O21W1IBUE67VXMBQN5FO1RT | EC36: D5PZA7P4P46GMA28JO17GE60P | EE36: 0 | EI36: 00 | EJ36: X | EK36: 0 | EL36: 0 | HW36: 11 | HX36: 0000000100 | HY36: X
AE37: 9 | AF37: 0CNTRCTTYPE | AG37: Contract Type | AH37: X | AK37: 0007 | AS37: 1 | AT37: 03 | AX37: 00000000 | AY37: K | AZ37: 0CNTRCTTYPE | BA37: A | BD37: H | BJ37: 00000000 | BK37: 0000 | BM37: 0 | BR37: 1 | BS37: 1 | BT37: 1 | BU37: 0 | BV37: 0 | CB37: D9UV9459QXWEJPYDHUNPBXGQH | CI37: 0000 | CM37: 12 | CN37: D5PZA7P4P3ZJGP4ENT4OUJLKP | CO37: D5PZA7P4P4CM38OB3ZI3ZTC6X | CP37: Total Ethnic Non Disabled Employees | CQ37: 0017 | CS37: F | CU37: L | DG37: 11 | DH37: 0ORGUNIT | DI37: 0CRMSALGRPX | DJ37: Sls Group: Indicator | DK37: 0000 | DL37: X | DM37: 2 | DN37: 0 | DO37: 0 | DT37: 0000 | EA37: 12 | EB37: D4O21W1IBUE67VXMBQN5FO1RT | EC37: D5PZA7P4P478AWDZV7GTITKAH | EE37: 2 | EI37: 00 | EJ37: X | EK37: 0 | EL37: 0 | HW37: 11 | HX37: 0000000101
AE38: 9 | AF38: D5PZA7P4P3ZJGP4ENT4OUJLKP | AG38: WP Disability/Ethnicity Bandings Rev | AI38: X | AJ38: X | AK38: 0001 | AR38: U | AT38: 00 | AY38: K | AZ38: D5PZA7P4P3ZJGP4ENT4OUJLKP | BA38: A | BJ38: 00000000 | BK38: 0000 | BL38: X | BM38: 0 | BR38: 0 | BS38: 0 | BT38: 0 | BU38: 0 | BV38: 0 | CB38: D5PZA7P4P3ZJGP4ENT4OUJLKP | CI38: 0000 | CM38: 12 | CN38: D5PZA7P4P3ZJGP4ENT4OUJLKP | CO38: D5PZA7P4P4DDRV02FIXQ28QGP | CP38: Total Male Non Disabled Employees | CQ38: 0018 | CS38: S | CU38: L | CV38: X | DG38: 11 | DH38: 0ORGUNIT | DI38: 0CRMSALOFFX | DJ38: Sls Office:Indicator | DK38: 0000 | DL38: X | DM38: 2 | DN38: 0 | DO38: 0 | DT38: 0000 | EA38: 12 | EB38: D4O21W1IBUE67VXMBQN5FO1RT | EC38: D5PZA7P4P47ZZIPR6QWFL8YK9 | EI38: 00 | EJ38: X | EK38: 0 | EL38: 0 | HW38: 11 | HX38: 0000000104 | HY38: 1
AE39: 9 | AF39: D4O21W1IBUB3HEML1KWP5YGOP | AG39: WP Bandings | AI39: X | AJ39: Y | AK39: 0001 | AR39: U | AT39: 00 | AY39: K | AZ39: D4O21W1IBUB3HEML1KWP5YGOP | BA39: A | BJ39: 00000000 | BK39: 0000 | BM39: 0 | BR39: 0 | BS39: 0 | BT39: 0 | BU39: 0 | BV39: 0 | CB39: D4O21W1IBUB3HEML1KWP5YGOP | CI39: 0000 | CM39: 12 | CN39: D4O21W1IBUB3HEML1KWP5YGOP | CO39: DEN04FDC1K04NBJW47LA7T915 | CP39: ACZ Grade 9 - 15 Total | CQ39: 0018 | CS39: S | CU39: L | DG39: 11 | DH39: 0ORGUNIT | DI39: 0CRMSALORGX | DJ39: Sales Org. Indicator | DK39: 0000 | DL39: X | DM39: 2 | DN39: 0 | DO39: 0 | DT39: 0000 | EA39: 12 | EB39: D4O21W1IBUE67VXMBQN5FO1RT | EC39: D5PZA7P4P48RO51IIAC1NOCU1 | EI39: 00 | EJ39: X | EK39: 0 | EL39: 0 | HW39: 11 | HX39: 0000000103
AE40: 8 | AF40: 0PAYRL_AREA | AG40: Payroll Area | AH40: X | AK40: 0001 | AS40: 0 | AT40: 03 | AX40: 00000000 | AY40: K | AZ40: 0PAYRL_AREA | BA40: A | BD40: H | BJ40: 00000000 | BK40: 0000 | BM40: 0 | BR40: 1 | BS40: 1 | BT40: 1 | BU40: 0 | BV40: 0 | CB40: D9UV84VAX459U94WMM0DOUL15 | CI40: 0000 | CM40: 12 | CN40: D5PZA7P4P3ZJGP4ENT4OUJLKP | CO40: D5PZA7P4P4E5GHBTR2DC4O4QH | CP40: Total Female Non Disabled Employees | CQ40: 0019 | CS40: S | CU40: L | CV40: X | DG40: 11 | DH40: 0ORGUNIT | DI40: 0CRMSRVTGRP | DJ40: Ex. CRM Service Org. | DK40: 0000 | DL40: X | DM40: 1 | DN40: 0 | DO40: 0 | DT40: 0000 | EA40: 12 | EB40: D4O21W1IBUE67VXMBQN5FO1RT | EC40: D5PZA7P4P49JCRD9TTRNQ3R3T | EI40: 00 | EJ40: X | EK40: 0 | EL40: 0 | HW40: 11 | HX40: 0000000102 | HY40: 1
AE41: 8 | AF41: ZPERSAREA | AG41: ZPersonal Area | AH41: X | AK41: 0002 | AM41: Land and Environmental | AS41: 2 | AT41: 03 | AX41: 00000000 | AY41: K | AZ41: ZPERSAREA | BA41: A | BD41: H | BJ41: 00000000 | BK41: 0000 | BM41: 0 | BO41: 1 | BR41: 1 | BS41: 1 | BT41: 1 | BU41: 0 | BV41: 0 | CB41: D9UV84VAX461IVGNY5FZR9ZAX | CI41: 0000 | CM41: 12 | CN41: D4O21W1IBUB3HEML1KWP5YGOP | CO41: D4O21W1IBUWMMRRU0P1V1XKAH | CP41: Other (Not Migrated) F/T | CQ41: 0019 | CS41: F | CU41: L | DG41: 11 | DH41: 0ORGUNIT | DI41: 0CRM_SALGRP | DJ41: CRM Sales Group | DK41: 0000 | DL41: X | DM41: 1 | DN41: 0 | DO41: 0 | DT41: 0000 | EA41: 12 | EB41: D4O21W1IBUE67VXMBQN5FO1RT | EC41: D5PZA7P4P4AB1DP15D79SJ5DL | EE41: 0 | EI41: 00 | EJ41: X | EK41: 0 | EL41: 0 | HW41: 11 | HX41: 0000000108
AE42: 8 | AF42: 0ORGUNIT | AG42: Organizational Unit | AH42: X | AK42: 0003 | AS42: 1 | AT42: 03 | AU42: X | AV42: ORGEH | AW42: 000 | AX42: 20150930 | AY42: K | AZ42: 0ORGUNIT | BA42: A | BD42: H | BE42: 0ORGUNIT | BF42: A | BJ42: 00000000 | BK42: 0000 | BM42: 0 | BQ42: 2 | BR42: 1 | BS42: 1 | BT42: 1 | BU42: 0 | BV42: 0 | CB42: D9UV84VAX46T7HSF9OVLTPDKP | CI42: 0000 | CM42: 12 | CN42: D5PZA7P4P3ZJGP4ENT4OUJLKP | CO42: D5PZA7P4P4EX53NL2LSY73J09 | CP42: Total Non Disabled Employees | CQ42: 0020 | CS42: F | CU42: L | DG42: 11 | DH42: 0ORGUNIT | DI42: 0CRM_SALOFF | DJ42: CRM Sales Office | DK42: 0000 | DL42: X | DM42: 1 | DN42: 0 | DO42: 0 | DT42: 0000 | EA42: 12 | EB42: D4O21W1IBUE67VXMBQN5FO1RT | EC42: D5PZA7P4P4B2Q00SGWMVUYJND | EE42: 0 | EI42: 00 | EJ42: X | EK42: 0 | EL42: 0 | HW42: 11 | HX42: 0000009002 | HY42: D4O21W1IBUB3HEML1KWP5YGOP
AE43: 8 | AF43: 0PERS_SAREA | AG43: Personnel Subarea | AH43: X | AK43: 0004 | AR43: U | AS43: 1 | AT43: 03 | AX43: 00000000 | AY43: K | AZ43: 0PERS_SAREA | BA43: A | BD43: H | BJ43: 00000000 | BK43: 0000 | BM43: 0 | BR43: 1 | BS43: 1 | BT43: 1 | BU43: 0 | BV43: 0 | CB43: D9UV84VAX47KW446L8B7W4RUH | CI43: 0000 | CM43: 12 | CN43: D4O21W1IBUB3HEML1KWP5YGOP | CO43: DEN07Y1DTSNAWTLQYCBLILED5 | CP43: Other (Not Migrated) P/T | CQ43: 0020 | CS43: F | CU43: L | DG43: 11 | DH43: 0ORGUNIT | DI43: 0CRM_SALORG | DJ43: CRM Sales Org. | DK43: 0000 | DL43: X | DM43: 1 | DN43: 0 | DO43: 0 | DT43: 0000 | EA43: 12 | EB43: D4O21W1IBUE67VXMBQN5FO1RT | EC43: D5PZA7P4P4BUEMCJSG2HXDXX5 | EE43: 0 | EI43: 00 | EJ43: X | EK43: 0 | EL43: 0 | HW43: 11 | HX43: 0000009000
AE44: 8 | AF44: ZTEILK | AG44: Checkbox for Part-Ti | AH44: X | AK44: 0005 | AS44: 1 | AT44: 03 | AX44: 00000000 | AY44: K | AZ44: ZTEILK | BA44: A | BD44: H | BJ44: 00000000 | BK44: 0000 | BM44: 0 | BR44: 1 | BS44: 1 | BT44: 1 | BU44: 0 | BV44: 0 | CB44: D9UV84VAX48CKQFXWRQTYK649 | CI44: 0000 | CM44: 12 | CN44: D5PZA7P4P3ZJGP4ENT4OUJLKP | CO44: D5PZA7P4P4FOTPZCE58K9IXA1 | CP44: Total Non Disabled Employees % | CQ44: 0021 | CS44: F | CU44: L | DG44: 11 | DH44: 0ORGUNIT | DI44: 0CRM_SRVORG | DJ44: Service Org. CRM | DK44: 0000 | DL44: X | DM44: 1 | DN44: 0 | DO44: 0 | DT44: 0000 | EA44: 12 | EB44: D4O21W1IBUE67VXMBQN5FO1RT | EC44: D5PZA7P4P4CM38OB3ZI3ZTC6X | EE44: 0 | EI44: 00 | EJ44: X | EK44: 0 | EL44: 0 | HW44: 11 | HX44: 0000000010
AE45: 8 | AF45: ZPRIM_ID | AG45: ZPrimary Employee ID | AH45: X | AK45: 0006 | AS45: 2 | AT45: 03 | AX45: 00000000 | AY45: K | AZ45: ZPRIM_ID | BA45: A | BD45: H | BJ45: 00000000 | BK45: 0000 | BM45: 0 | BR45: 1 | BS45: 1 | BT45: 1 | BU45: 0 | BV45: 0 | CB45: D9UV84VAX4949CRP8B6G0ZKE1 | CI45: 0000 | CM45: 12 | CN45: D4O21W1IBUB3HEML1KWP5YGOP | CO45: DEN07Y1DTSPLYOL0WYMFPVL6H | CP45: Other (Not Migrated) Total | CQ45: 0021 | CS45: F | CU45: L | DG45: 11 | DH45: 0ORGUNIT | DI45: 0LOGSYS | DJ45: Source System | DK45: 0000 | DL45: X | DM45: 1 | DN45: 0 | DO45: 0 | DT45: 0000 | EA45: 12 | EB45: D4O21W1IBUE67VXMBQN5FO1RT | EC45: D5PZA7P4P4DDRV02FIXQ28QGP | EI45: 00 | EJ45: X | EK45: 0 | EL45: 0 | HW45: 11 | HX45: 0000000021
AE46: 8 | AF46: 0CNTRCTTYPE | AG46: Contract Type | AH46: X | AK46: 0007 | AS46: 1 | AT46: 03 | AX46: 00000000 | AY46: K | AZ46: 0CNTRCTTYPE | BA46: A | BD46: H | BJ46: 00000000 | BK46: 0000 | BM46: 0 | BR46: 1 | BS46: 1 | BT46: 1 | BU46: 0 | BV46: 0 | CB46: D9UV9459QXWEJPYDHUNPBXGQH | CI46: 0000 | CM46: 12 | CN46: D5PZA7P4P3ZJGP4ENT4OUJLKP | CO46: D5PZA7P4P4GGICB3POO6BYBJT | CP46: Total Male Employees | CQ46: 0022 | CS46: S | CU46: L | CV46: X | DG46: 11 | DH46: 0ORGUNIT | DI46: 0MAST_CCTR | DJ46: Master Cost Center | DK46: 0000 | DL46: X | DM46: 0 | DN46: 0 | DO46: 0 | DT46: 0000 | EA46: 12 | EB46: D4O21W1IBUE67VXMBQN5FO1RT | EC46: D5PZA7P4P4E5GHBTR2DC4O4QH | EI46: 00 | EJ46: X | EK46: 0 | EL46: 0 | HW46: 11 | HX46: 0000000022
AE47: 8 | AF47: D5PZA7P4P3ZJGP4ENT4OUJLKP | AG47: WP Disability/Ethnicity Bandings Rev | AI47: X | AJ47: X | AK47: 0001 | AR47: U | AT47: 00 | AY47: K | AZ47: D5PZA7P4P3ZJGP4ENT4OUJLKP | BA47: A | BJ47: 00000000 | BK47: 0000 | BL47: X | BM47: 0 | BR47: 0 | BS47: 0 | BT47: 0 | BU47: 0 | BV47: 0 | CB47: D5PZA7P4P3ZJGP4ENT4OUJLKP | CI47: 0000 | CM47: 12 | CN47: D4O21W1IBUB3HEML1KWP5YGOP | CO47: D4O21W1IBUY600FCNRX36SCU1 | CP47: Total Teaching Staff F/T | CQ47: 0022 | CS47: S | CU47: L | DG47: 11 | DH47: 0ORGUNIT | DI47: 0PERS_AREA | DJ47: Personnel Area | DK47: 0000 | DL47: X | DM47: 1 | DN47: 0 | DO47: 0 | DT47: 0000 | EA47: 12 | EB47: D4O21W1IBUE67VXMBQN5FO1RT | EC47: D5PZA7P4P4EX53NL2LSY73J09 | EE47: 0 | EI47: 00 | EJ47: X | EK47: 0 | EL47: 0 | HW47: 11 | HX47: 0000000023
AE48: 8 | AF48: D4O21W1IBUB3HEML1KWP5YGOP | AG48: WP Bandings | AI48: X | AJ48: Y | AK48: 0001 | AR48: U | AT48: 00 | AY48: K | AZ48: D4O21W1IBUB3HEML1KWP5YGOP | BA48: A | BJ48: 00000000 | BK48: 0000 | BM48: 0 | BR48: 0 | BS48: 0 | BT48: 0 | BU48: 0 | BV48: 0 | CB48: D4O21W1IBUB3HEML1KWP5YGOP | CI48: 0000 | CM48: 12 | CN48: D4O21W1IBUB3HEML1KWP5YGOP | CO48: DEN0OSIFULCZTDTFE8U7RBQIH | CP48: Total Teaching Staff P/T | CQ48: 0023 | CS48: S | CU48: L | DG48: 11 | DH48: 0ORGUNIT | DI48: 0PERS_SAREA | DJ48: Personnel Subarea | DK48: 0000 | DL48: X | DM48: 1 | DN48: 0 | DO48: 0 | DT48: 0000 | EA48: 12 | EB48: D4O21W1IBUE67VXMBQN5FO1RT | EC48: D5PZA7P4P4FOTPZCE58K9IXA1 | EE48: 2 | EI48: 00 | EJ48: X | EK48: 0 | EL48: 0 | HW48: 11 | HX48: 0000000030
AE49: 7 | AF49: 0PAYRL_AREA | AG49: Payroll Area | AH49: X | AK49: 0001 | AS49: 0 | AT49: 03 | AX49: 00000000 | AY49: K | AZ49: 0PAYRL_AREA | BA49: A | BD49: H | BJ49: 00000000 | BK49: 0000 | BM49: 0 | BR49: 1 | BS49: 1 | BT49: 1 | BU49: 0 | BV49: 0 | CB49: D9UV84VAX459U94WMM0DOUL15 | CI49: 0000 | CM49: 12 | CN49: D5PZA7P4P3ZJGP4ENT4OUJLKP | CO49: D5PZA7P4P4H86YMV183SEDPTL | CP49: Total Female Employees | CQ49: 0023 | CS49: S | CU49: L | CV49: X | DG49: 11 | DH49: 0ORGUNIT | DI49: 0PLANT | DJ49: Plant | DK49: 0000 | DL49: X | DM49: 0 | DN49: 0 | DO49: 0 | DT49: 0000 | EA49: 12 | EB49: D4O21W1IBUE67VXMBQN5FO1RT | EC49: D5PZA7P4P4GGICB3POO6BYBJT | EI49: 00 | EJ49: X | EK49: 0 | EL49: 0 | HW49: 11 | HX49: 0000000040
AE50: 7 | AF50: ZPERSAREA | AG50: ZPersonal Area | AH50: X | AK50: 0002 | AM50: Financial | AS50: 2 | AT50: 03 | AX50: 00000000 | AY50: K | AZ50: ZPERSAREA | BA50: A | BD50: H | BJ50: 00000000 | BK50: 0000 | BM50: 0 | BO50: 1 | BR50: 1 | BS50: 1 | BT50: 1 | BU50: 0 | BV50: 0 | CB50: D9UV84VAX461IVGNY5FZR9ZAX | CI50: 0000 | CM50: 12 | CN50: D5PZA7P4P3ZJGP4ENT4OUJLKP | CO50: D5PZA7P4P47ZZIPR6QWFL8YK9 | CP50: Total Workforce | CQ50: 0024 | CS50: S | CU50: L | CV50: X | DG50: 11 | DH50: 0ORGUNIT | DI50: 0PURCH_ORG | DJ50: Purchasing org. | DK50: 0000 | DL50: X | DM50: 0 | DN50: 0 | DO50: 0 | DT50: 0000 | EA50: 12 | EB50: D4O21W1IBUE67VXMBQN5FO1RT | EC50: D5PZA7P4P4H86YMV183SEDPTL | EI50: 00 | EJ50: X | EK50: 0 | EL50: 0 | HW50: 11 | HX50: 0000000041
AE51: 7 | AF51: 0ORGUNIT | AG51: Organizational Unit | AH51: X | AK51: 0003 | AS51: 1 | AT51: 03 | AU51: X | AV51: ORGEH | AW51: 000 | AX51: 20150930 | AY51: K | AZ51: 0ORGUNIT | BA51: A | BD51: H | BE51: 0ORGUNIT | BF51: A | BJ51: 00000000 | BK51: 0000 | BM51: 0 | BQ51: 2 | BR51: 1 | BS51: 1 | BT51: 1 | BU51: 0 | BV51: 0 | CB51: D9UV84VAX46T7HSF9OVLTPDKP | CI51: 0000 | CM51: 12 | CN51: D4O21W1IBUB3HEML1KWP5YGOP | CO51: DEN0OSIFULDRI056PS9TTR4S9 | CP51: Total Teaching Staff | CQ51: 0024 | CS51: S | CU51: L | DG51: 11 | DH51: 0ORGUNIT | DI51: 0PUR_GROUP | DJ51: Purchasing group | DK51: 0000 | DL51: X | DM51: 0 | DN51: 0 | DO51: 0 | DT51: 0000 | EA51: 12 | EB51: D4O21W1IBUE67VXMBQN5FO1RT | EC51: D5PZAGQNPNJN6QK9OBJM8YLMH | EI51: 00 | EJ51: X | EK51: 0 | EL51: 0 | HW51: 11 | HX51: 0000000042 | HY51: 0
AE52: 7 | AF52: 0PERS_SAREA | AG52: Personnel Subarea | AH52: X | AK52: 0004 | AR52: U | AS52: 1 | AT52: 03 | AX52: 00000000 | AY52: K | AZ52: 0PERS_SAREA | BA52: A | BD52: H | BJ52: 00000000 | BK52: 0000 | BM52: 0 | BR52: 1 | BS52: 1 | BT52: 1 | BU52: 0 | BV52: 0 | CB52: D9UV84VAX47KW446L8B7W4RUH | CI52: 0000 | CM52: 12 | CN52: D4O21W1IBUB3HEML1KWP5YGOP | CO52: DEN0OSIFULEJ6MGY1BPFW6J21 | CP52: Total Non-Teaching Staff F/T | CQ52: 0025 | CS52: S | CU52: L | DG52: 11 | DH52: 0ORGUNIT | DI52: 0SALESORG | DJ52: Sales Organization | DK52: 0000 | DL52: X | DM52: 0 | DN52: 0 | DO52: 0 | DT52: 0000 | EA52: 12 | EB52: D4O21W1IBUEXWI9DNA2RI3G1L | EC52: D5PZA7P4P40B5BG5ZCKAWYZUH | EI52: 00 | EJ52: X | EK52: 0 | EL52: 0 | HW52: 11 | HX52: 0000000043 | HY52: 0
AE53: 7 | AF53: ZTEILK | AG53: Checkbox for Part-Ti | AH53: X | AK53: 0005 | AS53: 1 | AT53: 03 | AX53: 00000000 | AY53: K | AZ53: ZTEILK | BA53: A | BD53: H | BJ53: 00000000 | BK53: 0000 | BM53: 0 | BR53: 1 | BS53: 1 | BT53: 1 | BU53: 0 | BV53: 0 | CB53: D9UV84VAX48CKQFXWRQTYK649 | CI53: 0000 | CM53: 12 | CN53: D4O21W1IBUB3HEML1KWP5YGOP | CO53: DEN07Y1DTSOUA299LF6TNG6WP | CP53: Total Non-Teaching Staff P/T | CQ53: 0026 | CS53: S | CU53: L | DG53: 11 | DH53: 0ORGUNIT | DI53: 0SALES_GRP | DJ53: Sales group | DK53: 0000 | DL53: X | DM53: 0 | DN53: 0 | DO53: 0 | DT53: 0000 | EA53: 12 | EB53: D4O21W1IBUEXWI9DNA2RI3G1L | EC53: D5PZA7P4P412TXRXAVZWZEE49 | EI53: 00 | EJ53: X | EK53: 0 | EL53: 0 | HW53: 11 | HX53: 0000000109 | HY53: 0
AE54: 7 | AF54: ZPRIM_ID | AG54: ZPrimary Employee ID | AH54: X | AK54: 0006 | AS54: 2 | AT54: 03 | AX54: 00000000 | AY54: K | AZ54: ZPRIM_ID | BA54: A | BD54: H | BJ54: 00000000 | BK54: 0000 | BM54: 0 | BR54: 1 | BS54: 1 | BT54: 1 | BU54: 0 | BV54: 0 | CB54: D9UV84VAX4949CRP8B6G0ZKE1 | CI54: 0000 | CM54: 12 | CN54: D4O21W1IBUB3HEML1KWP5YGOP | CO54: DEN07Y1DTSR5BX8JK1HNUQDQ1 | CP54: Total Non-Teaching Staff | CQ54: 0027 | CS54: S | CU54: L | DG54: 11 | DH54: 0ORGUNIT | DI54: 0SALES_OFF | DJ54: Sales Office | DK54: 0000 | DL54: X | DM54: 0 | DN54: 0 | DO54: 0 | DT54: 0000 | EA54: 12 | EB54: D4O21W1IBUEXWI9DNA2RI3G1L | EC54: D5PZA7P4P41UIK3OMFFJ1TSE1 | EE54: 0 | EI54: 00 | EJ54: X | EK54: 0 | EL54: 0 | HW54: 11 | HX54: 0000000113
AE55: 7 | AF55: 0CNTRCTTYPE | AG55: Contract Type | AH55: X | AK55: 0007 | AS55: 1 | AT55: 03 | AX55: 00000000 | AY55: K | AZ55: 0CNTRCTTYPE | BA55: A | BD55: H | BJ55: 00000000 | BK55: 0000 | BM55: 0 | BR55: 1 | BS55: 1 | BT55: 1 | BU55: 0 | BV55: 0 | CB55: D9UV9459QXWEJPYDHUNPBXGQH | CI55: 0000 | CM55: 12 | CN55: D4O21W1IBUB3HEML1KWP5YGOP | CO55: D4O21W1IBUXEBE3LC8HH4CYK9 | CP55: Total - All WPBR Grades F/T | CQ55: 0028 | CS55: F | CU55: L | DG55: 11 | DH55: 0CNTRCTTYPE | DI55: 0CNTRCTISFT | DJ55: Fixed-Term Contract | DK55: 0000 | DL55: X | DM55: 2 | DN55: 0 | DO55: 0 | DT55: 0000 | EA55: 12 | EB55: D4O21W1IBUEXWI9DNA2RI3G1L | EC55: D5PZA7P4P42M76FFXYV5496NT | EE55: 0 | EI55: 00 | EJ55: X | EK55: 0 | EL55: 0 | HW55: 11 | HX55: 0000000120
AE56: 7 | AF56: D5PZA7P4P3ZJGP4ENT4OUJLKP | AG56: WP Disability/Ethnicity Bandings Rev | AI56: X | AJ56: X | AK56: 0001 | AR56: U | AT56: 00 | AY56: K | AZ56: D5PZA7P4P3ZJGP4ENT4OUJLKP | BA56: A | BJ56: 00000000 | BK56: 0000 | BL56: X | BM56: 0 | BR56: 0 | BS56: 0 | BT56: 0 | BU56: 0 | BV56: 0 | CB56: D5PZA7P4P3ZJGP4ENT4OUJLKP | CI56: 0000 | CM56: 12 | CN56: D4O21W1IBUB3HEML1KWP5YGOP | CO56: DEN07Y1DTSO2LFXI9VR7L0SMX | CP56: Total - All WPBR Grades P/T | CQ56: 0029 | CS56: F | CU56: L | DG56: 10 | DH56: 0ORGUNIT | DI56: 0BBPPURGRPX | DJ56: Ind.Purchasing Group | DK56: 0000 | DL56: X | DM56: 2 | DN56: 0 | DO56: 0 | DT56: 0000 | EA56: 12 | EB56: D4O21W1IBUEXWI9DNA2RI3G1L | EC56: D5PZA7P4P43DVSR79IAR6OKXL | EE56: 0 | EI56: 00 | EJ56: X | EK56: 0 | EL56: 0 | HW56: 11 | HX56: 0000000121
AE57: 7 | AF57: D4O21W1IBUB3HEML1KWP5YGOP | AG57: WP Bandings | AI57: X | AJ57: Y | AK57: 0001 | AR57: U | AT57: 00 | AY57: K | AZ57: D4O21W1IBUB3HEML1KWP5YGOP | BA57: A | BJ57: 00000000 | BK57: 0000 | BM57: 0 | BR57: 0 | BS57: 0 | BT57: 0 | BU57: 0 | BV57: 0 | CB57: D4O21W1IBUB3HEML1KWP5YGOP | CI57: 0000 | CM57: 12 | CN57: D4O21W1IBUB3HEML1KWP5YGOP | CO57: DEN07Y1DTSQDNAWS8I21SAZG9 | CP57: Total Workforce - All WPBR Grades | CQ57: 0030 | CS57: F | CU57: L | DG57: 10 | DH57: 0ORGUNIT | DI57: 0BBPPURORGX | DJ57: Ind. Purchasing Org. | DK57: 0000 | DL57: X | DM57: 2 | DN57: 0 | DO57: 0 | DT57: 0000 | EA57: 12 | EB57: D4O21W1IBUEXWI9DNA2RI3G1L | EC57: D5PZA7P4P445KF2YL1QD93Z7D | EE57: 0 | EI57: 00 | EJ57: X | EK57: 0 | EL57: 0 | HW57: 11 | HX57: 0000010001 | HY57: D9UV84VAX4ANMLF7VE1O5UCXL
AE58: 6 | AF58: 0PAYRL_AREA | AG58: Payroll Area | AH58: X | AK58: 0001 | AS58: 0 | AT58: 03 | AX58: 00000000 | AY58: K | AZ58: 0PAYRL_AREA | BA58: A | BD58: H | BJ58: 00000000 | BK58: 0000 | BM58: 0 | BR58: 1 | BS58: 1 | BT58: 1 | BU58: 0 | BV58: 0 | CB58: D9UV84VAX459U94WMM0DOUL15 | CI58: 0000 | CM58: 12 | CN58: D4O21W1IBUB3HEML1KWP5YGOP | CO58: D4O21W1IBV8XKOZZ5BZO4RWMX | CP58: Total Workforce (All) F/T | CQ58: 0031 | CS58: S | CU58: L | DG58: 10 | DH58: 0ORGUNIT | DI58: 0BBP_BUYID | DJ58: Buyer ID | DK58: 0000 | DL58: X | DM58: 5 | DN58: 0 | DO58: 0 | DT58: 0000 | EA58: 12 | EB58: D4O21W1IBUEXWI9DNA2RI3G1L | EC58: D5PZA7P4P44X91EPWL5ZBJDH5 | EI58: 00 | EJ58: X | EK58: 0 | EL58: 0 | HW58: 11 | HX58: 0000010002 | HY58: D9UV84VAX3YCOO72QR3V300L5
AE59: 6 | AF59: ZPERSAREA | AG59: ZPersonal Area | AH59: X | AK59: 0002 | AM59: Education | AS59: 2 | AT59: 03 | AX59: 00000000 | AY59: K | AZ59: ZPERSAREA | BA59: A | BD59: H | BJ59: 00000000 | BK59: 0000 | BM59: 0 | BO59: 1 | BR59: 1 | BS59: 1 | BT59: 1 | BU59: 0 | BV59: 0 | CB59: D9UV84VAX461IVGNY5FZR9ZAX | CI59: 0000 | CM59: 12 | CN59: D4O21W1IBUB3HEML1KWP5YGOP | CO59: DEN07Y1DTSRX0JKAVKX9X5RZT | CP59: Total Workforce (All) P/T | CQ59: 0032 | CS59: S | CU59: L | DG59: 10 | DH59: 0ORGUNIT | DI59: 0BBP_ISCOMP | DJ59: Organizational Unit is Company | DK59: 0000 | DL59: X | DM59: 1 | DN59: 0 | DO59: 0 | DT59: 0000 | EA59: 12 | EB59: D4O21W1IBUEXWI9DNA2RI3G1L | EC59: D5PZA7P4P45OXNQH84LLDYRQX | EI59: 00 | EJ59: X | EK59: 0 | EL59: 0 | HW59: 11 | HX59: 0000000105
AE60: 6 | AF60: 0ORGUNIT | AG60: Organizational Unit | AH60: X | AK60: 0003 | AS60: 1 | AT60: 03 | AU60: X | AV60: ORGEH | AW60: 000 | AX60: 20150930 | AY60: K | AZ60: 0ORGUNIT | BA60: A | BD60: H | BE60: 0ORGUNIT | BF60: A | BJ60: 00000000 | BK60: 0000 | BM60: 0 | BQ60: 2 | BR60: 1 | BS60: 1 | BT60: 1 | BU60: 0 | BV60: 0 | CB60: D9UV84VAX46T7HSF9OVLTPDKP | CI60: 0000 | CM60: 12 | CN60: D4O21W1IBUB3HEML1KWP5YGOP | CO60: DEN07Y1DTSSOP5W274CVZL69L | CP60: Total Workforce (All) | CQ60: 0033 | CS60: S | CU60: L | DG60: 10 | DH60: 0ORGUNIT | DI60: 0BUS_AREA | DJ60: Business area | DK60: 0000 | DL60: X | DM60: 0 | DN60: 0 | DO60: 0 | DT60: 0000 | EA60: 12 | EB60: D4O21W1IBUEXWI9DNA2RI3G1L | EC60: D5PZA7P4P46GMA28JO17GE60P | EE60: 0 | EI60: 00 | EJ60: X | EK60: 0 | EL60: 0 | HW60: 11 | HX60: 0000000106
AE61: 6 | AF61: 0PERS_SAREA | AG61: Personnel Subarea | AH61: X | AK61: 0004 | AR61: U | AS61: 1 | AT61: 03 | AX61: 00000000 | AY61: K | AZ61: 0PERS_SAREA | BA61: A | BD61: H | BJ61: 00000000 | BK61: 0000 | BM61: 0 | BR61: 1 | BS61: 1 | BT61: 1 | BU61: 0 | BV61: 0 | CB61: D9UV84VAX47KW446L8B7W4RUH | CI61: 0000 | CM61: 11 | CN61: D4O21W1IBUB3HEML1KWP5YGOP | CO61: D4O21W1IBUDEJ9LV077JD8NI1 | CP61: Grade 1 - 4 F/T | CQ61: 0001 | CS61: S | CU61: L | DG61: 10 | DH61: 0ORGUNIT | DI61: 0COMP_CODE | DJ61: Company code | DK61: 0000 | DL61: X | DM61: 0 | DN61: 0 | DO61: 0 | DT61: 0000 | EA61: 12 | EB61: D4O21W1IBUEXWI9DNA2RI3G1L | EC61: D5PZA7P4P478AWDZV7GTITKAH | EE61: 2 | EI61: 00 | EJ61: X | EK61: 0 | EL61: 0 | HW61: 11 | HX61: 0000000112 | HY61: 0
AE62: 6 | AF62: ZTEILK | AG62: Checkbox for Part-Ti | AH62: X | AK62: 0005 | AS62: 1 | AT62: 03 | AX62: 00000000 | AY62: K | AZ62: ZTEILK | BA62: A | BD62: H | BJ62: 00000000 | BK62: 0000 | BM62: 0 | BR62: 1 | BS62: 1 | BT62: 1 | BU62: 0 | BV62: 0 | CB62: D9UV84VAX48CKQFXWRQTYK649 | CI62: 0000 | CM62: 11 | CN62: D5PZA7P4P3ZJGP4ENT4OUJLKP | CO62: D5PZA7P4P40B5BG5ZCKAWYZUH | CP62: Total White Male Disabled Employees | CQ62: 0001 | CS62: S | CU62: L | CV62: X | DG62: 10 | DH62: 0ORGUNIT | DI62: 0CO_MST_AR | DJ62: Controlling Area of Master Cost Center | DK62: 0000 | DL62: X | DM62: 0 | DN62: 0 | DO62: 0 | DT62: 0000 | EA62: 12 | EB62: D4O21W1IBUEXWI9DNA2RI3G1L | EC62: D5PZA7P4P47ZZIPR6QWFL8YK9 | EI62: 00 | EJ62: X | EK62: 0 | EL62: 0 | HW62: 11 | HX62: 0000000200 | HY62: X
AE63: 6 | AF63: ZPRIM_ID | AG63: ZPrimary Employee ID | AH63: X | AK63: 0006 | AS63: 2 | AT63: 03 | AX63: 00000000 | AY63: K | AZ63: ZPRIM_ID | BA63: A | BD63: H | BJ63: 00000000 | BK63: 0000 | BM63: 0 | BR63: 1 | BS63: 1 | BT63: 1 | BU63: 0 | BV63: 0 | CB63: D9UV84VAX4949CRP8B6G0ZKE1 | CI63: 0000 | CM63: 11 | CN63: D4O21W1IBUB3HEML1KWP5YGOP | CO63: D4O21W1IBUKBOUJOW241Z37Y1 | CP63: Grade 1 - 4 P/T | CQ63: 0002 | CS63: S | CU63: L | DG63: 10 | DH63: 0ORGUNIT | DI63: 0CRMSALGRPX | DJ63: Sls Group: Indicator | DK63: 0000 | DL63: X | DM63: 2 | DN63: 0 | DO63: 0 | DT63: 0000 | EA63: 12 | EB63: D4O21W1IBUEXWI9DNA2RI3G1L | EC63: D5PZA7P4P48RO51IIAC1NOCU1 | EI63: 00 | EJ63: X | EK63: 0 | EL63: 0 | HW63: 11 | HX63: 0000004000 | HY63: X
AE64: 6 | AF64: 0CNTRCTTYPE | AG64: Contract Type | AH64: X | AK64: 0007 | AS64: 1 | AT64: 03 | AX64: 00000000 | AY64: K | AZ64: 0CNTRCTTYPE | BA64: A | BD64: H | BJ64: 00000000 | BK64: 0000 | BM64: 0 | BR64: 1 | BS64: 1 | BT64: 1 | BU64: 0 | BV64: 0 | CB64: D9UV9459QXWEJPYDHUNPBXGQH | CI64: 0000 | CM64: 11 | CN64: D5PZA7P4P3ZJGP4ENT4OUJLKP | CO64: D5PZA7P4P412TXRXAVZWZEE49 | CP64: Total White Female Disabled Employees | CQ64: 0002 | CS64: S | CU64: L | CV64: X | DG64: 10 | DH64: 0ORGUNIT | DI64: 0CRMSALOFFX | DJ64: Sls Office:Indicator | DK64: 0000 | DL64: X | DM64: 2 | DN64: 0 | DO64: 0 | DT64: 0000 | EA64: 12 | EB64: D4O21W1IBUEXWI9DNA2RI3G1L | EC64: D5PZA7P4P49JCRD9TTRNQ3R3T | EI64: 00 | EJ64: X | EK64: 0 | EL64: 0 | HW64: 11 | HX64: 0000009001 | HY64: Workforce Profile Disability Excl Casual & Sessional
AE65: 6 | AF65: D5PZA7P4P3ZJGP4ENT4OUJLKP | AG65: WP Disability/Ethnicity Bandings Rev | AI65: X | AJ65: X | AK65: 0001 | AR65: U | AT65: 00 | AY65: K | AZ65: D5PZA7P4P3ZJGP4ENT4OUJLKP | BA65: A | BJ65: 00000000 | BK65: 0000 | BL65: X | BM65: 0 | BR65: 0 | BS65: 0 | BT65: 0 | BU65: 0 | BV65: 0 | CB65: D5PZA7P4P3ZJGP4ENT4OUJLKP | CI65: 0000 | CM65: 11 | CN65: D5PZA7P4P3ZJGP4ENT4OUJLKP | CO65: D5PZA7P4P41UIK3OMFFJ1TSE1 | CP65: Total White Disabled Employees | CQ65: 0003 | CS65: F | CU65: L | DG65: 10 | DH65: 0ORGUNIT | DI65: 0CRMSALORGX | DJ65: Sales Org. Indicator | DK65: 0000 | DL65: X | DM65: 2 | DN65: 0 | DO65: 0 | DT65: 0000 | EA65: 12 | EB65: D4O21W1IBUEXWI9DNA2RI3G1L | EC65: D5PZA7P4P4AB1DP15D79SJ5DL | EE65: 0 | EI65: 00 | EJ65: X | EK65: 0 | EL65: 0 | HW65: 11 | HX65: 0000000114 | HY65: 1
AE66: 6 | AF66: D4O21W1IBUB3HEML1KWP5YGOP | AG66: WP Bandings | AI66: X | AJ66: Y | AK66: 0001 | AR66: U | AT66: 00 | AY66: K | AZ66: D4O21W1IBUB3HEML1KWP5YGOP | BA66: A | BJ66: 00000000 | BK66: 0000 | BM66: 0 | BR66: 0 | BS66: 0 | BT66: 0 | BU66: 0 | BV66: 0 | CB66: D4O21W1IBUB3HEML1KWP5YGOP | CI66: 0000 | CM66: 11 | CN66: D4O21W1IBUB3HEML1KWP5YGOP | CO66: DEMAFDB5LZ4S252XBVM7GJP4P | CP66: Grade 1 - 4 Total | CQ66: 0003 | CS66: S | CU66: L | DG66: 10 | DH66: 0ORGUNIT | DI66: 0CRMSRVTGRP | DJ66: Ex. CRM Service Org. | DK66: 0000 | DL66: X | DM66: 1 | DN66: 0 | DO66: 0 | DT66: 0000 | EA66: 12 | EB66: D4O21W1IBUEXWI9DNA2RI3G1L | EC66: D5PZA7P4P4B2Q00SGWMVUYJND | EE66: 0 | EI66: 00 | EJ66: X | EK66: 0 | EL66: 0 | HW66: 10 | HX66: 0000000107 | HY66: D9UVC1KT6HWIXXRKESG1SN3LL
AE67: 5 | AF67: 0PAYRL_AREA | AG67: Payroll Area | AH67: X | AK67: 0001 | AS67: 0 | AT67: 03 | AX67: 00000000 | AY67: K | AZ67: 0PAYRL_AREA | BA67: A | BD67: H | BJ67: 00000000 | BK67: 0000 | BM67: 0 | BR67: 1 | BS67: 1 | BT67: 1 | BU67: 0 | BV67: 0 | CB67: D9UV84VAX459U94WMM0DOUL15 | CI67: 0000 | CM67: 11 | CN67: D4O21W1IBUB3HEML1KWP5YGOP | CO67: D4O21W1IBUE67VXMBQN5FO1RT | CP67: Grade 5 - 7 F/T | CQ67: 0004 | CS67: S | CU67: L | DG67: 10 | DH67: 0ORGUNIT | DI67: 0CRM_SALGRP | DJ67: CRM Sales Group | DK67: 0000 | DL67: X | DM67: 1 | DN67: 0 | DO67: 0 | DT67: 0000 | EA67: 12 | EB67: D4O21W1IBUEXWI9DNA2RI3G1L | EC67: D5PZA7P4P4BUEMCJSG2HXDXX5 | EE67: 0 | EI67: 00 | EJ67: X | EK67: 0 | EL67: 0 | HW67: 10 | HX67: 0000000100 | HY67: X
AE68: 5 | AF68: ZPERSAREA | AG68: ZPersonal Area | AH68: X | AK68: 0002 | AM68: Development and Regeneration | AS68: 2 | AT68: 03 | AX68: 00000000 | AY68: K | AZ68: ZPERSAREA | BA68: A | BD68: H | BJ68: 00000000 | BK68: 0000 | BM68: 0 | BO68: 1 | BR68: 1 | BS68: 1 | BT68: 1 | BU68: 0 | BV68: 0 | CB68: D9UV84VAX461IVGNY5FZR9ZAX | CI68: 0000 | CM68: 11 | CN68: D5PZA7P4P3ZJGP4ENT4OUJLKP | CO68: D5PZA7P4P42M76FFXYV5496NT | CP68: Total Ethnic Male Disabled Employees | CQ68: 0004 | CS68: S | CU68: L | CV68: X | DG68: 10 | DH68: 0ORGUNIT | DI68: 0CRM_SALOFF | DJ68: CRM Sales Office | DK68: 0000 | DL68: X | DM68: 1 | DN68: 0 | DO68: 0 | DT68: 0000 | EA68: 12 | EB68: D4O21W1IBUEXWI9DNA2RI3G1L | EC68: D5PZA7P4P4CM38OB3ZI3ZTC6X | EE68: 0 | EI68: 00 | EJ68: X | EK68: 0 | EL68: 0 | HW68: 10 | HX68: 0000000101
AE69: 5 | AF69: 0ORGUNIT | AG69: Organizational Unit | AH69: X | AK69: 0003 | AS69: 1 | AT69: 03 | AU69: X | AV69: ORGEH | AW69: 000 | AX69: 20150930 | AY69: K | AZ69: 0ORGUNIT | BA69: A | BD69: H | BE69: 0ORGUNIT | BF69: A | BJ69: 00000000 | BK69: 0000 | BM69: 0 | BQ69: 2 | BR69: 1 | BS69: 1 | BT69: 1 | BU69: 0 | BV69: 0 | CB69: D9UV84VAX46T7HSF9OVLTPDKP | CI69: 0000 | CM69: 11 | CN69: D5PZA7P4P3ZJGP4ENT4OUJLKP | CO69: D5PZA7P4P43DVSR79IAR6OKXL | CP69: Total Ethnic Female Disabled Employees | CQ69: 0005 | CS69: S | CU69: L | CV69: X | DG69: 10 | DH69: 0ORGUNIT | DI69: 0CRM_SALORG | DJ69: CRM Sales Org. | DK69: 0000 | DL69: X | DM69: 1 | DN69: 0 | DO69: 0 | DT69: 0000 | EA69: 12 | EB69: D4O21W1IBUEXWI9DNA2RI3G1L | EC69: D5PZA7P4P4DDRV02FIXQ28QGP | EI69: 00 | EJ69: X | EK69: 0 | EL69: 0 | HW69: 10 | HX69: 0000000104 | HY69: 1
AE70: 5 | AF70: 0PERS_SAREA | AG70: Personnel Subarea | AH70: X | AK70: 0004 | AR70: U | AS70: 1 | AT70: 03 | AX70: 00000000 | AY70: K | AZ70: 0PERS_SAREA | BA70: A | BD70: H | BJ70: 00000000 | BK70: 0000 | BM70: 0 | BR70: 1 | BS70: 1 | BT70: 1 | BU70: 0 | BV70: 0 | CB70: D9UV84VAX47KW446L8B7W4RUH | CI70: 0000 | CM70: 11 | CN70: D4O21W1IBUB3HEML1KWP5YGOP | CO70: D4O21W1IBUL3DGVG7LJO1IM7T | CP70: Grade 5 - 7 P/T | CQ70: 0005 | CS70: S | CU70: L | DG70: 10 | DH70: 0ORGUNIT | DI70: 0CRM_SRVORG | DJ70: Service Org. CRM | DK70: 0000 | DL70: X | DM70: 1 | DN70: 0 | DO70: 0 | DT70: 0000 | EA70: 12 | EB70: D4O21W1IBUEXWI9DNA2RI3G1L | EC70: D5PZA7P4P4E5GHBTR2DC4O4QH | EI70: 00 | EJ70: X | EK70: 0 | EL70: 0 | HW70: 10 | HX70: 0000000103
AE71: 5 | AF71: ZTEILK | AG71: Checkbox for Part-Ti | AH71: X | AK71: 0005 | AS71: 1 | AT71: 03 | AX71: 00000000 | AY71: K | AZ71: ZTEILK | BA71: A | BD71: H | BJ71: 00000000 | BK71: 0000 | BM71: 0 | BR71: 1 | BS71: 1 | BT71: 1 | BU71: 0 | BV71: 0 | CB71: D9UV84VAX48CKQFXWRQTYK649 | CI71: 0000 | CM71: 11 | CN71: D5PZA7P4P3ZJGP4ENT4OUJLKP | CO71: D5PZA7P4P445KF2YL1QD93Z7D | CP71: Total Ethnic Disabled Employees | CQ71: 0006 | CS71: F | CU71: L | DG71: 10 | DH71: 0ORGUNIT | DI71: 0LOGSYS | DJ71: Source System | DK71: 0000 | DL71: X | DM71: 1 | DN71: 0 | DO71: 0 | DT71: 0000 | EA71: 12 | EB71: D4O21W1IBUEXWI9DNA2RI3G1L | EC71: D5PZA7P4P4EX53NL2LSY73J09 | EE71: 0 | EI71: 00 | EJ71: X | EK71: 0 | EL71: 0 | HW71: 10 | HX71: 0000000102 | HY71: 1
AE72: 5 | AF72: ZPRIM_ID | AG72: ZPrimary Employee ID | AH72: X | AK72: 0006 | AS72: 2 | AT72: 03 | AX72: 00000000 | AY72: K | AZ72: ZPRIM_ID | BA72: A | BD72: H | BJ72: 00000000 | BK72: 0000 | BM72: 0 | BR72: 1 | BS72: 1 | BT72: 1 | BU72: 0 | BV72: 0 | CB72: D9UV84VAX4949CRP8B6G0ZKE1 | CI72: 0000 | CM72: 11 | CN72: D4O21W1IBUB3HEML1KWP5YGOP | CO72: DEMAGSP8VDTMCQ2Z9KSRG7UGP | CP72: Grade 5 - 7 Total | CQ72: 0006 | CS72: S | CU72: L | DG72: 10 | DH72: 0ORGUNIT | DI72: 0MAST_CCTR | DJ72: Master Cost Center | DK72: 0000 | DL72: X | DM72: 0 | DN72: 0 | DO72: 0 | DT72: 0000 | EA72: 12 | EB72: D4O21W1IBUEXWI9DNA2RI3G1L | EC72: D5PZA7P4P4FOTPZCE58K9IXA1 | EE72: 2 | EI72: 00 | EJ72: X | EK72: 0 | EL72: 0 | HW72: 10 | HX72: 0000000108
AE73: 5 | AF73: 0CNTRCTTYPE | AG73: Contract Type | AH73: X | AK73: 0007 | AS73: 1 | AT73: 03 | AX73: 00000000 | AY73: K | AZ73: 0CNTRCTTYPE | BA73: A | BD73: H | BJ73: 00000000 | BK73: 0000 | BM73: 0 | BR73: 1 | BS73: 1 | BT73: 1 | BU73: 0 | BV73: 0 | CB73: D9UV9459QXWEJPYDHUNPBXGQH | CI73: 0000 | CM73: 11 | CN73: D5PZA7P4P3ZJGP4ENT4OUJLKP | CO73: D5PZA7P4P44X91EPWL5ZBJDH5 | CP73: Disabled Male Employees | CQ73: 0007 | CS73: S | CU73: L | CV73: X | DG73: 10 | DH73: 0ORGUNIT | DI73: 0PERS_AREA | DJ73: Personnel Area | DK73: 0000 | DL73: X | DM73: 1 | DN73: 0 | DO73: 0 | DT73: 0000 | EA73: 12 | EB73: D4O21W1IBUEXWI9DNA2RI3G1L | EC73: D5PZA7P4P4GGICB3POO6BYBJT | EI73: 00 | EJ73: X | EK73: 0 | EL73: 0 | HW73: 10 | HX73: 0000009002 | HY73: D4O2P4A3SH8H6WZIVSYIIRP4P
AE74: 5 | AF74: D5PZA7P4P3ZJGP4ENT4OUJLKP | AG74: WP Disability/Ethnicity Bandings Rev | AI74: X | AJ74: X | AK74: 0001 | AR74: U | AT74: 00 | AY74: K | AZ74: D5PZA7P4P3ZJGP4ENT4OUJLKP | BA74: A | BJ74: 00000000 | BK74: 0000 | BL74: X | BM74: 0 | BR74: 0 | BS74: 0 | BT74: 0 | BU74: 0 | BV74: 0 | CB74: D5PZA7P4P3ZJGP4ENT4OUJLKP | CI74: 0000 | CM74: 11 | CN74: D4O21W1IBUB3HEML1KWP5YGOP | CO74: D4O21W1IBUEXWI9DNA2RI3G1L | CP74: Grade 8 F/T | CQ74: 0007 | CS74: S | CU74: L | DG74: 10 | DH74: 0ORGUNIT | DI74: 0PERS_SAREA | DJ74: Personnel Subarea | DK74: 0000 | DL74: X | DM74: 1 | DN74: 0 | DO74: 0 | DT74: 0000 | EA74: 12 | EB74: D4O21W1IBUEXWI9DNA2RI3G1L | EC74: D5PZA7P4P4H86YMV183SEDPTL | EI74: 00 | EJ74: X | EK74: 0 | EL74: 0 | HW74: 10 | HX74: 0000009000
AE75: 5 | AF75: D4O21W1IBUB3HEML1KWP5YGOP | AG75: WP Bandings | AI75: X | AJ75: Y | AK75: 0001 | AR75: U | AT75: 00 | AY75: K | AZ75: D4O21W1IBUB3HEML1KWP5YGOP | BA75: A | BJ75: 00000000 | BK75: 0000 | BM75: 0 | BR75: 0 | BS75: 0 | BT75: 0 | BU75: 0 | BV75: 0 | CB75: D4O21W1IBUB3HEML1KWP5YGOP | CI75: 0000 | CM75: 11 | CN75: D4O21W1IBUB3HEML1KWP5YGOP | CO75: D4O21W1IBULV2377J4ZA3Y0HL | CP75: Grade 8 P/T | CQ75: 0008 | CS75: S | CU75: L | DG75: 10 | DH75: 0ORGUNIT | DI75: 0PLANT | DJ75: Plant | DK75: 0000 | DL75: X | DM75: 0 | DN75: 0 | DO75: 0 | DT75: 0000 | EA75: 12 | EB75: D4O21W1IBUEXWI9DNA2RI3G1L | EC75: D5PZAGQNPNJN6QK9OBJM8YLMH | EI75: 00 | EJ75: X | EK75: 0 | EL75: 0 | HW75: 10 | HX75: 0000000010
AE76: 4 | AF76: 0PAYRL_AREA | AG76: Payroll Area | AH76: X | AK76: 0001 | AS76: 0 | AT76: 03 | AX76: 00000000 | AY76: K | AZ76: 0PAYRL_AREA | BA76: A | BD76: H | BJ76: 00000000 | BK76: 0000 | BM76: 0 | BR76: 1 | BS76: 1 | BT76: 1 | BU76: 0 | BV76: 0 | CB76: D9UV84VAX459U94WMM0DOUL15 | CI76: 0000 | CM76: 11 | CN76: D5PZA7P4P3ZJGP4ENT4OUJLKP | CO76: D5PZA7P4P45OXNQH84LLDYRQX | CP76: Disabled Female Employees | CQ76: 0008 | CS76: S | CU76: L | CV76: X | DG76: 10 | DH76: 0ORGUNIT | DI76: 0PURCH_ORG | DJ76: Purchasing org. | DK76: 0000 | DL76: X | DM76: 0 | DN76: 0 | DO76: 0 | DT76: 0000 | EA76: 12 | EB76: D4O21W1IBUFPL4L4YTIDKIUBD | EC76: D5PZA7P4P40B5BG5ZCKAWYZUH | EI76: 00 | EJ76: X | EK76: 0 | EL76: 0 | HW76: 10 | HX76: 0000000021
AE77: 4 | AF77: ZPERSAREA | AG77: ZPersonal Area | AH77: X | AK77: 0002 | AS77: 2 | AT77: 03 | AX77: 00000000 | AY77: K | AZ77: ZPERSAREA | BA77: A | BD77: H | BJ77: 00000000 | BK77: 0000 | BM77: 0 | BR77: 1 | BS77: 1 | BT77: 1 | BU77: 0 | BV77: 0 | CB77: D9UV84VAX461IVGNY5FZR9ZAX | CI77: 0000 | CM77: 11 | CN77: D4O21W1IBUB3HEML1KWP5YGOP | CO77: D4O21W1IBV18QHQDXXNJGHXX5 | CP77: Grade 8 Total | CQ77: 0009 | CS77: S | CU77: L | DG77: 10 | DH77: 0ORGUNIT | DI77: 0PUR_GROUP | DJ77: Purchasing group | DK77: 0000 | DL77: X | DM77: 0 | DN77: 0 | DO77: 0 | DT77: 0000 | EA77: 12 | EB77: D4O21W1IBUFPL4L4YTIDKIUBD | EC77: D5PZA7P4P412TXRXAVZWZEE49 | EI77: 00 | EJ77: X | EK77: 0 | EL77: 0 | HW77: 10 | HX77: 0000000022
AE78: 4 | AF78: 0ORGUNIT | AG78: Organizational Unit | AH78: X | AK78: 0003 | AM78: Chief Executive Srv, Chief Executive Organisation Structu... | AS78: 1 | AT78: 03 | AU78: X | AV78: ORGEH | AW78: 000 | AX78: 20150930 | AY78: K | AZ78: 0ORGUNIT | BA78: A | BD78: H | BE78: 0ORGUNIT | BF78: A | BJ78: 00000000 | BK78: 0000 | BM78: 0 | BO78: X | BQ78: 2 | BR78: 1 | BS78: 1 | BT78: 1 | BU78: 0 | BV78: 0 | CB78: D9UV84VAX46T7HSF9OVLTPDKP | CI78: 0000 | CM78: 11 | CN78: D5PZA7P4P3ZJGP4ENT4OUJLKP | CO78: D5PZA7P4P46GMA28JO17GE60P | CP78: Total Disabled Employees | CQ78: 0009 | CS78: F | CU78: L | DG78: 10 | DH78: 0ORGUNIT | DI78: 0SALESORG | DJ78: Sales Organization | DK78: 0000 | DL78: X | DM78: 0 | DN78: 0 | DO78: 0 | DT78: 0000 | EA78: 12 | EB78: D4O21W1IBUFPL4L4YTIDKIUBD | EC78: D5PZA7P4P41UIK3OMFFJ1TSE1 | EE78: 0 | EI78: 00 | EJ78: X | EK78: 0 | EL78: 0 | HW78: 10 | HX78: 0000000023
AE79: 4 | AF79: 0PERS_SAREA | AG79: Personnel Subarea | AH79: X | AK79: 0004 | AR79: U | AS79: 1 | AT79: 03 | AX79: 00000000 | AY79: K | AZ79: 0PERS_SAREA | BA79: A | BD79: H | BJ79: 00000000 | BK79: 0000 | BM79: 0 | BR79: 1 | BS79: 1 | BT79: 1 | BU79: 0 | BV79: 0 | CB79: D9UV84VAX47KW446L8B7W4RUH | CI79: 0000 | CM79: 11 | CN79: D4O21W1IBUB3HEML1KWP5YGOP | CO79: D4O21W1IBUFPL4L4YTIDKIUBD | CP79: ACZ Grade 8 F/T | CQ79: 0010 | CS79: S | CU79: L | DG79: 10 | DH79: 0ORGUNIT | DI79: 0SALES_GRP | DJ79: Sales group | DK79: 0000 | DL79: X | DM79: 0 | DN79: 0 | DO79: 0 | DT79: 0000 | EA79: 12 | EB79: D4O21W1IBUFPL4L4YTIDKIUBD | EC79: D5PZA7P4P42M76FFXYV5496NT | EE79: 0 | EI79: 00 | EJ79: X | EK79: 0 | EL79: 0 | HW79: 10 | HX79: 0000000030
AE80: 4 | AF80: ZTEILK | AG80: Checkbox for Part-Ti | AH80: X | AK80: 0005 | AS80: 1 | AT80: 03 | AX80: 00000000 | AY80: K | AZ80: ZTEILK | BA80: A | BD80: H | BJ80: 00000000 | BK80: 0000 | BM80: 0 | BR80: 1 | BS80: 1 | BT80: 1 | BU80: 0 | BV80: 0 | CB80: D9UV84VAX48CKQFXWRQTYK649 | CI80: 0000 | CM80: 11 | CN80: D5PZA7P4P3ZJGP4ENT4OUJLKP | CO80: D5PZA7P4P478AWDZV7GTITKAH | CP80: Total Disabled Employees % | CQ80: 0010 | CS80: F | CU80: L | DG80: 10 | DH80: 0ORGUNIT | DI80: 0SALES_OFF | DJ80: Sales Office | DK80: 0000 | DL80: X | DM80: 0 | DN80: 0 | DO80: 0 | DT80: 0000 | EA80: 12 | EB80: D4O21W1IBUFPL4L4YTIDKIUBD | EC80: D5PZA7P4P43DVSR79IAR6OKXL | EE80: 0 | EI80: 00 | EJ80: X | EK80: 0 | EL80: 0 | HW80: 10 | HX80: 0000000040
AE81: 4 | AF81: ZPRIM_ID | AG81: ZPrimary Employee ID | AH81: X | AK81: 0006 | AS81: 2 | AT81: 03 | AX81: 00000000 | AY81: K | AZ81: ZPRIM_ID | BA81: A | BD81: H | BJ81: 00000000 | BK81: 0000 | BM81: 0 | BR81: 1 | BS81: 1 | BT81: 1 | BU81: 0 | BV81: 0 | CB81: D9UV84VAX4949CRP8B6G0ZKE1 | CI81: 0000 | CM81: 11 | CN81: D5PZA7P4P3ZJGP4ENT4OUJLKP | CO81: D5PZAGQNPNJN6QK9OBJM8YLMH | CP81: Not Disclosed | CQ81: 0011 | CS81: S | CU81: L | CV81: X | DG81: 10 | DH81: 0CNTRCTTYPE | DI81: 0CNTRCTISFT | DJ81: Fixed-Term Contract | DK81: 0000 | DL81: X | DM81: 2 | DN81: 0 | DO81: 0 | DT81: 0000 | EA81: 12 | EB81: D4O21W1IBUFPL4L4YTIDKIUBD | EC81: D5PZA7P4P445KF2YL1QD93Z7D | EE81: 0 | EI81: 00 | EJ81: X | EK81: 0 | EL81: 0 | HW81: 10 | HX81: 0000000041
AE82: 4 | AF82: 0CNTRCTTYPE | AG82: Contract Type | AH82: X | AK82: 0007 | AS82: 1 | AT82: 03 | AX82: 00000000 | AY82: K | AZ82: 0CNTRCTTYPE | BA82: A | BD82: H | BJ82: 00000000 | BK82: 0000 | BM82: 0 | BR82: 1 | BS82: 1 | BT82: 1 | BU82: 0 | BV82: 0 | CB82: D9UV9459QXWEJPYDHUNPBXGQH | CI82: 0000 | CM82: 11 | CN82: D4O21W1IBUB3HEML1KWP5YGOP | CO82: D4O21W1IBUMMQPIYUOEW6DERD | CP82: ACZ Grade 8 P/T | CQ82: 0011 | CS82: S | CU82: L | DG82: 9 | DH82: 0ORGUNIT | DI82: 0BBPPURGRPX | DJ82: Ind.Purchasing Group | DK82: 0000 | DL82: X | DM82: 2 | DN82: 0 | DO82: 0 | DT82: 0000 | EA82: 12 | EB82: D4O21W1IBUFPL4L4YTIDKIUBD | EC82: D5PZA7P4P44X91EPWL5ZBJDH5 | EI82: 00 | EJ82: X | EK82: 0 | EL82: 0 | HW82: 10 | HX82: 0000000042 | HY82: 0
AE83: 4 | AF83: D5PZA7P4P3ZJGP4ENT4OUJLKP | AG83: WP Disability/Ethnicity Bandings Rev | AI83: X | AJ83: X | AK83: 0001 | AR83: U | AT83: 00 | AY83: K | AZ83: D5PZA7P4P3ZJGP4ENT4OUJLKP | BA83: A | BJ83: 00000000 | BK83: 0000 | BL83: X | BM83: 0 | BR83: 0 | BS83: 0 | BT83: 0 | BU83: 0 | BV83: 0 | CB83: D5PZA7P4P3ZJGP4ENT4OUJLKP | CI83: 0000 | CM83: 11 | CN83: D4O21W1IBUB3HEML1KWP5YGOP | CO83: D4O21W1IBV0H1VEMME7XE2JND | CP83: ACZ Grade 8 Total | CQ83: 0012 | CS83: S | CU83: L | DG83: 9 | DH83: 0ORGUNIT | DI83: 0BBPPURORGX | DJ83: Ind. Purchasing Org. | DK83: 0000 | DL83: X | DM83: 2 | DN83: 0 | DO83: 0 | DT83: 0000 | EA83: 12 | EB83: D4O21W1IBUFPL4L4YTIDKIUBD | EC83: D5PZA7P4P45OXNQH84LLDYRQX | EI83: 00 | EJ83: X | EK83: 0 | EL83: 0 | HW83: 10 | HX83: 0000000043 | HY83: 0
AE84: 4 | AF84: D4O21W1IBUB3HEML1KWP5YGOP | AG84: WP Bandings | AI84: X | AJ84: Y | AK84: 0001 | AR84: U | AT84: 00 | AY84: K | AZ84: D4O21W1IBUB3HEML1KWP5YGOP | BA84: A | BJ84: 00000000 | BK84: 0000 | BM84: 0 | BR84: 0 | BS84: 0 | BT84: 0 | BU84: 0 | BV84: 0 | CB84: D4O21W1IBUB3HEML1KWP5YGOP | CI84: 0000 | CM84: 11 | CN84: D5PZA7P4P3ZJGP4ENT4OUJLKP | CO84: D5PZA7P4P48RO51IIAC1NOCU1 | CP84: Total White Male Non Disabled Employees | CQ84: 0012 | CS84: S | CU84: L | CV84: X | DG84: 9 | DH84: 0ORGUNIT | DI84: 0BBP_BUYID | DJ84: Buyer ID | DK84: 0000 | DL84: X | DM84: 5 | DN84: 0 | DO84: 0 | DT84: 0000 | EA84: 12 | EB84: D4O21W1IBUFPL4L4YTIDKIUBD | EC84: D5PZA7P4P46GMA28JO17GE60P | EE84: 0 | EI84: 00 | EJ84: X | EK84: 0 | EL84: 0 | HW84: 10 | HX84: 0000000109 | HY84: 0
CM85: 11 | CN85: D4O21W1IBUB3HEML1KWP5YGOP | CO85: D4O21W1IBUH8YD8NLWDLPDMUX | CP85: Grade 9 - 15 F/T | CQ85: 0013 | CS85: S | CU85: L | DG85: 9 | DH85: 0ORGUNIT | DI85: 0BBP_ISCOMP | DJ85: Organizational Unit is Company | DK85: 0000 | DL85: X | DM85: 1 | DN85: 0 | DO85: 0 | DT85: 0000 | EA85: 12 | EB85: D4O21W1IBUFPL4L4YTIDKIUBD | EC85: D5PZA7P4P478AWDZV7GTITKAH | EE85: 2 | EI85: 00 | EJ85: X | EK85: 0 | EL85: 0 | HW85: 10 | HX85: 0000000113
CM86: 11 | CN86: D5PZA7P4P3ZJGP4ENT4OUJLKP | CO86: D5PZA7P4P49JCRD9TTRNQ3R3T | CP86: Total White Female Non Disabled Employees | CQ86: 0013 | CS86: S | CU86: L | CV86: X | DG86: 9 | DH86: 0ORGUNIT | DI86: 0BUS_AREA | DJ86: Business area | DK86: 0000 | DL86: X | DM86: 0 | DN86: 0 | DO86: 0 | DT86: 0000 | EA86: 12 | EB86: D4O21W1IBUFPL4L4YTIDKIUBD | EC86: D5PZA7P4P47ZZIPR6QWFL8YK9 | EI86: 00 | EJ86: X | EK86: 0 | EL86: 0 | HW86: 10 | HX86: 0000000120
CM87: 11 | CN87: D5PZA7P4P3ZJGP4ENT4OUJLKP | CO87: D5PZA7P4P4AB1DP15D79SJ5DL | CP87: Total White Non Disabled Employees | CQ87: 0014 | CS87: F | CU87: L | DG87: 9 | DH87: 0ORGUNIT | DI87: 0COMP_CODE | DJ87: Company code | DK87: 0000 | DL87: X | DM87: 0 | DN87: 0 | DO87: 0 | DT87: 0000 | EA87: 12 | EB87: D4O21W1IBUFPL4L4YTIDKIUBD | EC87: D5PZA7P4P48RO51IIAC1NOCU1 | EI87: 00 | EJ87: X | EK87: 0 | EL87: 0 | HW87: 10 | HX87: 0000000121
CM88: 11 | CN88: D4O21W1IBUB3HEML1KWP5YGOP | CO88: DEN03PYIT5FSSAA2U7ST53H15 | CP88: Grade 9 - 15 P/T | CQ88: 0014 | CS88: S | CU88: L | DG88: 9 | DH88: 0ORGUNIT | DI88: 0CO_MST_AR | DJ88: Controlling Area of Master Cost Center | DK88: 0000 | DL88: X | DM88: 0 | DN88: 0 | DO88: 0 | DT88: 0000 | EA88: 12 | EB88: D4O21W1IBUFPL4L4YTIDKIUBD | EC88: D5PZA7P4P49JCRD9TTRNQ3R3T | EI88: 00 | EJ88: X | EK88: 0 | EL88: 0 | HW88: 10 | HX88: 0000010001 | HY88: D9UVC1KT6I8278NY7VY8T21O9
CM89: 11 | CN89: D5PZA7P4P3ZJGP4ENT4OUJLKP | CO89: D5PZA7P4P4B2Q00SGWMVUYJND | CP89: Total Ethnic Male Non Disabled Employees | CQ89: 0015 | CS89: S | CU89: L | CV89: X | DG89: 9 | DH89: 0ORGUNIT | DI89: 0CRMSALGRPX | DJ89: Sls Group: Indicator | DK89: 0000 | DL89: X | DM89: 2 | DN89: 0 | DO89: 0 | DT89: 0000 | EA89: 12 | EB89: D4O21W1IBUFPL4L4YTIDKIUBD | EC89: D5PZA7P4P4AB1DP15D79SJ5DL | EE89: 0 | EI89: 00 | EJ89: X | EK89: 0 | EL89: 0 | HW89: 10 | HX89: 0000010002 | HY89: D9UVC1KT6HWIXXRKESG1SN3LL
CM90: 11 | CN90: D4O21W1IBUB3HEML1KWP5YGOP | CO90: D4O21W1IBUO63Y6HHRA4B87AX | CP90: Grade 9 - 15 Total | CQ90: 0015 | CS90: S | CU90: L | DG90: 9 | DH90: 0ORGUNIT | DI90: 0CRMSALOFFX | DJ90: Sls Office:Indicator | DK90: 0000 | DL90: X | DM90: 2 | DN90: 0 | DO90: 0 | DT90: 0000 | EA90: 12 | EB90: D4O21W1IBUFPL4L4YTIDKIUBD | EC90: D5PZA7P4P4B2Q00SGWMVUYJND | EE90: 0 | EI90: 00 | EJ90: X | EK90: 0 | EL90: 0 | HW90: 10 | HX90: 0000000105
CM91: 11 | CN91: D5PZA7P4P3ZJGP4ENT4OUJLKP | CO91: D5PZA7P4P4BUEMCJSG2HXDXX5 | CP91: Total Ethnic Female Non Disabled Employees | CQ91: 0016 | CS91: S | CU91: L | CV91: X | DG91: 9 | DH91: 0ORGUNIT | DI91: 0CRMSALORGX | DJ91: Sales Org. Indicator | DK91: 0000 | DL91: X | DM91: 2 | DN91: 0 | DO91: 0 | DT91: 0000 | EA91: 12 | EB91: D4O21W1IBUFPL4L4YTIDKIUBD | EC91: D5PZA7P4P4BUEMCJSG2HXDXX5 | EE91: 0 | EI91: 00 | EJ91: X | EK91: 0 | EL91: 0 | HW91: 10 | HX91: 0000000106
CM92: 11 | CN92: D4O21W1IBUB3HEML1KWP5YGOP | CO92: D4O21W1IBUGH9QWWACXZMY8L5 | CP92: ACZ Grade 9 - 15 F/T | CQ92: 0016 | CS92: S | CU92: L | DG92: 9 | DH92: 0ORGUNIT | DI92: 0CRMSRVTGRP | DJ92: Ex. CRM Service Org. | DK92: 0000 | DL92: X | DM92: 1 | DN92: 0 | DO92: 0 | DT92: 0000 | EA92: 12 | EB92: D4O21W1IBUFPL4L4YTIDKIUBD | EC92: D5PZA7P4P4CM38OB3ZI3ZTC6X | EE92: 0 | EI92: 00 | EJ92: X | EK92: 0 | EL92: 0 | HW92: 10 | HX92: 0000000112 | HY92: 0
CM93: 11 | CN93: D4O21W1IBUB3HEML1KWP5YGOP | CO93: D4O21W1IBUNEFBUQ67UI8ST15 | CP93: ACZ Grade 9 - 15 P/T | CQ93: 0017 | CS93: S | CU93: L | DG93: 9 | DH93: 0ORGUNIT | DI93: 0CRM_SALGRP | DJ93: CRM Sales Group | DK93: 0000 | DL93: X | DM93: 1 | DN93: 0 | DO93: 0 | DT93: 0000 | EA93: 12 | EB93: D4O21W1IBUFPL4L4YTIDKIUBD | EC93: D5PZA7P4P4DDRV02FIXQ28QGP | EI93: 00 | EJ93: X | EK93: 0 | EL93: 0 | HW93: 10 | HX93: 0000000200 | HY93: X
CM94: 11 | CN94: D5PZA7P4P3ZJGP4ENT4OUJLKP | CO94: D5PZA7P4P4CM38OB3ZI3ZTC6X | CP94: Total Ethnic Non Disabled Employees | CQ94: 0017 | CS94: F | CU94: L | DG94: 9 | DH94: 0ORGUNIT | DI94: 0CRM_SALOFF | DJ94: CRM Sales Office | DK94: 0000 | DL94: X | DM94: 1 | DN94: 0 | DO94: 0 | DT94: 0000 | EA94: 12 | EB94: D4O21W1IBUFPL4L4YTIDKIUBD | EC94: D5PZA7P4P4E5GHBTR2DC4O4QH | EI94: 00 | EJ94: X | EK94: 0 | EL94: 0 | HW94: 10 | HX94: 0000004000 | HY94: X
CM95: 11 | CN95: D5PZA7P4P3ZJGP4ENT4OUJLKP | CO95: D5PZA7P4P4DDRV02FIXQ28QGP | CP95: Total Male Non Disabled Employees | CQ95: 0018 | CS95: S | CU95: L | CV95: X | DG95: 9 | DH95: 0ORGUNIT | DI95: 0CRM_SALORG | DJ95: CRM Sales Org. | DK95: 0000 | DL95: X | DM95: 1 | DN95: 0 | DO95: 0 | DT95: 0000 | EA95: 12 | EB95: D4O21W1IBUFPL4L4YTIDKIUBD | EC95: D5PZA7P4P4EX53NL2LSY73J09 | EE95: 0 | EI95: 00 | EJ95: X | EK95: 0 | EL95: 0 | HW95: 10 | HX95: 0000009001 | HY95: Workforce Profile Disability Teach Excl Cas & Ses
CM96: 11 | CN96: D4O21W1IBUB3HEML1KWP5YGOP | CO96: DEN04FDC1K04NBJW47LA7T915 | CP96: ACZ Grade 9 - 15 Total | CQ96: 0018 | CS96: S | CU96: L | DG96: 9 | DH96: 0ORGUNIT | DI96: 0CRM_SRVORG | DJ96: Service Org. CRM | DK96: 0000 | DL96: X | DM96: 1 | DN96: 0 | DO96: 0 | DT96: 0000 | EA96: 12 | EB96: D4O21W1IBUFPL4L4YTIDKIUBD | EC96: D5PZA7P4P4FOTPZCE58K9IXA1 | EE96: 2 | EI96: 00 | EJ96: X | EK96: 0 | EL96: 0 | HW96: 10 | HX96: 0000000114 | HY96: 1
CM97: 11 | CN97: D5PZA7P4P3ZJGP4ENT4OUJLKP | CO97: D5PZA7P4P4E5GHBTR2DC4O4QH | CP97: Total Female Non Disabled Employees | CQ97: 0019 | CS97: S | CU97: L | CV97: X | DG97: 9 | DH97: 0ORGUNIT | DI97: 0LOGSYS | DJ97: Source System | DK97: 0000 | DL97: X | DM97: 1 | DN97: 0 | DO97: 0 | DT97: 0000 | EA97: 12 | EB97: D4O21W1IBUFPL4L4YTIDKIUBD | EC97: D5PZA7P4P4GGICB3POO6BYBJT | EI97: 00 | EJ97: X | EK97: 0 | EL97: 0 | HW97: 9 | HX97: 0000000107 | HY97: D9UV84VAX3YCOO72QR3V300L5
CM98: 11 | CN98: D4O21W1IBUB3HEML1KWP5YGOP | CO98: D4O21W1IBUWMMRRU0P1V1XKAH | CP98: Other (Not Migrated) F/T | CQ98: 0019 | CS98: F | CU98: L | DG98: 9 | DH98: 0ORGUNIT | DI98: 0MAST_CCTR | DJ98: Master Cost Center | DK98: 0000 | DL98: X | DM98: 0 | DN98: 0 | DO98: 0 | DT98: 0000 | EA98: 12 | EB98: D4O21W1IBUFPL4L4YTIDKIUBD | EC98: D5PZA7P4P4H86YMV183SEDPTL | EI98: 00 | EJ98: X | EK98: 0 | EL98: 0 | HW98: 9 | HX98: 0000000100 | HY98: X
CM99: 11 | CN99: D5PZA7P4P3ZJGP4ENT4OUJLKP | CO99: D5PZA7P4P4EX53NL2LSY73J09 | CP99: Total Non Disabled Employees | CQ99: 0020 | CS99: F | CU99: L | DG99: 9 | DH99: 0ORGUNIT | DI99: 0PERS_AREA | DJ99: Personnel Area | DK99: 0000 | DL99: X | DM99: 1 | DN99: 0 | DO99: 0 | DT99: 0000 | EA99: 12 | EB99: D4O21W1IBUFPL4L4YTIDKIUBD | EC99: D5PZAGQNPNJN6QK9OBJM8YLMH | EI99: 00 | EJ99: X | EK99: 0 | EL99: 0 | HW99: 9 | HX99: 0000000101
CM100: 11 | CN100: D4O21W1IBUB3HEML1KWP5YGOP | CO100: DEN07Y1DTSNAWTLQYCBLILED5 | CP100: Other (Not Migrated) P/T | CQ100: 0020 | CS100: F | CU100: L | DG100: 9 | DH100: 0ORGUNIT | DI100: 0PERS_SAREA | DJ100: Personnel Subarea | DK100: 0000 | DL100: X | DM100: 1 | DN100: 0 | DO100: 0 | DT100: 0000 | EA100: 12 | EB100: D4O21W1IBUGH9QWWACXZMY8L5 | EC100: D5PZA7P4P40B5BG5ZCKAWYZUH | EI100: 00 | EJ100: X | EK100: 0 | EL100: 0 | HW100: 9 | HX100: 0000000104 | HY100: 1
CM101: 11 | CN101: D5PZA7P4P3ZJGP4ENT4OUJLKP | CO101: D5PZA7P4P4FOTPZCE58K9IXA1 | CP101: Total Non Disabled Employees % | CQ101: 0021 | CS101: F | CU101: L | DG101: 9 | DH101: 0ORGUNIT | DI101: 0PLANT | DJ101: Plant | DK101: 0000 | DL101: X | DM101: 0 | DN101: 0 | DO101: 0 | DT101: 0000 | EA101: 12 | EB101: D4O21W1IBUGH9QWWACXZMY8L5 | EC101: D5PZA7P4P412TXRXAVZWZEE49 | EI101: 00 | EJ101: X | EK101: 0 | EL101: 0 | HW101: 9 | HX101: 0000000103
CM102: 11 | CN102: D4O21W1IBUB3HEML1KWP5YGOP | CO102: DEN07Y1DTSPLYOL0WYMFPVL6H | CP102: Other (Not Migrated) Total | CQ102: 0021 | CS102: F | CU102: L | DG102: 9 | DH102: 0ORGUNIT | DI102: 0PURCH_ORG | DJ102: Purchasing org. | DK102: 0000 | DL102: X | DM102: 0 | DN102: 0 | DO102: 0 | DT102: 0000 | EA102: 12 | EB102: D4O21W1IBUGH9QWWACXZMY8L5 | EC102: D5PZA7P4P41UIK3OMFFJ1TSE1 | EE102: 0 | EI102: 00 | EJ102: X | EK102: 0 | EL102: 0 | HW102: 9 | HX102: 0000000102 | HY102: 1
CM103: 11 | CN103: D5PZA7P4P3ZJGP4ENT4OUJLKP | CO103: D5PZA7P4P4GGICB3POO6BYBJT | CP103: Total Male Employees | CQ103: 0022 | CS103: S | CU103: L | CV103: X | DG103: 9 | DH103: 0ORGUNIT | DI103: 0PUR_GROUP | DJ103: Purchasing group | DK103: 0000 | DL103: X | DM103: 0 | DN103: 0 | DO103: 0 | DT103: 0000 | EA103: 12 | EB103: D4O21W1IBUGH9QWWACXZMY8L5 | EC103: D5PZA7P4P42M76FFXYV5496NT | EE103: 0 | EI103: 00 | EJ103: X | EK103: 0 | EL103: 0 | HW103: 9 | HX103: 0000000108
CM104: 11 | CN104: D4O21W1IBUB3HEML1KWP5YGOP | CO104: D4O21W1IBUY600FCNRX36SCU1 | CP104: Total Teaching Staff F/T | CQ104: 0022 | CS104: S | CU104: L | DG104: 9 | DH104: 0ORGUNIT | DI104: 0SALESORG | DJ104: Sales Organization | DK104: 0000 | DL104: X | DM104: 0 | DN104: 0 | DO104: 0 | DT104: 0000 | EA104: 12 | EB104: D4O21W1IBUGH9QWWACXZMY8L5 | EC104: D5PZA7P4P43DVSR79IAR6OKXL | EE104: 0 | EI104: 00 | EJ104: X | EK104: 0 | EL104: 0 | HW104: 9 | HX104: 0000009002 | HY104: D4O21W1IBUB3HEML1KWP5YGOP
CM105: 11 | CN105: D4O21W1IBUB3HEML1KWP5YGOP | CO105: DEN0OSIFULCZTDTFE8U7RBQIH | CP105: Total Teaching Staff P/T | CQ105: 0023 | CS105: S | CU105: L | DG105: 9 | DH105: 0ORGUNIT | DI105: 0SALES_GRP | DJ105: Sales group | DK105: 0000 | DL105: X | DM105: 0 | DN105: 0 | DO105: 0 | DT105: 0000 | EA105: 12 | EB105: D4O21W1IBUGH9QWWACXZMY8L5 | EC105: D5PZA7P4P445KF2YL1QD93Z7D | EE105: 0 | EI105: 00 | EJ105: X | EK105: 0 | EL105: 0 | HW105: 9 | HX105: 0000009000
CM106: 11 | CN106: D5PZA7P4P3ZJGP4ENT4OUJLKP | CO106: D5PZA7P4P4H86YMV183SEDPTL | CP106: Total Female Employees | CQ106: 0023 | CS106: S | CU106: L | CV106: X | DG106: 9 | DH106: 0ORGUNIT | DI106: 0SALES_OFF | DJ106: Sales Office | DK106: 0000 | DL106: X | DM106: 0 | DN106: 0 | DO106: 0 | DT106: 0000 | EA106: 12 | EB106: D4O21W1IBUGH9QWWACXZMY8L5 | EC106: D5PZA7P4P44X91EPWL5ZBJDH5 | EI106: 00 | EJ106: X | EK106: 0 | EL106: 0 | HW106: 9 | HX106: 0000000010
CM107: 11 | CN107: D5PZA7P4P3ZJGP4ENT4OUJLKP | CO107: D5PZA7P4P47ZZIPR6QWFL8YK9 | CP107: Total Workforce | CQ107: 0024 | CS107: S | CU107: L | CV107: X | DG107: 9 | DH107: 0CNTRCTTYPE | DI107: 0CNTRCTISFT | DJ107: Fixed-Term Contract | DK107: 0000 | DL107: X | DM107: 2 | DN107: 0 | DO107: 0 | DT107: 0000 | EA107: 12 | EB107: D4O21W1IBUGH9QWWACXZMY8L5 | EC107: D5PZA7P4P45OXNQH84LLDYRQX | EI107: 00 | EJ107: X | EK107: 0 | EL107: 0 | HW107: 9 | HX107: 0000000021
CM108: 11 | CN108: D4O21W1IBUB3HEML1KWP5YGOP | CO108: DEN0OSIFULDRI056PS9TTR4S9 | CP108: Total Teaching Staff | CQ108: 0024 | CS108: S | CU108: L | DG108: 8 | DH108: 0ORGUNIT | DI108: 0BBPPURGRPX | DJ108: Ind.Purchasing Group | DK108: 0000 | DL108: X | DM108: 2 | DN108: 0 | DO108: 0 | DT108: 0000 | EA108: 12 | EB108: D4O21W1IBUGH9QWWACXZMY8L5 | EC108: D5PZA7P4P46GMA28JO17GE60P | EE108: 0 | EI108: 00 | EJ108: X | EK108: 0 | EL108: 0 | HW108: 9 | HX108: 0000000022
CM109: 11 | CN109: D4O21W1IBUB3HEML1KWP5YGOP | CO109: DEN0OSIFULEJ6MGY1BPFW6J21 | CP109: Total Non-Teaching Staff F/T | CQ109: 0025 | CS109: S | CU109: L | DG109: 8 | DH109: 0ORGUNIT | DI109: 0BBPPURORGX | DJ109: Ind. Purchasing Org. | DK109: 0000 | DL109: X | DM109: 2 | DN109: 0 | DO109: 0 | DT109: 0000 | EA109: 12 | EB109: D4O21W1IBUGH9QWWACXZMY8L5 | EC109: D5PZA7P4P478AWDZV7GTITKAH | EE109: 2 | EI109: 00 | EJ109: X | EK109: 0 | EL109: 0 | HW109: 9 | HX109: 0000000023
CM110: 11 | CN110: D4O21W1IBUB3HEML1KWP5YGOP | CO110: DEN07Y1DTSOUA299LF6TNG6WP | CP110: Total Non-Teaching Staff P/T | CQ110: 0026 | CS110: S | CU110: L | DG110: 8 | DH110: 0ORGUNIT | DI110: 0BBP_BUYID | DJ110: Buyer ID | DK110: 0000 | DL110: X | DM110: 5 | DN110: 0 | DO110: 0 | DT110: 0000 | EA110: 12 | EB110: D4O21W1IBUGH9QWWACXZMY8L5 | EC110: D5PZA7P4P47ZZIPR6QWFL8YK9 | EI110: 00 | EJ110: X | EK110: 0 | EL110: 0 | HW110: 9 | HX110: 0000000030
CM111: 11 | CN111: D4O21W1IBUB3HEML1KWP5YGOP | CO111: DEN07Y1DTSR5BX8JK1HNUQDQ1 | CP111: Total Non-Teaching Staff | CQ111: 0027 | CS111: S | CU111: L | DG111: 8 | DH111: 0ORGUNIT | DI111: 0BBP_ISCOMP | DJ111: Organizational Unit is Company | DK111: 0000 | DL111: X | DM111: 1 | DN111: 0 | DO111: 0 | DT111: 0000 | EA111: 12 | EB111: D4O21W1IBUGH9QWWACXZMY8L5 | EC111: D5PZA7P4P48RO51IIAC1NOCU1 | EI111: 00 | EJ111: X | EK111: 0 | EL111: 0 | HW111: 9 | HX111: 0000000040
CM112: 11 | CN112: D4O21W1IBUB3HEML1KWP5YGOP | CO112: D4O21W1IBUXEBE3LC8HH4CYK9 | CP112: Total - All WPBR Grades F/T | CQ112: 0028 | CS112: F | CU112: L | DG112: 8 | DH112: 0ORGUNIT | DI112: 0BUS_AREA | DJ112: Business area | DK112: 0000 | DL112: X | DM112: 0 | DN112: 0 | DO112: 0 | DT112: 0000 | EA112: 12 | EB112: D4O21W1IBUGH9QWWACXZMY8L5 | EC112: D5PZA7P4P49JCRD9TTRNQ3R3T | EI112: 00 | EJ112: X | EK112: 0 | EL112: 0 | HW112: 9 | HX112: 0000000041
CM113: 11 | CN113: D4O21W1IBUB3HEML1KWP5YGOP | CO113: DEN07Y1DTSO2LFXI9VR7L0SMX | CP113: Total - All WPBR Grades P/T | CQ113: 0029 | CS113: F | CU113: L | DG113: 8 | DH113: 0ORGUNIT | DI113: 0COMP_CODE | DJ113: Company code | DK113: 0000 | DL113: X | DM113: 0 | DN113: 0 | DO113: 0 | DT113: 0000 | EA113: 12 | EB113: D4O21W1IBUGH9QWWACXZMY8L5 | EC113: D5PZA7P4P4AB1DP15D79SJ5DL | EE113: 0 | EI113: 00 | EJ113: X | EK113: 0 | EL113: 0 | HW113: 9 | HX113: 0000000042 | HY113: 0
CM114: 11 | CN114: D4O21W1IBUB3HEML1KWP5YGOP | CO114: DEN07Y1DTSQDNAWS8I21SAZG9 | CP114: Total Workforce - All WPBR Grades | CQ114: 0030 | CS114: F | CU114: L | DG114: 8 | DH114: 0ORGUNIT | DI114: 0CO_MST_AR | DJ114: Controlling Area of Master Cost Center | DK114: 0000 | DL114: X | DM114: 0 | DN114: 0 | DO114: 0 | DT114: 0000 | EA114: 12 | EB114: D4O21W1IBUGH9QWWACXZMY8L5 | EC114: D5PZA7P4P4B2Q00SGWMVUYJND | EE114: 0 | EI114: 00 | EJ114: X | EK114: 0 | EL114: 0 | HW114: 9 | HX114: 0000000043 | HY114: 0
CM115: 11 | CN115: D4O21W1IBUB3HEML1KWP5YGOP | CO115: D4O21W1IBV8XKOZZ5BZO4RWMX | CP115: Total Workforce (All) F/T | CQ115: 0031 | CS115: S | CU115: L | DG115: 8 | DH115: 0ORGUNIT | DI115: 0CRMSALGRPX | DJ115: Sls Group: Indicator | DK115: 0000 | DL115: X | DM115: 2 | DN115: 0 | DO115: 0 | DT115: 0000 | EA115: 12 | EB115: D4O21W1IBUGH9QWWACXZMY8L5 | EC115: D5PZA7P4P4BUEMCJSG2HXDXX5 | EE115: 0 | EI115: 00 | EJ115: X | EK115: 0 | EL115: 0 | HW115: 9 | HX115: 0000000109 | HY115: 0
CM116: 11 | CN116: D4O21W1IBUB3HEML1KWP5YGOP | CO116: DEN07Y1DTSRX0JKAVKX9X5RZT | CP116: Total Workforce (All) P/T | CQ116: 0032 | CS116: S | CU116: L | DG116: 8 | DH116: 0ORGUNIT | DI116: 0CRMSALOFFX | DJ116: Sls Office:Indicator | DK116: 0000 | DL116: X | DM116: 2 | DN116: 0 | DO116: 0 | DT116: 0000 | EA116: 12 | EB116: D4O21W1IBUGH9QWWACXZMY8L5 | EC116: D5PZA7P4P4CM38OB3ZI3ZTC6X | EE116: 0 | EI116: 00 | EJ116: X | EK116: 0 | EL116: 0 | HW116: 9 | HX116: 0000000113
CM117: 11 | CN117: D4O21W1IBUB3HEML1KWP5YGOP | CO117: DEN07Y1DTSSOP5W274CVZL69L | CP117: Total Workforce (All) | CQ117: 0033 | CS117: S | CU117: L | DG117: 8 | DH117: 0ORGUNIT | DI117: 0CRMSALORGX | DJ117: Sales Org. Indicator | DK117: 0000 | DL117: X | DM117: 2 | DN117: 0 | DO117: 0 | DT117: 0000 | EA117: 12 | EB117: D4O21W1IBUGH9QWWACXZMY8L5 | EC117: D5PZA7P4P4DDRV02FIXQ28QGP | EI117: 00 | EJ117: X | EK117: 0 | EL117: 0 | HW117: 9 | HX117: 0000000120
CM118: 10 | CN118: D4O2P4A3SH8H6WZIVSYIIRP4P | CO118: D4O2P4A3SHBJXEAK5YOYSHA7T | CP118: Teacher F/T | CQ118: 0001 | CS118: S | CU118: L | DG118: 8 | DH118: 0ORGUNIT | DI118: 0CRMSRVTGRP | DJ118: Ex. CRM Service Org. | DK118: 0000 | DL118: X | DM118: 1 | DN118: 0 | DO118: 0 | DT118: 0000 | EA118: 12 | EB118: D4O21W1IBUGH9QWWACXZMY8L5 | EC118: D5PZA7P4P4E5GHBTR2DC4O4QH | EI118: 00 | EJ118: X | EK118: 0 | EL118: 0 | HW118: 9 | HX118: 0000000121
CM119: 10 | CN119: D5PZA7P4P3ZJGP4ENT4OUJLKP | CO119: D5PZA7P4P40B5BG5ZCKAWYZUH | CP119: Total White Male Disabled Employees | CQ119: 0001 | CS119: S | CU119: L | CV119: X | DG119: 8 | DH119: 0ORGUNIT | DI119: 0CRM_SALGRP | DJ119: CRM Sales Group | DK119: 0000 | DL119: X | DM119: 1 | DN119: 0 | DO119: 0 | DT119: 0000 | EA119: 12 | EB119: D4O21W1IBUGH9QWWACXZMY8L5 | EC119: D5PZA7P4P4EX53NL2LSY73J09 | EE119: 0 | EI119: 00 | EJ119: X | EK119: 0 | EL119: 0 | HW119: 9 | HX119: 0000010001 | HY119: D9UV84VAX4ANMLF7VE1O5UCXL
CM120: 10 | CN120: D5PZA7P4P3ZJGP4ENT4OUJLKP | CO120: D5PZA7P4P412TXRXAVZWZEE49 | CP120: Total White Female Disabled Employees | CQ120: 0002 | CS120: S | CU120: L | CV120: X | DG120: 8 | DH120: 0ORGUNIT | DI120: 0CRM_SALOFF | DJ120: CRM Sales Office | DK120: 0000 | DL120: X | DM120: 1 | DN120: 0 | DO120: 0 | DT120: 0000 | EA120: 12 | EB120: D4O21W1IBUGH9QWWACXZMY8L5 | EC120: D5PZA7P4P4FOTPZCE58K9IXA1 | EE120: 2 | EI120: 00 | EJ120: X | EK120: 0 | EL120: 0 | HW120: 9 | HX120: 0000010002 | HY120: D9UV84VAX3YCOO72QR3V300L5
CM121: 10 | CN121: D4O2P4A3SH8H6WZIVSYIIRP4P | CO121: DEN9FTLAHPZM13J0WXXO1VFND | CP121: Teacher P/T | CQ121: 0002 | CS121: S | CU121: L | DG121: 8 | DH121: 0ORGUNIT | DI121: 0CRM_SALORG | DJ121: CRM Sales Org. | DK121: 0000 | DL121: X | DM121: 1 | DN121: 0 | DO121: 0 | DT121: 0000 | EA121: 12 | EB121: D4O21W1IBUGH9QWWACXZMY8L5 | EC121: D5PZA7P4P4GGICB3POO6BYBJT | EI121: 00 | EJ121: X | EK121: 0 | EL121: 0 | HW121: 9 | HX121: 0000000105
CM122: 10 | CN122: D5PZA7P4P3ZJGP4ENT4OUJLKP | CO122: D5PZA7P4P41UIK3OMFFJ1TSE1 | CP122: Total White Disabled Employees | CQ122: 0003 | CS122: F | CU122: L | DG122: 8 | DH122: 0ORGUNIT | DI122: 0CRM_SRVORG | DJ122: Service Org. CRM | DK122: 0000 | DL122: X | DM122: 1 | DN122: 0 | DO122: 0 | DT122: 0000 | EA122: 12 | EB122: D4O21W1IBUGH9QWWACXZMY8L5 | EC122: D5PZA7P4P4H86YMV183SEDPTL | EI122: 00 | EJ122: X | EK122: 0 | EL122: 0 | HW122: 9 | HX122: 0000000106
CM123: 10 | CN123: D4O2P4A3SH8H6WZIVSYIIRP4P | CO123: DEN9GQ7MCHA8Y0DFMMJUL514P | CP123: Teacher Total | CQ123: 0003 | CS123: S | CU123: L | DG123: 8 | DH123: 0ORGUNIT | DI123: 0LOGSYS | DJ123: Source System | DK123: 0000 | DL123: X | DM123: 1 | DN123: 0 | DO123: 0 | DT123: 0000 | EA123: 12 | EB123: D4O21W1IBUGH9QWWACXZMY8L5 | EC123: D5PZAGQNPNJN6QK9OBJM8YLMH | EI123: 00 | EJ123: X | EK123: 0 | EL123: 0 | HW123: 9 | HX123: 0000000112 | HY123: 0
CM124: 10 | CN124: D5PZA7P4P3ZJGP4ENT4OUJLKP | CO124: D5PZA7P4P42M76FFXYV5496NT | CP124: Total Ethnic Male Disabled Employees | CQ124: 0004 | CS124: S | CU124: L | CV124: X | DG124: 8 | DH124: 0ORGUNIT | DI124: 0MAST_CCTR | DJ124: Master Cost Center | DK124: 0000 | DL124: X | DM124: 0 | DN124: 0 | DO124: 0 | DT124: 0000 | EA124: 12 | EB124: D4O21W1IBUH8YD8NLWDLPDMUX | EC124: D5PZA7P4P40B5BG5ZCKAWYZUH | EI124: 00 | EJ124: X | EK124: 0 | EL124: 0 | HW124: 9 | HX124: 0000000200 | HY124: X
CM125: 10 | CN125: D4O2P4A3SH8H6WZIVSYIIRP4P | CO125: D4O2P4A3SHEMNVLLG4FF26VAX | CP125: Principal Teacher F/T | CQ125: 0004 | CS125: S | CU125: L | DG125: 8 | DH125: 0ORGUNIT | DI125: 0PERS_AREA | DJ125: Personnel Area | DK125: 0000 | DL125: X | DM125: 1 | DN125: 0 | DO125: 0 | DT125: 0000 | EA125: 12 | EB125: D4O21W1IBUH8YD8NLWDLPDMUX | EC125: D5PZA7P4P412TXRXAVZWZEE49 | EI125: 00 | EJ125: X | EK125: 0 | EL125: 0 | HW125: 9 | HX125: 0000004000 | HY125: X
... 156 more rows

Sheet SAPBEXfiltersDefunct (hidden)
CW2: 0 | EZ2: 9 | GX2: 16
CW3: 8 | EZ3: 12 | GX3: 31
EZ4: 12 | FA4: DKYHCAJDHS3WXNE8MAR8K85IX | FC4: X | FD4: 3 | FE4: 0 | FF4: 0ORGUNIT | FI4: 0 | GX4: 12 | GY4: DKYHCAJDHS3WXNE8MAR8K85IX | HB4: 0001 | HC4: 0001 | HD4: 0 | HE4: 0000 | HF4: I | HG4: EQ | HH4: 50004880 | HI4: 0ORGUNIT | HJ4: 50004880 | HL4: 1 | HN4: 4 | HP4: Corporate Services | HT4: ORGEH | HU4: 1 | HW4: 000 | HX4: 1 | HY4: 20150930 | HZ4: 1 | IC4: 00
EZ5: 11 | FA5: DKYHCBTW55CJFUTQ0FUNHHREH | FC5: X | FD5: 3 | FE5: 0 | FF5: 0ORGUNIT | FI5: 0 | GX5: 11 | GY5: DKYHCBTW55CJFUTQ0FUNHHREH | HB5: 0001 | HC5: 0001 | HD5: 0 | HE5: 0000 | HF5: I | HG5: EQ | HH5: 50004878 | HJ5: 50004878 | HL5: 1 | HN5: 0 | HP5: Chief Executive Srv | HU5: 0 | HX5: 0 | HZ5: 0 | IC5: 00
EZ6: 10 | FA6: DKYHDLNCYY117C7345A854ZJT | FC6: X | FD6: 3 | FE6: 0 | FF6: ZPERSAREA | FI6: 0 | GX6: 11 | GY6: DKYHCBTW55CJFUTQ0FUNHHREH | HB6: 0002 | HC6: 0001 | HD6: 0 | HE6: 0000 | HF6: I | HG6: EQ | HH6: 50004879 | HI6: 0ORGUNIT | HJ6: 50004879 | HL6: 1 | HN6: 4 | HP6: Chief Executive Organisation Structure | HT6: ORGEH | HU6: 1 | HW6: 000 | HX6: 1 | HY6: 20150930 | HZ6: 1 | IC6: 00
EZ7: 9 | FA7: DKYHDLNCYYIPXLPJHK9BOZ3SP | FC7: X | FD7: 3 | FE7: 0 | FF7: ZPERSAREA | FI7: 0 | GX7: 11 | GY7: DKYHCBTW55CJFUTQ0FUNHHREH | HB7: 0003 | HC7: 0001 | HD7: 0 | HE7: 0000 | HF7: I | HG7: EQ | HH7: 50004939 | HI7: 0ORGUNIT | HJ7: 50004939 | HL7: 1 | HN7: 4 | HP7: Communication & Organisation Development | HT7: ORGEH | HU7: 1 | HW7: 000 | HX7: 1 | HY7: 20150930 | HZ7: 1 | IC7: 00
EZ8: 8 | FA8: DKYHDN2I3GO5ISNRM64BXMOE1 | FC8: X | FD8: 3 | FE8: 0 | FF8: ZPERSAREA | FI8: 0 | GX8: 11 | GY8: DKYHCBTW55CJFUTQ0FUNHHREH | HB8: 0004 | HC8: 0001 | HD8: 0 | HE8: 0000 | HF8: I | HG8: EQ | HH8: 50258124 | HI8: 0ORGUNIT | HJ8: 50258124 | HL8: 1 | HN8: 4 | HP8: CE Corporate Policy | HT8: ORGEH | HU8: 1 | HW8: 000 | HX8: 1 | HY8: 20150930 | HZ8: 1 | IC8: 00
EZ9: 7 | FA9: DKYHDN2I3H4AVTIPCI87CM03D | FC9: X | FD9: 3 | FE9: 0 | FF9: ZPERSAREA | FI9: 0 | GX9: 10 | GY9: DKYHDLNCYY117C7345A854ZJT | HB9: 0001 | HC9: 0001 | HD9: 0 | HE9: 0000 | HF9: I | HG9: EQ | HH9: 0051 | HJ9: 0051 | HL9: 1 | HN9: 0 | HP9: Education | HU9: 0 | HX9: 0 | HZ9: 0 | IC9: 00
EZ10: 6 | FA10: DKYHDOEPQCJE4X8WVGAN6KGE1 | FC10: X | FD10: 3 | FE10: 0 | FF10: ZPERSAREA | FI10: 0 | GX10: 9 | GY10: DKYHDLNCYYIPXLPJHK9BOZ3SP | HB10: 0001 | HC10: 0001 | HD10: 0 | HE10: 0000 | HF10: I | HG10: EQ | HH10: 0091 | HJ10: 0091 | HL10: 1 | HN10: 0 | HP10: Social Work | HU10: 0 | HX10: 0 | HZ10: 0 | IC10: 00
EZ11: 5 | FA11: DKYHDOEPQCZJHY3ULSEILJS3D | FC11: X | FD11: 3 | FE11: 0 | FF11: ZPERSAREA | FI11: 0 | GX11: 8 | GY11: DKYHDN2I3GO5ISNRM64BXMOE1 | HB11: 0001 | HC11: 0001 | HD11: 0 | HE11: 0000 | HF11: I | HG11: EQ | HH11: 0081 | HJ11: 0081 | HL11: 1 | HN11: 0 | HP11: Land and Environmental | HU11: 0 | HX11: 0 | HZ11: 0 | IC11: 00
EZ12: 4 | FA12: DKYHDPT64SL8XHD4MRV8E1IIH | FC12: X | FD12: 3 | FE12: 0 | FF12: 0ORGUNIT | FI12: 0 | GX12: 7 | GY12: DKYHDN2I3H4AVTIPCI87CM03D | HB12: 0001 | HC12: 0001 | HD12: 0 | HE12: 0000 | HF12: I | HG12: EQ | HH12: 0071 | HJ12: 0071 | HL12: 1 | HN12: 0 | HP12: Financial | HU12: 0 | HX12: 0 | HZ12: 0 | IC12: 00
GX13: 6 | GY13: DKYHDOEPQCJE4X8WVGAN6KGE1 | HB13: 0001 | HC13: 0001 | HD13: 0 | HE13: 0000 | HF13: I | HG13: EQ | HH13: 0051 | HJ13: 0051 | HL13: 1 | HN13: 0 | HP13: Education | HU13: 0 | HX13: 0 | HZ13: 0 | IC13: 00
GX14: 5 | GY14: DKYHDOEPQCZJHY3ULSEILJS3D | HB14: 0001 | HC14: 0001 | HD14: 0 | HE14: 0000 | HF14: I | HG14: EQ | HH14: 0031 | HJ14: 0031 | HL14: 1 | HN14: 0 | HP14: Development and Regeneration | HU14: 0 | HX14: 0 | HZ14: 0 | IC14: 00
GX15: 4 | GY15: DKYHDPT64SL8XHD4MRV8E1IIH | HB15: 0001 | HC15: 0001 | HD15: 0 | HE15: 0000 | HF15: I | HG15: EQ | HH15: 50004878 | HJ15: 50004878 | HL15: 1 | HN15: 0 | HP15: Chief Executive Srv | HU15: 0 | HX15: 0 | HZ15: 0 | IC15: 00
GX16: 4 | GY16: DKYHDPT64SL8XHD4MRV8E1IIH | HB16: 0002 | HC16: 0001 | HD16: 0 | HE16: 0000 | HF16: I | HG16: EQ | HH16: 50004879 | HI16: 0ORGUNIT | HJ16: 50004879 | HL16: 1 | HN16: 4 | HP16: Chief Executive Organisation Structure | HT16: ORGEH | HU16: 1 | HW16: 000 | HX16: 1 | HY16: 20150930 | HZ16: 1 | IC16: 00
GX17: 4 | GY17: DKYHDPT64SL8XHD4MRV8E1IIH | HB17: 0003 | HC17: 0001 | HD17: 0 | HE17: 0000 | HF17: I | HG17: EQ | HH17: 50004880 | HI17: 0ORGUNIT | HJ17: 50004880 | HL17: 1 | HN17: 4 | HP17: Corporate Services | HT17: ORGEH | HU17: 1 | HW17: 000 | HX17: 1 | HY17: 20150930 | HZ17: 1 | IC17: 00
GX18: 4 | GY18: DKYHDPT64SL8XHD4MRV8E1IIH | HB18: 0004 | HC18: 0001 | HD18: 0 | HE18: 0000 | HF18: I | HG18: EQ | HH18: 50004939 | HI18: 0ORGUNIT | HJ18: 50004939 | HL18: 1 | HN18: 4 | HP18: Communication & Organisation Development | HT18: ORGEH | HU18: 1 | HW18: 000 | HX18: 1 | HY18: 20150930 | HZ18: 1 | IC18: 00
GX19: 4 | GY19: DKYHDPT64SL8XHD4MRV8E1IIH | HB19: 0005 | HC19: 0001 | HD19: 0 | HE19: 0000 | HF19: I | HG19: EQ | HH19: 50258124 | HI19: 0ORGUNIT | HJ19: 50258124 | HL19: 1 | HN19: 4 | HP19: CE Corporate Policy | HT19: ORGEH | HU19: 1 | HW19: 000 | HX19: 1 | HY19: 20150930 | HZ19: 1 | IC19: 00

Sheet BExRepositorySheet (hidden)
A1: 7

Sheet Summary
A1: WORKFORCE PROFILE BY DISABILITY
A2: GLASGOW LIFE
A3: September 2017
B5: The table below has been simplified to provide a summary of the Company's workforce by disability. The detailed information to support this is provided on Page 2
C13: Disabled | F13: Non Disabled | I13: Non Disclosed | L13: Total Workforce
A15: GRADE & DISABILITY | C15: Number | D15: % | F15: Number | G15: % | I15: Number | J15: % | L15: Number
A17: Grade 1-4 Total | C17: =SUM(Template!L8) -> 73 | D17: =SUM(C17/L17) -> 0.045625 | F17: =Template!AD8 -> 502 | G17: =SUM(F17/L17) -> 0.31375 | I17: =Template!P8 -> 1025 | J17: =SUM(I17/L17) -> 0.640625 | L17: =SUM(C17+F17+I17) -> 1600
A19: Grade 5-7 Total | C19: =Template!L12 -> 24 | D19: =SUM(C19/L19) -> 0.03041825095 | F19: =Template!AD12 -> 188 | G19: =SUM(F19/L19) -> 0.2382762991 | I19: =Template!P12 -> 577 | J19: =SUM(I19/L19) -> 0.7313054499 | L19: =SUM(C19+F19+I19) -> 789
A21: Grade 8 Total | C21: =Template!L16 -> 3 | D21: =SUM(C21/L21) -> 0.05555555556 | F21: =Template!AD16 -> 13 | G21: =SUM(F21/L21) -> 0.2407407407 | I21: =Template!P16 -> 38 | J21: =SUM(I21/L21) -> 0.7037037037 | L21: =SUM(C21+F21+I21) -> 54
A23: Grade 9-15 Total | C23: =Template!L24+Template!L28 -> 0 | D23: =SUM(C23/L23) -> 0 | F23: =Template!AD24+Template!AD28 -> 7 | G23: =SUM(F23/L23) -> 0.2258064516 | I23: =Template!P24+Template!P28 -> 24 | J23: =SUM(I23/L23) -> 0.7741935484 | L23: =SUM(C23+F23+I23) -> 31
A25: Other Non Pay & Grading Structure Total | C25: =Template!L32 -> 0 | D25: =SUM(C25/L25) -> 0 | F25: =Template!AD32 -> 33 | G25: =SUM(F25/L25) -> 0.4024390244 | I25: =Template!P32 -> 49 | J25: =SUM(I25/L25) -> 0.5975609756 | L25: =SUM(C25+F25+I25) -> 82
A27: Total Workforce F/T | C27: =Template!L34 -> 54 | D27: =SUM(C27/L27) -> 0.03206650831 | F27: =Template!AD34 -> 460 | G27: =SUM(F27/L27) -> 0.2731591449 | I27: =Template!P34 -> 1170 | J27: =SUM(I27/L27) -> 0.6947743468 | L27: =SUM(C27+F27+I27) -> 1684
A29: Total Workforce P/T | C29: =Template!L36 -> 46 | D29: =SUM(C29/L29) -> 0.05275229358 | F29: =Template!AD36 -> 283 | G29: =SUM(F29/L29) -> 0.3245412844 | I29: =Template!P36 -> 543 | J29: =SUM(I29/L29) -> 0.622706422 | L29: =SUM(C29+F29+I29) -> 872
A31: Total Workforce | C31: =Template!L38 -> 100 | D31: =SUM(C31/L31) -> 0.03912363067 | F31: =Template!AD38 -> 743 | G31: =SUM(F31/L31) -> 0.2906885759 | I31: =Template!P38 -> 1713 | J31: =SUM(I31/L31) -> 0.6701877934 | L31: =SUM(C31+F31+I31) -> 2556

Sheet Template
B2: White Disabled | F2: Black & Minority Ethnic Disabled | J2: Total Disabled | T2: Total White Non Disabled | X2: Total Black & Minority Ethnic Non Disabled | AB2: Total Non Disabled Employees | AH2: Total Workforce
A4: GLASGOW LIFE BY GRADE & DISABILITY | B4: Total White Male Disabled Employees | C4: Total White Disabled Female Employees | D4: Total White Disabled Employees | F4: Total Ethnic Male Disabled Employees | G4: Total Ethnic Female Disabled Employees | H4: Total Ethnic Disabled Employees | J4: Disabled Male Employees | K4: Disabled Female Employees | L4: Total Disabled Employees | N4: Total Disabled Employees % | P4: Total Non Disclosed | R4: Total Non Disclosed % | T4: Total White Male Non Disabled Employees | U4: Total White Female Non Disabled Employees | V4: Total White Non Disabled Employees | X4: Total Ethnic Male Non Disabled Employees | Y4: Total Ethnic Female Non Disabled Employees | Z4: Total Ethnic Non Disabled Employees | AB4: Total Male Non Disabled Employees | AC4: Total Female Non Disabled Employees | AD4: Total Non Disabled Employees | AF4: Total Non Disabled Employees % | AH4: Total Male Employees | AI4: Total Female Employees | AJ4: Total Workforce
A6: Grade 1-4 F/T | B6: =Query!B27 -> 20 | C6: =Query!C27 -> 9 | D6: =SUM(B6:C6) -> 29 | F6: =Query!E27 -> 2 | G6: =Query!F27 -> 0 | H6: =SUM(F6:G6) -> 2 | J6: =Query!H27 -> 22 | K6: =Query!I27 -> 9 | L6: =SUM(J6:K6) -> 31 | N6: =SUM(L6/AJ6) -> 0.03502824859 | P6: =Query!L27 -> 603 | R6: =SUM(P6/AJ6) -> 0.6813559322 | T6: =Query!M27 -> 145 | U6: =Query!N27 -> 85 | V6: =SUM(T6:U6) -> 230 | X6: =Query!P27 -> 15 | Y6: =Query!Q27 -> 6 | Z6: =SUM(X6:Y6) -> 21 | AB6: =Query!S27 -> 160 | AC6: =Query!T27 -> 91 | AD6: =SUM(AB6:AC6) -> 251 | AF6: =SUM(AD6/AJ6) -> 0.2836158192 | AH6: =Query!W27 -> 562 | AI6: =Query!X27 -> 323 | AJ6: =SUM(AH6:AI6) -> 885
A7: Grade 1-4 P/T | B7: =Query!B28 -> 20 | C7: =Query!C28 -> 18 | D7: =SUM(B7:C7) -> 38 | F7: =Query!E28 -> 2 | G7: =Query!F28 -> 2 | H7: =SUM(F7:G7) -> 4 | J7: =Query!H28 -> 22 | K7: =Query!I28 -> 20 | L7: =SUM(J7:K7) -> 42 | N7: =SUM(L7/AJ7) -> 0.05874125874 | P7: =Query!L28 -> 422 | R7: =SUM(P7/AJ7) -> 0.5902097902 | T7: =Query!M28 -> 94 | U7: =Query!N28 -> 135 | V7: =SUM(T7:U7) -> 229 | X7: =Query!P28 -> 5 | Y7: =Query!Q28 -> 17 | Z7: =SUM(X7:Y7) -> 22 | AB7: =Query!S28 -> 99 | AC7: =Query!T28 -> 152 | AD7: =SUM(AB7:AC7) -> 251 | AF7: =SUM(AD7/AJ7) -> 0.351048951 | AH7: =Query!W28 -> 263 | AI7: =Query!X28 -> 452 | AJ7: =SUM(AH7:AI7) -> 715
A8: Grade 1-4 Total | B8: =SUM(B6:B7) -> 40 | C8: =SUM(C6:C7) -> 27 | D8: =SUM(D6:D7) -> 67 | F8: =SUM(F6:F7) -> 4 | G8: =SUM(G6:G7) -> 2 | H8: =SUM(H6:H7) -> 6 | J8: =SUM(J6:J7) -> 44 | K8: =SUM(K6:K7) -> 29 | L8: =SUM(L6:L7) -> 73 | N8: =SUM(L8/AJ8) -> 0.045625 | P8: =SUM(P6:P7) -> 1025 | R8: =SUM(P8/AJ8) -> 0.640625 | T8: =SUM(T6:T7) -> 239 | U8: =SUM(U6:U7) -> 220 | V8: =SUM(V6:V7) -> 459 | X8: =SUM(X6:X7) -> 20 | Y8: =SUM(Y6:Y7) -> 23 | Z8: =SUM(Z6:Z7) -> 43 | AB8: =SUM(AB6:AB7) -> 259 | AC8: =SUM(AC6:AC7) -> 243 | AD8: =SUM(AD6:AD7) -> 502 | AF8: =SUM(AD8/AJ8) -> 0.31375 | AH8: =SUM(AH6:AH7) -> 825 | AI8: =SUM(AI6:AI7) -> 775 | AJ8: =SUM(AJ6:AJ7) -> 1600
A10: Grade 5-7 F/T | B10: =Query!B30 -> 9 | C10: =Query!C30 -> 12 | D10: =SUM(B10:C10) -> 21 | F10: =Query!E30 -> 0 | G10: =Query!F30 -> 1 | H10: =SUM(F10:G10) -> 1 | J10: =Query!H30 -> 9 | K10: =Query!I30 -> 13 | L10: =SUM(J10:K10) -> 22 | N10: =SUM(L10/AJ10) -> 0.03395061728 | P10: =Query!L30 -> 467 | R10: =SUM(P10/AJ10) -> 0.7206790123 | T10: =Query!M30 -> 72 | U10: =Query!N30 -> 76 | V10: =SUM(T10:U10) -> 148 | X10: =Query!P30 -> 6 | Y10: =Query!Q30 -> 5 | Z10: =SUM(X10:Y10) -> 11 | AB10: =Query!S30 -> 78 | AC10: =Query!T30 -> 81 | AD10: =SUM(AB10:AC10) -> 159 | AF10: =SUM(AD10/AJ10) -> 0.2453703704 | AH10: =Query!W30 -> 302 | AI10: =Query!X30 -> 346 | AJ10: =SUM(AH10:AI10) -> 648
A11: Grade 5-7 P/T | B11: =Query!B31 -> 0 | C11: =Query!C31 -> 2 | D11: =SUM(B11:C11) -> 2 | F11: =Query!E31 -> 0 | G11: =Query!F31 -> 0 | H11: =SUM(F11:G11) -> 0 | J11: =Query!H31 -> 0 | K11: =Query!I31 -> 2 | L11: =SUM(J11:K11) -> 2 | N11: =SUM(L11/AJ11) -> 0.01418439716 | P11: =Query!L31 -> 110 | R11: =SUM(P11/AJ11) -> 0.780141844 | T11: =Query!M31 -> 3 | U11: =Query!N31 -> 23 | V11: =SUM(T11:U11) -> 26 | X11: =Query!P31 -> 0 | Y11: =Query!Q31 -> 3 | Z11: =SUM(X11:Y11) -> 3 | AB11: =Query!S31 -> 3 | AC11: =Query!T31 -> 26 | AD11: =SUM(AB11:AC11) -> 29 | AF11: =SUM(AD11/AJ11) -> 0.2056737589 | AH11: =Query!W31 -> 24 | AI11: =Query!X31 -> 117 | AJ11: =SUM(AH11:AI11) -> 141
A12: Grade 5-7 Total | B12: =SUM(B10:B11) -> 9 | C12: =SUM(C10:C11) -> 14 | D12: =SUM(D10:D11) -> 23 | F12: =SUM(F10:F11) -> 0 | G12: =SUM(G10:G11) -> 1 | H12: =SUM(H10:H11) -> 1 | J12: =SUM(J10:J11) -> 9 | K12: =SUM(K10:K11) -> 15 | L12: =SUM(L10:L11) -> 24 | N12: =SUM(L12/AJ12) -> 0.03041825095 | P12: =SUM(P10:P11) -> 577 | R12: =SUM(P12/AJ12) -> 0.7313054499 | T12: =SUM(T10:T11) -> 75 | U12: =SUM(U10:U11) -> 99 | V12: =SUM(V10:V11) -> 174 | X12: =SUM(X10:X11) -> 6 | Y12: =SUM(Y10:Y11) -> 8 | Z12: =SUM(Z10:Z11) -> 14 | AB12: =SUM(AB10:AB11) -> 81 | AC12: =SUM(AC10:AC11) -> 107 | AD12: =SUM(AD10:AD11) -> 188 | AF12: =SUM(AD12/AJ12) -> 0.2382762991 | AH12: =SUM(AH10:AH11) -> 326 | AI12: =SUM(AI10:AI11) -> 463 | AJ12: =SUM(AJ10:AJ11) -> 789
A14: Grade 8 F/T | B14: =Query!B33 -> 0 | C14: =Query!C33 -> 1 | D14: =SUM(B14:C14) -> 1 | F14: =Query!E33 -> 0 | G14: =Query!F33 -> 0 | H14: =SUM(F14:G14) -> 0 | J14: =Query!H33 -> 0 | K14: =Query!I33 -> 1 | L14: =SUM(J14:K14) -> 1 | N14: =SUM(L14/AJ14) -> 0.02040816327 | P14: =Query!L33 -> 35 | R14: =SUM(P14/AJ14) -> 0.7142857143 | T14: =Query!M33 -> 6 | U14: =Query!N33 -> 7 | V14: =SUM(T14:U14) -> 13 | X14: =Query!P33 -> 0 | Y14: =Query!Q33 -> 0 | Z14: =SUM(X14:Y14) -> 0 | AB14: =Query!S33 -> 6 | AC14: =Query!T33 -> 7 | AD14: =SUM(AB14:AC14) -> 13 | AF14: =SUM(AD14/AJ14) -> 0.2653061224 | AH14: =Query!W33 -> 23 | AI14: =Query!X33 -> 26 | AJ14: =SUM(AH14:AI14) -> 49
A15: Grade 8 P/T | B15: =Query!B34 -> 0 | C15: =Query!C34 -> 2 | D15: =SUM(B15:C15) -> 2 | F15: =Query!E34 -> 0 | G15: =Query!F34 -> 0 | H15: =SUM(F15:G15) -> 0 | J15: =Query!H34 -> 0 | K15: =Query!I34 -> 2 | L15: =SUM(J15:K15) -> 2 | N15: =SUM(L15/AJ15) -> 0.4 | P15: =Query!L34 -> 3 | R15: =SUM(P15/AJ15) -> 0.6 | T15: =Query!M34 -> 0 | U15: =Query!N34 -> 0 | V15: =SUM(T15:U15) -> 0 | X15: =Query!P34 -> 0 | Y15: =Query!Q34 -> 0 | Z15: =SUM(X15:Y15) -> 0 | AB15: =Query!S34 -> 0 | AC15: =Query!T34 -> 0 | AD15: =SUM(AB15:AC15) -> 0 | AF15: =SUM(AD15/AJ15) -> 0 | AH15: =Query!W34 -> 0 | AI15: =Query!X34 -> 5 | AJ15: =SUM(AH15:AI15) -> 5
A16: Grade 8 Total | B16: =SUM(B14:B15) -> 0 | C16: =SUM(C14:C15) -> 3 | D16: =SUM(D14:D15) -> 3 | F16: =SUM(F14:F15) -> 0 | G16: =SUM(G14:G15) -> 0 | H16: =SUM(H14:H15) -> 0 | J16: =SUM(J14:J15) -> 0 | K16: =SUM(K14:K15) -> 3 | L16: =SUM(L14:L15) -> 3 | N16: =SUM(L16/AJ16) -> 0.05555555556 | P16: =SUM(P14:P15) -> 38 | R16: =SUM(P16/AJ16) -> 0.7037037037 | T16: =SUM(T14:T15) -> 6 | U16: =SUM(U14:U15) -> 7 | V16: =SUM(V14:V15) -> 13 | X16: =SUM(X14:X15) -> 0 | Y16: =SUM(Y14:Y15) -> 0 | Z16: =SUM(Z14:Z15) -> 0 | AB16: =SUM(AB14:AB15) -> 6 | AC16: =SUM(AC14:AC15) -> 7 | AD16: =SUM(AD14:AD15) -> 13 | AF16: =SUM(AD16/AJ16) -> 0.2407407407 | AH16: =SUM(AH14:AH15) -> 23 | AI16: =SUM(AI14:AI15) -> 31 | AJ16: =SUM(AJ14:AJ15) -> 54
A18: Grade ACZ 8 F/T | B18: =Query!B36 -> 0 | C18: =Query!C36 -> 0 | D18: =SUM(B18:C18) -> 0 | F18: =Query!E36 -> 0 | G18: =Query!F36 -> 0 | H18: =SUM(F18:G18) -> 0 | J18: =Query!H36 -> 0 | K18: =Query!I36 -> 0 | L18: =SUM(J18:K18) -> 0 | N18: =IFERROR(18/AJ18,0) -> 0 | P18: =Query!L36 -> 0 | R18: =IFERROR(P18/AJ18,0) -> 0 | T18: =Query!M36 -> 0 | U18: =Query!N36 -> 0 | V18: =SUM(T18:U18) -> 0 | X18: =Query!P36 -> 0 | Y18: =Query!Q36 -> 0 | Z18: =SUM(X18:Y18) -> 0 | AB18: =Query!S36 -> 0 | AC18: =Query!T36 -> 0 | AD18: =SUM(AB18:AC18) -> 0 | AF18: =IFERROR(AD18/AJ18,0) -> 0 | AH18: =Query!W36 -> 0 | AI18: =Query!X36 -> 0 | AJ18: =SUM(AH18:AI18) -> 0
A19: Grade ACZ 8 P/T | B19: =Query!B37 -> 0 | C19: =Query!C37 -> 0 | D19: =SUM(B19:C19) -> 0 | F19: =Query!E37 -> 0 | G19: =Query!F37 -> 0 | H19: =SUM(F19:G19) -> 0 | J19: =Query!H37 -> 0 | K19: =Query!I37 -> 0 | L19: =SUM(J19:K19) -> 0 | N19: =IFERROR(L19/AJ19,0) -> 0 | P19: =Query!L37 -> 0 | R19: =IFERROR(P19/AJ19,0) -> 0 | T19: =Query!M37 -> 0 | U19: =Query!N37 -> 0 | V19: =SUM(T19:U19) -> 0 | X19: =Query!P37 -> 0 | Y19: =Query!Q37 -> 0 | Z19: =SUM(X19:Y19) -> 0 | AB19: =Query!S37 -> 0 | AC19: =Query!T37 -> 0 | AD19: =SUM(AB19:AC19) -> 0 | AF19: =IFERROR(AD19/AJ19,0) -> 0 | AH19: =Query!W37 -> 0 | AI19: =Query!X37 -> 0 | AJ19: =SUM(AH19:AI19) -> 0
A20: Grade ACZ 8 Total | B20: =SUM(B18:B19) -> 0 | C20: =SUM(C18:C19) -> 0 | D20: =SUM(D18:D19) -> 0 | F20: =SUM(F18:F19) -> 0 | G20: =SUM(G18:G19) -> 0 | H20: =SUM(H18:H19) -> 0 | J20: =SUM(J18:J19) -> 0 | K20: =SUM(K18:K19) -> 0 | L20: =SUM(L18:L19) -> 0 | N20: =IFERROR(L20/AJ20,0) -> 0 | P20: =SUM(P18:P19) -> 0 | R20: =IFERROR(P20/AJ20,0) -> 0 | T20: =SUM(T18:T19) -> 0 | U20: =SUM(U18:U19) -> 0 | V20: =SUM(V18:V19) -> 0 | X20: =SUM(X18:X19) -> 0 | Y20: =SUM(Y18:Y19) -> 0 | Z20: =SUM(Z18:Z19) -> 0 | AB20: =SUM(AB18:AB19) -> 0 | AC20: =SUM(AC18:AC19) -> 0 | AD20: =SUM(AD18:AD19) -> 0 | AF20: =IFERROR(AD20/AJ20,0) -> 0 | AH20: =SUM(AH18:AH19) -> 0 | AI20: =SUM(AI18:AI19) -> 0 | AJ20: =SUM(AJ18:AJ19) -> 0
A22: Grade 9-15 F/T | B22: =Query!B39 -> 0 | C22: =Query!C39 -> 0 | D22: =SUM(B22:C22) -> 0 | F22: =Query!E39 -> 0 | G22: =Query!F39 -> 0 | H22: =SUM(F22:G22) -> 0 | J22: =Query!H39 -> 0 | K22: =Query!I39 -> 0 | L22: =SUM(J22:K22) -> 0 | N22: =SUM(L22/AJ22) -> 0 | P22: =Query!L39 -> 23 | R22: =SUM(P22/AJ22) -> 0.7666666667 | T22: =Query!M39 -> 4 | U22: =Query!N39 -> 3 | V22: =SUM(T22:U22) -> 7 | X22: =Query!P39 -> 0 | Y22: =Query!Q39 -> 0 | Z22: =SUM(X22:Y22) -> 0 | AB22: =Query!S39 -> 4 | AC22: =Query!T39 -> 3 | AD22: =SUM(AB22:AC22) -> 7 | AF22: =SUM(AD22/AJ22) -> 0.2333333333 | AH22: =Query!W39 -> 15 | AI22: =Query!X39 -> 15 | AJ22: =SUM(AH22:AI22) -> 30
A23: Grade 9-15 P/T | B23: =Query!B40 -> 0 | C23: =Query!C40 -> 0 | D23: =SUM(B23:C23) -> 0 | F23: =Query!E40 -> 0 | G23: =Query!F40 -> 0 | H23: =SUM(F23:G23) -> 0 | J23: =Query!H40 -> 0 | K23: =Query!I40 -> 0 | L23: =SUM(J23:K23) -> 0 | N23: =IFERROR(L23/AJ23,0) -> 0 | P23: =Query!L40 -> 0 | R23: =IFERROR(P23/AJ23,0) -> 0 | T23: =Query!M40 -> 0 | U23: =Query!N40 -> 0 | V23: =SUM(T23:U23) -> 0 | X23: =Query!P40 -> 0 | Y23: =Query!Q40 -> 0 | Z23: =SUM(X23:Y23) -> 0 | AB23: =Query!S40 -> 0 | AC23: =Query!T40 -> 0 | AD23: =SUM(AB23:AC23) -> 0 | AF23: =IFERROR(AD23/AJ23,0) -> 0 | AH23: =Query!W40 -> 0 | AI23: =Query!X40 -> 0 | AJ23: =SUM(AH23:AI23) -> 0
A24: Grade 9-15 Total | B24: =SUM(B22:B23) -> 0 | C24: =SUM(C22:C23) -> 0 | D24: =SUM(D22:D23) -> 0 | F24: =SUM(F22:F23) -> 0 | G24: =SUM(G22:G23) -> 0 | H24: =SUM(H22:H23) -> 0 | J24: =SUM(J22:J23) -> 0 | K24: =SUM(K22:K23) -> 0 | L24: =SUM(L22:L23) -> 0 | N24: =SUM(L24/AJ24) -> 0 | P24: =SUM(P22:P23) -> 23 | R24: =SUM(P24/AJ24) -> 0.7666666667 | T24: =SUM(T22:T23) -> 4 | U24: =SUM(U22:U23) -> 3 | V24: =SUM(V22:V23) -> 7 | X24: =SUM(X22:X23) -> 0 | Y24: =SUM(Y22:Y23) -> 0 | Z24: =SUM(Z22:Z23) -> 0 | AB24: =SUM(AB22:AB23) -> 4 | AC24: =SUM(AC22:AC23) -> 3 | AD24: =SUM(AD22:AD23) -> 7 | AF24: =SUM(AD24/AJ24) -> 0.2333333333 | AH24: =SUM(AH22:AH23) -> 15 | AI24: =SUM(AI22:AI23) -> 15 | AJ24: =SUM(AJ22:AJ23) -> 30
A26: Grade ACZ 9-15 F/T | B26: =Query!B42 -> 0 | C26: =Query!C42 -> 0 | D26: =SUM(B26:C26) -> 0 | F26: =Query!E42 -> 0 | G26: =Query!F42 -> 0 | H26: =SUM(F26:G26) -> 0 | J26: =Query!H42 -> 0 | K26: =Query!I42 -> 0 | L26: =SUM(J26:K26) -> 0 | N26: =SUM(L26/AJ26) -> 0 | P26: =Query!L42 -> 1 | R26: =SUM(P26/AJ26) -> 1 | T26: =Query!M42 -> 0 | U26: =Query!N42 -> 0 | V26: =SUM(T26:U26) -> 0 | X26: =Query!P42 -> 0 | Y26: =Query!Q42 -> 0 | Z26: =SUM(X26:Y26) -> 0 | AB26: =Query!S42 -> 0 | AC26: =Query!T42 -> 0 | AD26: =SUM(AB26:AC26) -> 0 | AF26: =SUM(AD26/AJ26) -> 0 | AH26: =Query!W42 -> 1 | AI26: =Query!X42 -> 0 | AJ26: =SUM(AH26:AI26) -> 1
A27: Grade ACZ 9-15 P/T | B27: =Query!B43 -> 0 | C27: =Query!C43 -> 0 | D27: =SUM(B27:C27) -> 0 | F27: =Query!E43 -> 0 | G27: =Query!F43 -> 0 | H27: =SUM(F27:G27) -> 0 | J27: =Query!H43 -> 0 | K27: =Query!I43 -> 0 | L27: =SUM(J27:K27) -> 0 | N27: =IFERROR(L27/AJ27,0) -> 0 | P27: =Query!L43 -> 0 | R27: =IFERROR(P27/AJ27,0) -> 0 | T27: =Query!M43 -> 0 | U27: =Query!N43 -> 0 | V27: =SUM(T27:U27) -> 0 | X27: =Query!P43 -> 0 | Y27: =Query!Q43 -> 0 | Z27: =SUM(X27:Y27) -> 0 | AB27: =Query!S43 -> 0 | AC27: =Query!T43 -> 0 | AD27: =SUM(AB27:AC27) -> 0 | AF27: =IFERROR(AD27/AJ27,0) -> 0 | AH27: =Query!W43 -> 0 | AI27: =Query!X43 -> 0 | AJ27: =SUM(AH27:AI27) -> 0
A28: Grade ACZ 9-15 Total | B28: =SUM(B26:B27) -> 0 | C28: =SUM(C26:C27) -> 0 | D28: =SUM(D26:D27) -> 0 | F28: =SUM(F26:F27) -> 0 | G28: =SUM(G26:G27) -> 0 | H28: =SUM(H26:H27) -> 0 | J28: =SUM(J26:J27) -> 0 | K28: =SUM(K26:K27) -> 0 | L28: =SUM(L26:L27) -> 0 | N28: =SUM(L28/AJ28) -> 0 | P28: =SUM(P26:P27) -> 1 | R28: =SUM(P28/AJ28) -> 1 | T28: =SUM(T26:T27) -> 0 | U28: =SUM(U26:U27) -> 0 | V28: =SUM(V26:V27) -> 0 | X28: =SUM(X26:X27) -> 0 | Y28: =SUM(Y26:Y27) -> 0 | Z28: =SUM(Z26:Z27) -> 0 | AB28: =SUM(AB26:AB27) -> 0 | AC28: =SUM(AC26:AC27) -> 0 | AD28: =SUM(AD26:AD27) -> 0 | AF28: =SUM(AD28/AJ28) -> 0 | AH28: =SUM(AH26:AH27) -> 1 | AI28: =SUM(AI26:AI27) -> 0 | AJ28: =SUM(AJ26:AJ27) -> 1
A30: Other Non Pay & Grading Structure F/T | B30: =Query!B45 -> 0 | C30: =Query!C45 -> 0 | D30: =SUM(B30:C30) -> 0 | F30: =Query!E45 -> 0 | G30: =Query!F45 -> 0 | H30: =SUM(F30:G30) -> 0 | J30: =Query!H45 -> 0 | K30: =Query!I45 -> 0 | L30: =SUM(J30:K30) -> 0 | N30: =SUM(L30/AJ30) -> 0 | P30: =Query!L45 -> 41 | R30: =SUM(P30/AJ30) -> 0.5774647887 | T30: =Query!M45 -> 8 | U30: =Query!N45 -> 14 | V30: =SUM(T30:U30) -> 22 | X30: =Query!P45 -> 5 | Y30: =Query!Q45 -> 3 | Z30: =SUM(X30:Y30) -> 8 | AB30: =Query!S45 -> 13 | AC30: =Query!T45 -> 17 | AD30: =SUM(AB30:AC30) -> 30 | AF30: =SUM(AD30/AJ30) -> 0.4225352113 | AH30: =Query!W45 -> 23 | AI30: =Query!X45 -> 48 | AJ30: =SUM(AH30:AI30) -> 71
A31: Other Non Pay & Grading Structure P/T | B31: =Query!B46 -> 0 | C31: =Query!C46 -> 0 | D31: =SUM(B31:C31) -> 0 | F31: =Query!E46 -> 0 | G31: =Query!F46 -> 0 | H31: =SUM(F31:G31) -> 0 | J31: =Query!H46 -> 0 | K31: =Query!I46 -> 0 | L31: =SUM(J31:K31) -> 0 | N31: =SUM(L31/AJ31) -> 0 | P31: =Query!L46 -> 8 | R31: =SUM(P31/AJ31) -> 0.7272727273 | T31: =Query!M46 -> 0 | U31: =Query!N46 -> 2 | V31: =SUM(T31:U31) -> 2 | X31: =Query!P46 -> 0 | Y31: =Query!Q46 -> 1 | Z31: =SUM(X31:Y31) -> 1 | AB31: =Query!S46 -> 0 | AC31: =Query!T46 -> 3 | AD31: =SUM(AB31:AC31) -> 3 | AF31: =SUM(AD31/AJ31) -> 0.2727272727 | AH31: =Query!W46 -> 0 | AI31: =Query!X46 -> 11 | AJ31: =SUM(AH31:AI31) -> 11
A32: Other Non P&G Structure Total | B32: =SUM(B30:B31) -> 0 | C32: =SUM(C30:C31) -> 0 | D32: =SUM(D30:D31) -> 0 | F32: =SUM(F30:F31) -> 0 | G32: =SUM(G30:G31) -> 0 | H32: =SUM(H30:H31) -> 0 | J32: =SUM(J30:J31) -> 0 | K32: =SUM(K30:K31) -> 0 | L32: =SUM(L30:L31) -> 0 | N32: =SUM(L32/AJ32) -> 0 | P32: =SUM(P30:P31) -> 49 | R32: =SUM(P32/AJ32) -> 0.5975609756 | T32: =SUM(T30:T31) -> 8 | U32: =SUM(U30:U31) -> 16 | V32: =SUM(V30:V31) -> 24 | X32: =SUM(X30:X31) -> 5 | Y32: =SUM(Y30:Y31) -> 4 | Z32: =SUM(Z30:Z31) -> 9 | AB32: =SUM(AB30:AB31) -> 13 | AC32: =SUM(AC30:AC31) -> 20 | AD32: =SUM(AD30:AD31) -> 33 | AF32: =SUM(AD32/AJ32) -> 0.4024390244 | AH32: =SUM(AH30:AH31) -> 23 | AI32: =SUM(AI30:AI31) -> 59 | AJ32: =SUM(AJ30:AJ31) -> 82
A34: Total Workforce F/T | B34: =SUM(B6,B10,B14,B18,B22,B26,B30) -> 29 | C34: =SUM(C6,C10,C14,C18,C22,C26,C30) -> 22 | D34: =SUM(B34:C34) -> 51 | F34: =SUM(F6,F10,F14,F18,F22,F26,F30) -> 2 | G34: =SUM(G6,G10,G14,G18,G22,G26,G30) -> 1 | H34: =SUM(F34:G34) -> 3 | J34: =SUM(J6,J10,J14,J18,J22,J26,J30) -> 31 | K34: =SUM(K6,K10,K14,K18,K22,K26,K30) -> 23 | L34: =SUM(J34:K34) -> 54 | N34: =SUM(L34/AJ34) -> 0.03206650831 | P34: =SUM(P6,P10,P14,P18,P22,P26,P30) -> 1170 | R34: =SUM(P34/AJ34) -> 0.6947743468 | T34: =SUM(T6,T10,T14,T18,T22,T26,T30) -> 235 | U34: =SUM(U6,U10,U14,U18,U22,U26,U30) -> 185 | V34: =SUM(T34:U34) -> 420 | X34: =SUM(X6,X10,X14,X18,X22,X26,X30) -> 26 | Y34: =SUM(Y6,Y10,Y14,Y18,Y22,Y26,Y30) -> 14 | Z34: =SUM(X34:Y34) -> 40 | AB34: =SUM(AB6,AB10,AB14,AB18,AB22,AB26,AB30) -> 261 | AC34: =SUM(AC6,AC10,AC14,AC18,AC22,AC26,AC30) -> 199 | AD34: =SUM(AB34:AC34) -> 460 | AF34: =SUM(AD34/AJ34) -> 0.2731591449 | AH34: =SUM(AH6,AH10,AH14,AH18,AH22,AH26,AH30) -> 926 | AI34: =SUM(AI6,AI10,AI14,AI18,AI22,AI26,AI30) -> 758 | AJ34: =SUM(AH34:AI34) -> 1684
A36: Total Workforce P/T | B36: =SUM(B7,B11,B15,B19,B23,B27,B31) -> 20 | C36: =SUM(C7,C11,C15,C19,C23,C27,C31) -> 22 | D36: =SUM(B36:C36) -> 42 | F36: =SUM(F7,F11,F15,F19,F23,F27,F31) -> 2 | G36: =SUM(G7,G11,G15,G19,G23,G27,G31) -> 2 | H36: =SUM(F36:G36) -> 4 | J36: =SUM(J7,J11,J15,J19,J23,J27,J31) -> 22 | K36: =SUM(K7,K11,K15,K19,K23,K27,K31) -> 24 | L36: =SUM(J36:K36) -> 46 | N36: =SUM(L36/AJ36) -> 0.05275229358 | P36: =SUM(P7,P11,P15,P19,P23,P27,P31) -> 543 | R36: =SUM(P36/AJ36) -> 0.622706422 | T36: =SUM(T7,T11,T15,T19,T23,T27,T31) -> 97 | U36: =SUM(U7,U11,U15,U19,U23,U27,U31) -> 160 | V36: =SUM(T36:U36) -> 257 | X36: =SUM(X7,X11,X15,X19,X23,X27,X31) -> 5 | Y36: =SUM(Y7,Y11,Y15,Y19,Y23,Y27,Y31) -> 21 | Z36: =SUM(X36:Y36) -> 26 | AB36: =SUM(AB7,AB11,AB15,AB19,AB23,AB27,AB31) -> 102 | AC36: =SUM(AC7,AC11,AC15,AC19,AC23,AC27,AC31) -> 181 | AD36: =SUM(AB36:AC36) -> 283 | AF36: =SUM(AD36/AJ36) -> 0.3245412844 | AH36: =SUM(AH7,AH11,AH15,AH19,AH23,AH27,AH31) -> 287 | AI36: =SUM(AI7,AI11,AI15,AI19,AI23,AI27,AI31) -> 585 | AJ36: =SUM(AH36:AI36) -> 872
A38: Total Workforce | B38: =SUM(B36,B34) -> 49 | C38: =SUM(C36,C34) -> 44 | D38: =SUM(B38:C38) -> 93 | F38: =SUM(F36,F34) -> 4 | G38: =SUM(G36,G34) -> 3 | H38: =SUM(F38:G38) -> 7 | J38: =SUM(J36,J34) -> 53 | K38: =SUM(K36,K34) -> 47 | L38: =SUM(J38:K38) -> 100 | N38: =SUM(L38/AJ38) -> 0.03912363067 | P38: =SUM(P36,P34) -> 1713 | R38: =SUM(P38/AJ38) -> 0.6701877934 | T38: =SUM(T36,T34) -> 332 | U38: =SUM(U36,U34) -> 345 | V38: =SUM(T38:U38) -> 677 | X38: =SUM(X36,X34) -> 31 | Y38: =SUM(Y36,Y34) -> 35 | Z38: =SUM(X38:Y38) -> 66 | AB38: =SUM(AB36,AB34) -> 363 | AC38: =SUM(AC36,AC34) -> 380 | AD38: =SUM(AB38:AC38) -> 743 | AF38: =SUM(AD38/AJ38) -> 0.2906885759 | AH38: =SUM(AH36,AH34) -> 1213 | AI38: =SUM(AI36,AI34) -> 1343 | AJ38: =SUM(AH38:AI38) -> 2556
B39: =B38/$AJ$38 -> 0.01917057903 | C39: =C38/$AJ$38 -> 0.0172143975 | D39: 0.03638497653 | E39: 0 | F39: 0.001564945227 | G39: 0.00117370892 | H39: 0.002738654147 | I39: 0 | J39: 0.02073552426 | K39: 0.01838810642 | L39: 0.03912363067 | M39: 0 | N39: 1.530658477e-05 | O39: 0 | P39: 0.6701877934 | Q39: 0 | R39: 0.0002622017971 | S39: 0 | T39: 0.1298904538 | U39: 0.1349765258 | V39: 0.2648669797 | W39: 0 | X39: 0.01212832551 | Y39: 0.01369327074 | Z39: 0.02582159624 | AA39: 0 | AB39: 0.1420187793 | AC39: 0.1486697966 | AD39: 0.2906885759 | AE39: 0 | AF39: 0.0001137279248 | AG39: 0 | AH39: 0.4745696401 | AI39: 0.5254303599 | AJ39: 1
A40: Fields update automatically
A41: SSC Complete

Sheet Query (hidden)
A3: Workforce Profile Disability Excl Casual & Sessional
A5: Payroll Area
A6: ZPersonal Area
A7: Organizational Unit | B7: Culture & Sport Glasgow
A8: Personnel Subarea | B8: ]GL Bank[
A9: Checkbox for Part-Ti
A10: ZPrimary Employee ID
A12: WP Bandings
A14: Employee Subgroup | B14: ]Teachers 35.00 M1[, ]Teachers 35.00 M2[, ]Skillseekers[, ]External Non Payroll[, ]Traineeship Program[
A15: Employment Status | B15: Active
A16: Organizational Unit | B16: ]DR00000029[, ]DR00000035[, ]EP10000000[, ]LS00000500[, ]GL00000001[, ]DR00000145[, ]L000000A00[, ]DR00000029[, ]DR00000035[...
A17: Personnel Subarea | B17: ]ZZZZ[
A18: Employment End | B18: >= 30/09/2017
A19: Employment Start | B19: <= 30/09/2017
A20: ZPersonal Area | B20: ]9980..9991[, ]0021[, 0161
A22: WP Disability/Ethnicity Bandings Rev
A24: Contract Type
B26: Total White Male Disabled Employees | C26: Total White Female Disabled Employees | D26: Total White Disabled Employees | E26: Total Ethnic Male Disabled Employees | F26: Total Ethnic Female Disabled Employees | G26: Total Ethnic Disabled Employees | H26: Disabled Male Employees | I26: Disabled Female Employees | J26: Total Disabled Employees | K26: Total Disabled Employees % | L26: Not Disclosed | M26: Total White Male Non Disabled Employees | N26: Total White Female Non Disabled Employees | O26: Total White Non Disabled Employees | P26: Total Ethnic Male Non Disabled Employees | Q26: Total Ethnic Female Non Disabled Employees | R26: Total Ethnic Non Disabled Employees | S26: Total Male Non Disabled Employees | T26: Total Female Non Disabled Employees | U26: Total Non Disabled Employees | V26: Total Non Disabled Employees % | W26: Total Male Employees | X26: Total Female Employees | Y26: Total Workforce
A27: Grade 1 - 4 F/T | B27: 20 | C27: 9 | D27: 29 | E27: 2 | G27: 2 | H27: 22 | I27: 9 | J27: 31 | K27: 0.03502824859 | L27: 603 | M27: 145 | N27: 85 | O27: 230 | P27: 15 | Q27: 6 | R27: 21 | S27: 160 | T27: 91 | U27: 251 | V27: 0.2836158192 | W27: 562 | X27: 323 | Y27: 885
A28: Grade 1 - 4 P/T | B28: 20 | C28: 18 | D28: 38 | E28: 2 | F28: 2 | G28: 4 | H28: 22 | I28: 20 | J28: 42 | K28: 0.05874125874 | L28: 422 | M28: 94 | N28: 135 | O28: 229 | P28: 5 | Q28: 17 | R28: 22 | S28: 99 | T28: 152 | U28: 251 | V28: 0.351048951 | W28: 263 | X28: 452 | Y28: 715
A29: Grade 1 - 4 Total | B29: 40 | C29: 27 | D29: 67 | E29: 4 | F29: 2 | G29: 6 | H29: 44 | I29: 29 | J29: 73 | K29: 0.045625 | L29: 1025 | M29: 239 | N29: 220 | O29: 459 | P29: 20 | Q29: 23 | R29: 43 | S29: 259 | T29: 243 | U29: 502 | V29: 0.31375 | W29: 825 | X29: 775 | Y29: 1600
A30: Grade 5 - 7 F/T | B30: 9 | C30: 12 | D30: 21 | F30: 1 | G30: 1 | H30: 9 | I30: 13 | J30: 22 | K30: 0.03395061728 | L30: 467 | M30: 72 | N30: 76 | O30: 148 | P30: 6 | Q30: 5 | R30: 11 | S30: 78 | T30: 81 | U30: 159 | V30: 0.2453703704 | W30: 302 | X30: 346 | Y30: 648
A31: Grade 5 - 7 P/T | C31: 2 | D31: 2 | I31: 2 | J31: 2 | K31: 0.01418439716 | L31: 110 | M31: 3 | N31: 23 | O31: 26 | Q31: 3 | R31: 3 | S31: 3 | T31: 26 | U31: 29 | V31: 0.2056737589 | W31: 24 | X31: 117 | Y31: 141
A32: Grade 5 - 7 Total | B32: 9 | C32: 14 | D32: 23 | F32: 1 | G32: 1 | H32: 9 | I32: 15 | J32: 24 | K32: 0.03041825095 | L32: 577 | M32: 75 | N32: 99 | O32: 174 | P32: 6 | Q32: 8 | R32: 14 | S32: 81 | T32: 107 | U32: 188 | V32: 0.2382762991 | W32: 326 | X32: 463 | Y32: 789
A33: Grade 8 F/T | C33: 1 | D33: 1 | I33: 1 | J33: 1 | K33: 0.02040816327 | L33: 35 | M33: 6 | N33: 7 | O33: 13 | S33: 6 | T33: 7 | U33: 13 | V33: 0.2653061224 | W33: 23 | X33: 26 | Y33: 49
A34: Grade 8 P/T | C34: 2 | D34: 2 | I34: 2 | J34: 2 | K34: 0.4 | L34: 3 | X34: 5 | Y34: 5
A35: Grade 8 Total | C35: 3 | D35: 3 | I35: 3 | J35: 3 | K35: 0.05555555556 | L35: 38 | M35: 6 | N35: 7 | O35: 13 | S35: 6 | T35: 7 | U35: 13 | V35: 0.2407407407 | W35: 23 | X35: 31 | Y35: 54
A36: ACZ Grade 8 F/T
A37: ACZ Grade 8 P/T
A38: ACZ Grade 8 Total
A39: Grade 9 - 15 F/T | L39: 23 | M39: 4 | N39: 3 | O39: 7 | S39: 4 | T39: 3 | U39: 7 | V39: 0.2333333333 | W39: 15 | X39: 15 | Y39: 30
A40: Grade 9 - 15 P/T
A41: Grade 9 - 15 Total | L41: 23 | M41: 4 | N41: 3 | O41: 7 | S41: 4 | T41: 3 | U41: 7 | V41: 0.2333333333 | W41: 15 | X41: 15 | Y41: 30
A42: ACZ Grade 9 - 15 F/T | L42: 1 | W42: 1 | Y42: 1
A43: ACZ Grade 9 - 15 P/T
A44: ACZ Grade 9 - 15 Total | L44: 1 | W44: 1 | Y44: 1
A45: Other (Not Migrated) F/T | B45: 0 | C45: 0 | D45: 0 | E45: 0 | F45: 0 | G45: 0 | H45: 0 | I45: 0 | J45: 0 | K45: 0 | L45: 41 | M45: 8 | N45: 14 | O45: 22 | P45: 5 | Q45: 3 | R45: 8 | S45: 13 | T45: 17 | U45: 30 | V45: 0.4225352113 | W45: 23 | X45: 48 | Y45: 71
A46: Other (Not Migrated) P/T | B46: 0 | C46: 0 | D46: 0 | E46: 0 | F46: 0 | G46: 0 | H46: 0 | I46: 0 | J46: 0 | K46: 0 | L46: 8 | M46: 0 | N46: 2 | O46: 2 | P46: 0 | Q46: 1 | R46: 1 | S46: 0 | T46: 3 | U46: 3 | V46: 0.2727272727 | W46: 0 | X46: 11 | Y46: 11
A47: Other (Not Migrated) Total | B47: 0 | C47: 0 | D47: 0 | E47: 0 | F47: 0 | G47: 0 | H47: 0 | I47: 0 | J47: 0 | K47: 0 | L47: 49 | M47: 8 | N47: 16 | O47: 24 | P47: 5 | Q47: 4 | R47: 9 | S47: 13 | T47: 20 | U47: 33 | V47: 0.4024390244 | W47: 23 | X47: 59 | Y47: 82
A48: Total Teaching Staff F/T
A49: Total Teaching Staff P/T
A50: Total Teaching Staff
A51: Total Non-Teaching Staff F/T | B51: 29 | C51: 22 | D51: 51 | E51: 2 | F51: 1 | G51: 3 | H51: 31 | I51: 23 | J51: 54 | K51: 0.03206650831 | L51: 1170 | M51: 235 | N51: 185 | O51: 420 | P51: 26 | Q51: 14 | R51: 40 | S51: 261 | T51: 199 | U51: 460 | V51: 0.2731591449 | W51: 926 | X51: 758 | Y51: 1684
A52: Total Non-Teaching Staff P/T | B52: 20 | C52: 22 | D52: 42 | E52: 2 | F52: 2 | G52: 4 | H52: 22 | I52: 24 | J52: 46 | K52: 0.05275229358 | L52: 543 | M52: 97 | N52: 160 | O52: 257 | P52: 5 | Q52: 21 | R52: 26 | S52: 102 | T52: 181 | U52: 283 | V52: 0.3245412844 | W52: 287 | X52: 585 | Y52: 872
A53: Total Non-Teaching Staff | B53: 49 | C53: 44 | D53: 93 | E53: 4 | F53: 3 | G53: 7 | H53: 53 | I53: 47 | J53: 100 | K53: 0.03912363067 | L53: 1713 | M53: 332 | N53: 345 | O53: 677 | P53: 31 | Q53: 35 | R53: 66 | S53: 363 | T53: 380 | U53: 743 | V53: 0.2906885759 | W53: 1213 | X53: 1343 | Y53: 2556
A54: Total - All WPBR Grades F/T | B54: 29 | C54: 22 | D54: 51 | E54: 2 | F54: 1 | G54: 3 | H54: 31 | I54: 23 | J54: 54 | K54: 0.03347799132 | L54: 1129 | M54: 227 | N54: 171 | O54: 398 | P54: 21 | Q54: 11 | R54: 32 | S54: 248 | T54: 182 | U54: 430 | V54: 0.266584005 | W54: 903 | X54: 710 | Y54: 1613
A55: Total - All WPBR Grades P/T | B55: 20 | C55: 22 | D55: 42 | E55: 2 | F55: 2 | G55: 4 | H55: 22 | I55: 24 | J55: 46 | K55: 0.05342624855 | L55: 535 | M55: 97 | N55: 158 | O55: 255 | P55: 5 | Q55: 20 | R55: 25 | S55: 102 | T55: 178 | U55: 280 | V55: 0.325203252 | W55: 287 | X55: 574 | Y55: 861
A56: Total Workforce - All WPBR Grades | B56: 49 | C56: 44 | D56: 93 | E56: 4 | F56: 3 | G56: 7 | H56: 53 | I56: 47 | J56: 100 | K56: 0.04042037187 | L56: 1664 | M56: 324 | N56: 329 | O56: 653 | P56: 26 | Q56: 31 | R56: 57 | S56: 350 | T56: 360 | U56: 710 | V56: 0.2869846403 | W56: 1190 | X56: 1284 | Y56: 2474
A57: Total Workforce (All) F/T | B57: 29 | C57: 22 | D57: 51 | E57: 2 | F57: 1 | G57: 3 | H57: 31 | I57: 23 | J57: 54 | K57: 0.03206650831 | L57: 1170 | M57: 235 | N57: 185 | O57: 420 | P57: 26 | Q57: 14 | R57: 40 | S57: 261 | T57: 199 | U57: 460 | V57: 0.2731591449 | W57: 926 | X57: 758 | Y57: 1684
A58: Total Workforce (All) P/T | B58: 20 | C58: 22 | D58: 42 | E58: 2 | F58: 2 | G58: 4 | H58: 22 | I58: 24 | J58: 46 | K58: 0.05275229358 | L58: 543 | M58: 97 | N58: 160 | O58: 257 | P58: 5 | Q58: 21 | R58: 26 | S58: 102 | T58: 181 | U58: 283 | V58: 0.3245412844 | W58: 287 | X58: 585 | Y58: 872
A59: Total Workforce (All) | B59: 49 | C59: 44 | D59: 93 | E59: 4 | F59: 3 | G59: 7 | H59: 53 | I59: 47 | J59: 100 | K59: 0.03912363067 | L59: 1713 | M59: 332 | N59: 345 | O59: 677 | P59: 31 | Q59: 35 | R59: 66 | S59: 363 | T59: 380 | U59: 743 | V59: 0.2906885759 | W59: 1213 | X59: 1343 | Y59: 2556
